{"text_format":"1","workbook":"xlsx","n_sheets":16,"sheets":["事業者情報","従業員情報","data1","data2","data4","data5","源泉徴収簿","徴収票印刷（カラー）","徴収票印刷（白黒）","給与所得","税額","保険料控除","ライセンス2","ライセンス","集計","data3"],"not_rendered":{"charts":0,"images":7,"macros":1,"external_links":0,"defined_names":6,"comments":0,"pivot_tables":0},"unopened":[],"bounds":{"document_bytes":16777216,"sheet_cells":100000,"rows_first":2000,"rows_last":500,"rows_between":2000,"halvings":0,"cell_chars":16384,"cell_head_chars":4096},"cells_cut":0,"cells_raw":0,"read":"whole","date_system":"1900"}

{"sheet":"事業者情報","index":0,"n_rows":64,"n_cols":18,"rows_kept":64,"cut":false,"hidden":false,"merged":[[63,9,63,17],[0,17,0,22],[36,9,36,16],[38,9,38,15],[40,9,40,15],[23,1,24,21],[25,1,26,21],[27,1,28,21]]}
[null,null,null,null,null,null,null,null,null,null,null,null,null,null,null,null,null,"(仮)"]
[]
[]
[]
[]
[]
[]
[]
[]
[null,null,null,"初めて使う方はこちらのボタンから登録してください。",null,null,null,null,null,null,"前年度のファイルがある場合には"]
[null,null,null,null,null,null,null,null,null,null,"以下の情報を引き継ぐことができます。"]
[]
[null,null,null,null,null,null,null,null,null,null,"・事業者情報"]
[null,null,null,null,null,null,null,null,null,null,"・従業員基本情報"]
[null,null,null,null,null,null,null,null,null,null,"・本人・配偶者"]
[null,null,null,null,null,null,null,null,null,null,"・扶養"]
[]
[]
[]
[]
[]
[]
[]
[null,"このファイルは未完成であり、年末調整を行うことはできません。"]
[]
[null,"入力した給料金額等は、後日公開予定の完成版に移行することができます。"]
[]
[]
[]
[]
[]
[]
[null,null,null,"使い方"]
[]
[null,null,null,"①　最初にマクロを有効にしてください。",null,null,null,null,null,"使い方説明ページ"]
[]
[null,null,null,null,null,null,null,null,null,"その1　ダウンロード～事業者情報入力"]
[]
[null,null,null,null,null,null,null,null,null,"その2　従業員情報入力"]
[]
[null,null,null,null,null,null,null,null,null,"その3　従業員情報選択"]
[]
[]
[]
[]
[]
[]
[null,null,null,"②　「事業者情報入力」ボタンを押してください。"]
[]
[]
[null,null,null,"③　画面下の従業員情報タブ（黄色）を開いてください。"]
[]
[]
[]
[]
[]
[]
[]
[]
[]
[null,null,"修正前のファイルから、最新のファイルへデータ移行できます。"]
[null,null,"移行前と移行後のファイル名が同じだと、移行完了できません。"]
[null,null,"現在このファイルに入力されているデータは全て消えます。"]
[null,null,null,null,null,null,null,null,null,"公式サイト　http://startup.nagoya"]

{"sheet":"従業員情報","index":1,"n_rows":33,"n_cols":12,"rows_kept":33,"cut":false,"hidden":false,"merged":[[19,2,20,5],[8,3,9,3],[8,4,9,4],[7,3,7,4],[6,2,6,4]]}
[]
[]
[null,null,"①従業員ID選択",null,null,null,null,null,null,"従業員ＩＤ","氏","名"]
[null,null,null,null,null,null,null,null,null,1,{"$f":"IF(data2!E11=\"\",\"\",data2!E11)","v":""},{"$f":"IF(data2!F11=\"\",\"\",data2!F11)","v":""}]
[null,null,null,null,null,null,null,null,null,2,{"$f":"IF(data2!E12=\"\",\"\",data2!E12)","v":""},{"$f":"IF(data2!F12=\"\",\"\",data2!F12)","v":""}]
[null,null,null,null,null,null,null,null,null,3,{"$f":"IF(data2!E13=\"\",\"\",data2!E13)","v":""},{"$f":"IF(data2!F13=\"\",\"\",data2!F13)","v":""}]
[null,null,"右の表から番号を選択する。",null,null,null,null,null,null,4,{"$f":"IF(data2!E14=\"\",\"\",data2!E14)","v":""},{"$f":"IF(data2!F14=\"\",\"\",data2!F14)","v":""}]
[null,null,null,"選択中の従業員",null,null,null,null,null,5,{"$f":"IF(data2!E15=\"\",\"\",data2!E15)","v":""},{"$f":"IF(data2!F15=\"\",\"\",data2!F15)","v":""}]
[null,null,null,{"$f":"IF(data2!E2=\"\",\"\",data2!E2)","v":""},{"$f":"IF(data2!F2=\"\",\"\",data2!F2)","v":""},null,null,null,null,6,{"$f":"IF(data2!E16=\"\",\"\",data2!E16)","v":""},{"$f":"IF(data2!F16=\"\",\"\",data2!F16)","v":""}]
[null,null,null,null,null,null,null,null,null,7,{"$f":"IF(data2!E17=\"\",\"\",data2!E17)","v":""},{"$f":"IF(data2!F17=\"\",\"\",data2!F17)","v":""}]
[null,null,null,null,null,null,null,null,null,8,{"$f":"IF(data2!E18=\"\",\"\",data2!E18)","v":""},{"$f":"IF(data2!F18=\"\",\"\",data2!F18)","v":""}]
[null,null,"②従業員情報入力",null,null,null,null,null,null,9,{"$f":"IF(data2!E19=\"\",\"\",data2!E19)","v":""},{"$f":"IF(data2!F19=\"\",\"\",data2!F19)","v":""}]
[null,null,null,null,null,null,null,null,null,10,{"$f":"IF(data2!E20=\"\",\"\",data2!E20)","v":""},{"$f":"IF(data2!F20=\"\",\"\",data2!F20)","v":""}]
[null,null,null,null,null,null,null,null,null,11,{"$f":"IF(data2!E21=\"\",\"\",data2!E21)","v":""},{"$f":"IF(data2!F21=\"\",\"\",data2!F21)","v":""}]
[null,null,null,null,null,null,null,null,null,12,{"$f":"IF(data2!E22=\"\",\"\",data2!E22)","v":""},{"$f":"IF(data2!F22=\"\",\"\",data2!F22)","v":""}]
[null,null,null,null,null,null,null,null,null,13,{"$f":"IF(data2!E23=\"\",\"\",data2!E23)","v":""},{"$f":"IF(data2!F23=\"\",\"\",data2!F23)","v":""}]
[null,null,null,null,null,null,null,null,null,14,{"$f":"IF(data2!E24=\"\",\"\",data2!E24)","v":""},{"$f":"IF(data2!F24=\"\",\"\",data2!F24)","v":""}]
[null,null,null,null,null,null,null,null,null,15,{"$f":"IF(data2!E25=\"\",\"\",data2!E25)","v":""},{"$f":"IF(data2!F25=\"\",\"\",data2!F25)","v":""}]
[null,null,null,null,null,null,null,null,null,16,{"$f":"IF(data2!E26=\"\",\"\",data2!E26)","v":""},{"$f":"IF(data2!F26=\"\",\"\",data2!F26)","v":""}]
[null,null,"※　はじめて使う場合は、まず「②従業員情報入力」ボタンを押して一人目を登録してください。",null,null,null,null,null,null,17,{"$f":"IF(data2!E27=\"\",\"\",data2!E27)","v":""},{"$f":"IF(data2!F27=\"\",\"\",data2!F27)","v":""}]
[null,null,null,null,null,null,null,null,null,18,{"$f":"IF(data2!E28=\"\",\"\",data2!E28)","v":""},{"$f":"IF(data2!F28=\"\",\"\",data2!F28)","v":""}]
[null,null,null,null,null,null,null,null,null,19,{"$f":"IF(data2!E29=\"\",\"\",data2!E29)","v":""},{"$f":"IF(data2!F29=\"\",\"\",data2!F29)","v":""}]
[null,null,null,null,null,null,null,null,null,20,{"$f":"IF(data2!E30=\"\",\"\",data2!E30)","v":""},{"$f":"IF(data2!F30=\"\",\"\",data2!F30)","v":""}]
[null,null,null,null,null,null,null,null,null,21,{"$f":"IF(data2!E31=\"\",\"\",data2!E31)","v":""},{"$f":"IF(data2!F31=\"\",\"\",data2!F31)","v":""}]
[null,null,null,null,null,null,null,null,null,22,{"$f":"IF(data2!E32=\"\",\"\",data2!E32)","v":""},{"$f":"IF(data2!F32=\"\",\"\",data2!F32)","v":""}]
[null,null,null,null,null,null,null,null,null,23,{"$f":"IF(data2!E33=\"\",\"\",data2!E33)","v":""},{"$f":"IF(data2!F33=\"\",\"\",data2!F33)","v":""}]
[null,null,null,null,null,null,null,null,null,24,{"$f":"IF(data2!E34=\"\",\"\",data2!E34)","v":""},{"$f":"IF(data2!F34=\"\",\"\",data2!F34)","v":""}]
[null,null,null,null,null,null,null,null,null,25,{"$f":"IF(data2!E35=\"\",\"\",data2!E35)","v":""},{"$f":"IF(data2!F35=\"\",\"\",data2!F35)","v":""}]
[null,null,null,null,null,null,null,null,null,26,{"$f":"IF(data2!E36=\"\",\"\",data2!E36)","v":""},{"$f":"IF(data2!F36=\"\",\"\",data2!F36)","v":""}]
[null,null,null,null,null,null,null,null,null,27,{"$f":"IF(data2!E37=\"\",\"\",data2!E37)","v":""},{"$f":"IF(data2!F37=\"\",\"\",data2!F37)","v":""}]
[null,null,null,null,null,null,null,null,null,28,{"$f":"IF(data2!E38=\"\",\"\",data2!E38)","v":""},{"$f":"IF(data2!F38=\"\",\"\",data2!F38)","v":""}]
[null,null,null,null,null,null,null,null,null,29,{"$f":"IF(data2!E39=\"\",\"\",data2!E39)","v":""},{"$f":"IF(data2!F39=\"\",\"\",data2!F39)","v":""}]
[null,null,null,null,null,null,null,null,null,30,{"$f":"IF(data2!E40=\"\",\"\",data2!E40)","v":""},{"$f":"IF(data2!F40=\"\",\"\",data2!F40)","v":""}]

{"sheet":"data1","index":2,"n_rows":2,"n_cols":7,"rows_kept":2,"cut":false,"hidden":true,"merged":[]}
["住所","氏名","電話番号","番号1","番号2","番号3","番号4"]
["","","","","","",""]

{"sheet":"data2","index":3,"n_rows":40,"n_cols":31,"rows_kept":40,"cut":false,"hidden":true,"merged":[]}
["ＩＤ","年末調整の要否","フリガナ1","フリガナ2","氏名1","氏名2","役職","受給者番号","郵便番号1","郵便番号2","住所","個人番号1","個人番号2","個人番号3","年","月","日","種別","年","月","日","年","月","日","明治","大正","昭和","平成","扶養申告書","就職","退職"]
[1,"否",null,null,null,null,null,null,null,null,null,null,null,null,null,null,null,"給料"]
[]
[]
[]
[]
[]
[]
[]
[]
[1,"否",null,null,null,null,null,null,null,null,null,null,null,null,null,null,null,"給料"]
[2,"否",null,null,null,null,null,null,null,null,null,null,null,null,null,null,null,"給料"]
[3,"否",null,null,null,null,null,null,null,null,null,null,null,null,null,null,null,"給料"]
[4,"否",null,null,null,null,null,null,null,null,null,null,null,null,null,null,null,"給料"]
[5,"否",null,null,null,null,null,null,null,null,null,null,null,null,null,null,null,"給料"]
[6,"否",null,null,null,null,null,null,null,null,null,null,null,null,null,null,null,"給料"]
[7,"否",null,null,null,null,null,null,null,null,null,null,null,null,null,null,null,"給料"]
[8,"否",null,null,null,null,null,null,null,null,null,null,null,null,null,null,null,"給料"]
[9,"否",null,null,null,null,null,null,null,null,null,null,null,null,null,null,null,"給料"]
[10,"否",null,null,null,null,null,null,null,null,null,null,null,null,null,null,null,"給料"]
[11,"否",null,null,null,null,null,null,null,null,null,null,null,null,null,null,null,"給料"]
[12,"否",null,null,null,null,null,null,null,null,null,null,null,null,null,null,null,"給料"]
[13,"否",null,null,null,null,null,null,null,null,null,null,null,null,null,null,null,"給料"]
[14,"否",null,null,null,null,null,null,null,null,null,null,null,null,null,null,null,"給料"]
[15,"否",null,null,null,null,null,null,null,null,null,null,null,null,null,null,null,"給料"]
[16,"否",null,null,null,null,null,null,null,null,null,null,null,null,null,null,null,"給料"]
[17,"否",null,null,null,null,null,null,null,null,null,null,null,null,null,null,null,"給料"]
[18,"否",null,null,null,null,null,null,null,null,null,null,null,null,null,null,null,"給料"]
[19,"否",null,null,null,null,null,null,null,null,null,null,null,null,null,null,null,"給料"]
[20,"否",null,null,null,null,null,null,null,null,null,null,null,null,null,null,null,"給料"]
[21,"否",null,null,null,null,null,null,null,null,null,null,null,null,null,null,null,"給料"]
[22,"否",null,null,null,null,null,null,null,null,null,null,null,null,null,null,null,"給料"]
[23,"否",null,null,null,null,null,null,null,null,null,null,null,null,null,null,null,"給料"]
[24,"否",null,null,null,null,null,null,null,null,null,null,null,null,null,null,null,"給料"]
[25,"否",null,null,null,null,null,null,null,null,null,null,null,null,null,null,null,"給料"]
[26,"否",null,null,null,null,null,null,null,null,null,null,null,null,null,null,null,"給料"]
[27,"否",null,null,null,null,null,null,null,null,null,null,null,null,null,null,null,"給料"]
[28,"否",null,null,null,null,null,null,null,null,null,null,null,null,null,null,null,"給料"]
[29,"否",null,null,null,null,null,null,null,null,null,null,null,null,null,null,null,"給料"]
[30,"否",null,null,null,null,null,null,null,null,null,null,null,null,null,null,null,"給料"]

{"sheet":"data4","index":4,"n_rows":114,"n_cols":136,"rows_kept":114,"cut":false,"hidden":true,"merged":[[113,55,113,58],[47,65,47,66],[102,61,102,64],[107,61,107,64],[109,55,112,58],[107,55,108,58],[102,55,102,58],[103,55,106,58],[103,61,104,64],[105,61,106,64]]}
["ＩＤ","未成年者","外国人","死亡退職","災害者","乙欄","障害者特別","障害者その他","寡婦一般","寡婦特別","寡夫","勤労学生","配偶者の有無","配偶者の合計所得金額","配偶者特別控除の額","配偶者フリガナ","配偶者氏名","配偶者控除の種類","配偶者区分","配偶者番号1","配偶者番号2","配偶者番号3","ﾌﾖｳ1","ﾌﾖｳ2","ﾌﾖｳ3","ﾌﾖｳ4","ﾌﾖｳ5","ﾌﾖｳ6","ﾌﾖｳ7","ﾌﾖｳ8","ﾌﾖｳ9","ﾌﾖｳ10","扶1","扶2","扶3","扶4","扶5","扶6","扶7","扶8","扶9","扶10","種類1","種類2","種類3","種類4","種類5","種類6","番1","番2","番3","番4","番5","番6","番7","番8","番9","番10","番11","番12","番13","番14","番15","番16","番17","番18","番19","番20","番21","番22","番23","番24","番25","番26","番27","番28","番29","番30","障1","障2","障3","障4","障5","障6","障7","障8","障9","障10","非1","非2","非3","非4","非5","非6","非7","非8","非9","非10","社保","国保","小規模申告","小規模天引き","新一","旧一","介護","新年","旧年","地震","旧長","住宅借入金等特別控除適用数","控除可能額","年1","年2","月1","月2","日1","日2","区分1","区分2","残高1","残高2","摘要","-","-","-","-","配偶者障害者控除","本年最後の給与から徴収する税額に充当する金額","未払給与に係る未徴収の税額に充当する金額","本年中に還付する金額","翌年において還付する金額","本年最後の給与から徴収する金額","翌年に繰り越して徴収する金額","超過不足","超過額","不足額"]
[1,null,null,null,null,null,null,null,null,null,null,null,null,null,0,null,null,null,null,null,null,null,null,null,null,null,null,null,null,null,null,null,null,null,null,null,null,null,null,null,null,null,null,null,null,null,null,null,null,null,null,null,null,null,null,null,null,null,null,null,null,null,null,null,null,null,null,null,null,null,null,null,null,null,null,null,null,null,null,null,null,null,null,null,null,null,null,null,null,null,null,null,null,null,null,null,null,null,0,0,0,0,0,0,0,0,0,0,0]
[null,null,null,null,null,null,{"$f":"IF(G2=\"○\",400000,0)","v":0},{"$f":"IF(H2=\"○\",270000,0)","v":0},{"$f":"IF(I2=\"○\",270000,0)","v":0},{"$f":"IF(J2=\"○\",350000,0)","v":0},{"$f":"IF(K2=\"○\",270000,0)","v":0},{"$f":"IF(L2=\"○\",270000,0)","v":0},null,null,null,null,null,{"$f":"IF(R2=\"一般の控除対象配偶者\",380000,0)","v":0}]
[null,null,null,null,null,null,null,null,null,null,null,null,null,null,null,null,null,{"$f":"IF(R2=\"老人控除対象配偶者\",480000,0)","v":0}]
[null,null,null,null,null,null,null,null,null,null,null,null,null,null,null,null,null,null,null,null,null,null,null,null,null,null,null,null,null,null,null,null,null,null,null,null,null,null,null,null,null,null,"特定扶養親族","同居　　　　老親等","同居老親等以外","その他の扶養親族",null,null,null,null,null,null,null,null,null,null,null,null,null,null,null,null,null,null,null,null,null,null,null,null,null,null,null,null,null,null,null,"同居特別","特別","その他の障害者",null,null,null,null,null,null,null,null,null,null,null,null,null,"非居住者の人数"]
[null,null,null,null,null,null,null,null,null,null,null,null,null,null,null,null,null,null,null,null,null,null,null,null,null,null,null,null,null,null,null,null,null,null,"16歳未満扶養親族",null,null,null,null,null,null,null,630000,580000,480000,380000,null,null,null,null,null,null,null,null,null,null,null,null,null,null,null,null,null,null,null,null,null,null,null,null,null,null,null,null,null,null,null,750000,400000,270000,null,null,null,null,null,null,null,null,null,null,null,null,null,{"$f":"COUNTIF(CK2:CT2,\"○\")+COUNTIF(S2,\"○\")","v":0}]
[null,null,null,null,null,null,null,null,null,null,null,null,null,null,null,null,null,null,null,null,null,null,null,null,null,null,null,null,null,null,null,null,null,null,{"$f":"COUNTA(AM2:AP2)","v":0},null,null,null,null,null,null,null,{"$f":"COUNTIF(AQ2:AV2,\"特定扶養親族\")","v":0},{"$f":"COUNTIF(AQ2:AV2,\"同居老親等\")","v":0},{"$f":"COUNTIF(AQ2:AV2,\"老人扶養親族（同居老親等以外）\")","v":0},{"$f":"COUNTIF(AQ2:AV2,\"一般の扶養親族\")","v":0},null,null,null,null,null,null,null,null,null,null,null,null,null,null,null,null,null,null,null,null,null,null,null,null,null,null,null,null,null,null,null,{"$f":"COUNTIF(CA2:CJ2,\"同居特別障害者\")+COUNTIF(DW2,\"同居特別障害者\")","v":0},{"$f":"COUNTIF(CA2:CJ2,\"特別障害者\")+COUNTIF(DW2,\"特別障害者\")","v":0},{"$f":"COUNTIF(CA2:CJ2,\"その他の障害者\")+COUNTIF(DW2,\"その他の障害者\")","v":0}]
[null,null,null,null,null,null,null,null,null,null,null,null,null,null,null,null,null,null,null,null,null,null,null,null,null,null,null,null,null,null,null,null,null,null,null,null,null,null,null,null,null,null,{"$f":"AQ6*AQ7","v":0},{"$f":"AR6*AR7","v":0},{"$f":"AS6*AS7","v":0},{"$f":"AT6*AT7","v":0},null,null,null,null,null,null,null,null,null,null,null,null,null,null,null,null,null,null,null,null,null,null,null,null,null,null,null,null,null,null,null,{"$f":"BZ6*BZ7","v":0},{"$f":"CA6*CA7","v":0},{"$f":"CB6*CB7","v":0}]
[]
[]
[1,null,null,null,null,null,null,null,null,null,null,null,null,null,0,null,null,null,null,null,null,null,null,null,null,null,null,null,null,null,null,null,null,null,null,null,null,null,null,null,null,null,null,null,null,null,null,null,null,null,null,null,null,null,null,null,null,null,null,null,null,null,null,null,null,null,null,null,null,null,null,null,null,null,null,null,null,null,null,null,null,null,null,null,null,null,null,null,null,null,null,null,null,null,null,null,null,null,0,0,0,0,0,0,0,0,0,0,0]
[2,null,null,null,null,null,null,null,null,null,null,null,null,null,0,null,null,null,null,null,null,null,null,null,null,null,null,null,null,null,null,null,null,null,null,null,null,null,null,null,null,null,null,null,null,null,null,null,null,null,null,null,null,null,null,null,null,null,null,null,null,null,null,null,null,null,null,null,null,null,null,null,null,null,null,null,null,null,null,null,null,null,null,null,null,null,null,null,null,null,null,null,null,null,null,null,null,null,0,0,0,0,0,0,0,0,0,0,0]
[3,null,null,null,null,null,null,null,null,null,null,null,null,null,0,null,null,null,null,null,null,null,null,null,null,null,null,null,null,null,null,null,null,null,null,null,null,null,null,null,null,null,null,null,null,null,null,null,null,null,null,null,null,null,null,null,null,null,null,null,null,null,null,null,null,null,null,null,null,null,null,null,null,null,null,null,null,null,null,null,null,null,null,null,null,null,null,null,null,null,null,null,null,null,null,null,null,null,0,0,0,0,0,0,0,0,0,0,0]
[4,null,null,null,null,null,null,null,null,null,null,null,null,null,0,null,null,null,null,null,null,null,null,null,null,null,null,null,null,null,null,null,null,null,null,null,null,null,null,null,null,null,null,null,null,null,null,null,null,null,null,null,null,null,null,null,null,null,null,null,null,null,null,null,null,null,null,null,null,null,null,null,null,null,null,null,null,null,null,null,null,null,null,null,null,null,null,null,null,null,null,null,null,null,null,null,null,null,0,0,0,0,0,0,0,0,0,0,0]
[5,null,null,null,null,null,null,null,null,null,null,null,null,null,0,null,null,null,null,null,null,null,null,null,null,null,null,null,null,null,null,null,null,null,null,null,null,null,null,null,null,null,null,null,null,null,null,null,null,null,null,null,null,null,null,null,null,null,null,null,null,null,null,null,null,null,null,null,null,null,null,null,null,null,null,null,null,null,null,null,null,null,null,null,null,null,null,null,null,null,null,null,null,null,null,null,null,null,0,0,0,0,0,0,0,0,0,0,0]
[6]
[7]
[8]
[9]
[10,null,null,null,null,null,null,null,null,null,null,null,null,null,0,null,null,null,null,null,null,null,null,null,null,null,null,null,null,null,null,null,null,null,null,null,null,null,null,null,null,null,null,null,null,null,null,null,null,null,null,null,null,null,null,null,null,null,null,null,null,null,null,null,null,null,null,null,null,null,null,null,null,null,null,null,null,null,null,null,null,null,null,null,null,null,null,null,null,null,null,null,null,null,null,null,null,null,0,0,0,0,0,0,0,0,0,0,0]
[11]
[12]
[13]
[14]
[15]
[16]
[17]
[18]
[19]
[20,null,null,null,null,null,null,null,null,null,null,null,null,null,0,null,null,null,null,null,null,null,null,null,null,null,null,null,null,null,null,null,null,null,null,null,null,null,null,null,null,null,null,null,null,null,null,null,null,null,null,null,null,null,null,null,null,null,null,null,null,null,null,null,null,null,null,null,null,null,null,null,null,null,null,null,null,null,null,null,null,null,null,null,null,null,null,null,null,null,null,null,null,null,null,null,null,null,0,0,0,0,0,0,0,0,0,0,0]
[21]
[22]
[23]
[24]
[25]
[26]
[27]
[28]
[29]
[30,null,null,null,null,null,null,null,null,null,null,null,null,null,0,null,null,null,null,null,null,null,null,null,null,null,null,null,null,null,null,null,null,null,null,null,null,null,null,null,null,null,null,null,null,null,null,null,null,null,null,null,null,null,null,null,null,null,null,null,null,null,null,null,null,null,null,null,null,null,null,null,null,null,null,null,null,null,null,null,null,null,null,null,null,null,null,null,null,null,null,null,null,null,null,null,null,null,0,0,0,0,0,0,0,0,0,0,0]
[]
[]
[]
[]
[]
[]
[]
[]
[]
[]
[]
[]
[]
[]
[]
[]
[]
[]
[]
[]
[]
[]
[]
[]
[]
[]
[]
[]
[]
[]
[]
[]
[]
[]
[]
[]
[]
[]
[]
[]
[]
[]
[]
[]
[]
[]
[]
[]
[]
[]
[]
[]
[]
[]
[]
[]
[]
[]
[]
[]
[]
[]
[null,null,null,null,null,null,null,null,null,null,null,null,null,null,null,null,null,null,null,null,null,null,null,null,null,null,null,null,null,null,null,null,null,null,null,null,null,null,null,null,null,null,null,null,null,null,null,null,null,null,null,null,null,null,null,"控除額",null,null,null,null,null,"控除額"]
[null,null,null,null,null,null,null,null,null,null,null,null,null,null,null,null,null,null,null,null,null,null,null,null,null,null,null,null,null,null,null,null,null,null,null,null,null,null,null,null,null,null,null,null,null,null,null,null,null,null,null,null,null,null,null,{"$f":"保険料控除!K2","v":0},null,null,null,null,"地震",{"$f":"保険料控除!H16","v":0}]
[null,null,null,null,null,null,null,null,null,null,null,null,null,null,null,null,null,null,null,null,null,null,null,null,null,null,null,null,null,null,null,null,null,null,null,null,null,null,null,null,null,null,null,null,null,null,null,null,null,null,null,null,null,null,"一般"]
[null,null,null,null,null,null,null,null,null,null,null,null,null,null,null,null,null,null,null,null,null,null,null,null,null,null,null,null,null,null,null,null,null,null,null,null,null,null,null,null,null,null,null,null,null,null,null,null,null,null,null,null,null,null,null,null,null,null,null,null,"旧長期",{"$f":"保険料控除!H18","v":0}]
[]
[null,null,null,null,null,null,null,null,null,null,null,null,null,null,null,null,null,null,null,null,null,null,null,null,null,null,null,null,null,null,null,null,null,null,null,null,null,null,null,null,null,null,null,null,null,null,null,null,null,null,null,null,null,null,"介護",{"$f":"保険料控除!K5","v":0},null,null,null,null,null,{"$f":"MIN(BJ104+BJ106,50000)","v":0}]
[]
[null,null,null,null,null,null,null,null,null,null,null,null,null,null,null,null,null,null,null,null,null,null,null,null,null,null,null,null,null,null,null,null,null,null,null,null,null,null,null,null,null,null,null,null,null,null,null,null,null,null,null,null,null,null,"年金",{"$f":"保険料控除!K10","v":0}]
[]
[]
[]
[null,null,null,null,null,null,null,null,null,null,null,null,null,null,null,null,null,null,null,null,null,null,null,null,null,null,null,null,null,null,null,null,null,null,null,null,null,null,null,null,null,null,null,null,null,null,null,null,null,null,null,null,null,null,"合計",{"$f":"MIN(BD104+BD108+BD110,120000)","v":0}]

{"sheet":"data5","index":5,"n_rows":7,"n_cols":32,"rows_kept":7,"cut":false,"hidden":true,"merged":[[5,28,5,31],[5,2,6,7],[5,22,5,23],[5,24,5,27],[4,22,4,29],[6,24,6,26],[5,10,5,17],[5,8,5,9],[6,28,6,30],[5,18,5,21],[6,18,6,20],[6,10,6,16]]}
[null,"給　　料　　･　　手　　当　　等","賞　　　　　　与　　　　　　等","計","給与所得控除後の給与等の金額","給与等からの控除分（②+⑤）","申告による社会保険料の控除分","申告による小規模企業共済等掛金の控除分","生命保険料の控除額","地震保険料の控除額","配偶者特別控除額","配偶者控除額","扶養控除額","障害者等の控除額","基礎控除額","配偶者控除額、扶養控除額、基礎控除額及び障害者等の控除額の合計額","所得控除額の合計額","差引課税給与所得金額(⑨-⑰)及び算出年税額","給与税額","賞与税額","計","算出年税額","住宅","年調所得税額","年調年税額","超過額又は不足額","超過不足税額","差引還付する金額"]
[null,{"$f":"data3!C4","v":0},{"$f":"data3!AO4","v":0},{"$f":"SUM(B2:C2)","v":0},{"$f":"IF(data2!B2=\"否\",0,給与所得!H29)","v":0},{"$f":"data3!F4+data3!AR4","v":0},{"$f":"IF(data2!B2=\"否\",0,data4!CU2)","v":0},{"$f":"IF(data2!B2=\"否\",0,data4!CX2)","v":0},{"$f":"IF(data2!B2=\"否\",0,data4!BD114)","v":0},{"$f":"IF(data2!B2=\"否\",0,data4!BJ108)","v":0},{"$f":"IF(data2!B2=\"否\",0,data4!O2)","v":0},{"$f":"IF(data2!B2=\"要\",data4!R3+data4!R4,0)","v":0},{"$f":"IF(data2!B2=\"否\",0,SUM(data4!AQ8:AT8))","v":0},{"$f":"IF(data2!B2=\"否\",0,SUM(data4!G3:L3)+SUM(data4!BZ8:CB8))","v":0},{"$f":"IF(data2!B2=\"否\",0,380000)","v":0},{"$f":"IF(data2!B2=\"要\",380000+data4!G3+data4!H3+data4!I3+data4!J3+data4!K3+data4!L3+data4!R3+data4!R4+data4!AQ8+data4!AR8+data4!AS8+data4!AT8+data4!BZ8+data4!CA8+data4!CB8,0)","v":0},{"$f":"IF(data2!B2=\"否\",0,SUM(F2:K2)+P2)","v":0},{"$f":"MAX(ROUNDDOWN(E2-Q2,-3),0)","v":0},{"$f":"data3!X4","v":0},{"$f":"data3!BB4","v":0},{"$f":"SUM(S2:T2)","v":0},{"$f":"税額!G23","v":0},{"$f":"data4!DG2","v":0},{"$f":"MAX(V2-W2,0)","v":0},{"$f":"MAX(ROUNDDOWN(X2*1.021,-2),0)","v":0},{"$f":"IF(data2!B2=\"要\",IF(Y2-U2=0,\"\",IF(Y2-U2>0,\"不足額\",\"超過額\")),\"\")","v":""},{"$f":"IF(data2!B2=\"否\",0,IF(Y2-U2>0,Y2-U2,-(Y2-U2)))","v":0},{"$f":"IF(data5!U2>data5!Y2,data5!AA2-data4!DX2-data4!DY2,\"\")","v":""}]
[]
[]
[null,null,"前年の年末調整に基づき繰り越した過不足金額",null,null,null,null,null,null,null,null,null,null,null,null,null,null,null,null,null,null,null,null,null,null,null,null,null,null,null,null,"円"]
[null,null,"同上の税額につき還付又は徴収した月区分",null,null,null,null,null,"月別",null,"還付又は徴収した税額",null,null,null,null,null,null,null,"差引残高",null,null,null,"月別",null,"還付又は徴収した税額",null,null,null,"差引残高"]
[null,null,null,null,null,null,null,null,null,"月",null,null,null,null,null,null,null,"円",null,null,null,"円",null,"月",null,null,null,"円",null,null,null,"円"]

{"sheet":"源泉徴収簿","index":6,"n_rows":166,"n_cols":108,"rows_kept":166,"cut":false,"hidden":false,"merged":[[136,44,138,48],[130,28,133,34],[112,13,114,19],[130,21,133,26],[130,14,133,20],[103,21,105,26],[112,21,114,26],[116,13,118,19],[151,28,153,34],[130,42,133,49],[137,28,139,34],[137,21,139,26],[137,13,139,19],[103,10,105,10],[121,10,123,10],[94,10,96,10],[103,11,105,12],[107,13,109,19],[67,10,69,10],[76,10,78,10],[85,37,87,38],[151,21,153,26],[151,13,153,19],[144,21,146,26],[144,28,146,34],[137,37,139,38],[94,28,96,34],[72,13,74,19],[67,21,69,26],[38,1,41,4],[31,37,33,38],[40,37,42,38],[31,42,33,49],[40,42,42,49],[76,11,78,12],[85,11,87,12],[67,28,69,34],[76,28,78,34],[85,28,87,34],[67,11,69,12],[40,11,42,12],[40,13,42,19],[58,10,60,10],[49,21,51,26],[63,13,65,19],[45,13,47,19],[89,87,91,93],[98,87,100,93],[103,87,105,93],[93,87,96,93],[85,57,87,62],[65,100,67,107],[114,101,116,107],[130,101,132,107],[134,101,136,107],[72,100,74,106],[79,101,81,106],[89,101,91,106],[98,101,100,106],[112,57,114,62],[121,57,123,62],[130,57,132,62],[134,83,136,89],[108,87,110,93],[114,87,116,93],[2,81,3,87],[2,88,3,95],[8,81,10,81],[8,85,10,85],[8,86,10,87],[8,89,10,90],[8,92,10,93],[5,36,10,73],[1,39,4,41],[22,57,24,62],[22,37,24,38],[22,42,24,49],[1,42,4,45],[8,83,10,84],[8,82,10,82],[4,88,7,95],[4,81,7,87],[157,10,159,10],[157,11,159,12],[157,13,159,19],[144,11,146,12],[144,13,146,19],[112,11,114,12],[121,13,123,19],[121,21,123,26],[121,37,123,38],[151,10,153,10],[151,11,153,12],[137,10,139,10],[137,11,139,12],[144,10,146,10],[121,11,123,12],[112,10,114,10],[157,28,159,34],[164,28,166,34],[145,42,147,49],[152,42,154,49],[164,42,166,49],[155,44,157,48],[158,42,161,49],[149,44,151,48],[164,13,166,19],[144,37,146,38],[151,37,153,38],[157,37,159,38],[164,22,166,27],[157,21,159,26],[164,51,166,54],[20,98,22,102],[49,42,51,49],[58,42,60,49],[67,42,69,49],[76,42,78,49],[85,42,87,49],[94,42,96,49],[121,42,123,49],[139,42,141,49],[84,87,86,93],[142,44,144,48],[79,87,81,93],[103,42,105,49],[112,42,114,49],[118,101,120,107],[123,101,125,107],[144,57,146,62],[160,101,162,107],[165,101,167,107],[151,57,153,62],[157,57,159,62],[164,57,166,62],[134,71,136,77],[147,101,149,107],[151,101,153,107],[156,101,158,107],[137,57,139,62],[138,101,140,107],[143,101,145,107],[137,51,139,55],[144,51,146,55],[130,51,132,54],[151,51,153,55],[157,51,159,55],[94,51,96,55],[85,51,87,55],[76,51,78,55],[94,21,96,26],[125,13,127,19],[76,37,78,38],[103,28,105,34],[112,28,114,34],[121,28,123,34],[94,37,96,38],[103,37,105,38],[112,37,114,38],[85,13,87,19],[90,13,92,19],[93,13,96,19],[99,13,101,19],[103,13,105,19],[85,21,87,26],[76,13,78,19],[81,13,83,19],[76,21,78,26],[121,51,123,55],[112,51,114,55],[103,51,105,55],[27,13,29,19],[31,13,33,19],[67,51,69,55],[58,51,60,55],[49,51,51,55],[22,21,24,26],[40,21,42,26],[31,28,33,34],[22,28,24,34],[40,28,42,34],[36,13,38,19],[22,13,24,19],[49,13,51,19],[58,21,60,26],[54,13,56,19],[58,13,60,19],[31,21,33,26],[40,51,42,55],[31,51,33,55],[22,51,24,55],[67,37,69,38],[49,28,51,34],[58,28,60,34],[67,13,69,19],[40,107,43,109],[45,107,47,109],[60,100,62,107],[38,65,42,67],[43,65,47,67],[49,57,51,62],[58,57,60,62],[67,57,69,62],[76,57,78,62],[40,57,42,62],[25,68,47,105],[31,57,33,62],[55,87,57,93],[60,87,62,93],[65,87,67,93],[70,87,72,93],[75,87,77,93],[20,106,22,110],[2,22,5,31],[85,10,87,10],[94,57,96,62],[103,57,105,62],[5,0,9,4],[0,0,4,4],[12,96,14,102],[20,77,22,78],[20,94,22,95],[20,80,22,84],[20,88,22,92],[49,37,51,38],[58,37,60,38],[22,11,24,12],[31,11,33,12],[49,11,51,12],[58,11,60,12],[22,10,24,10],[31,10,33,10],[40,10,42,10],[49,10,51,10],[55,100,57,107],[94,11,96,12]]}
[{"$f":"IF(data4!F2=\"○\",\"＝\",\"\")","v":""}]
[null,null,null,null,null,null,null,null,null,null,null,null,null,null,null,null,null,null,null,null,null,null,null,null,null,null,null,null,null,null,null,null,null,null,null,null,null,null,null,{"$f":"data2!I2","v":0},null,null,{"$f":"data2!J2","v":0}]
[null,null,null,null,null,null,null,null,null,null,null,null,null,null,null,null,null,null,null,null,null,null,{"$f":"data2!G2","v":0},null,null,null,null,null,null,null,null,null,null,null,null,null,null,null,null,null,null,null,null,null,null,null,null,null,null,null,null,null,null,null,null,null,null,null,null,null,null,null,null,null,null,null,null,null,null,null,null,null,null,null,null,null,null,null,null,null,null,{"$f":"data2!C2","v":0},null,null,null,null,null,null,{"$f":"data2!D2","v":0}]
[]
[null,null,null,null,null,null,null,null,null,null,null,null,null,null,null,null,null,null,null,null,null,null,null,null,null,null,null,null,null,null,null,null,null,null,null,null,null,null,null,null,null,null,null,null,null,null,null,null,null,null,null,null,null,null,null,null,null,null,null,null,null,null,null,null,null,null,null,null,null,null,null,null,null,null,null,null,null,null,null,null,null,{"$f":"data2!E2","v":0},null,null,null,null,null,null,{"$f":"data2!F2","v":0}]
[{"$f":"IF(data4!F2=\"○\",\"\",\"＝\")","v":"＝"},null,null,null,null,null,null,null,null,null,null,null,null,null,null,null,null,null,null,null,null,null,null,null,null,null,null,null,null,null,null,null,null,null,null,null,{"$f":"data2!K2","v":0}]
[]
[]
[null,null,null,null,null,null,null,null,null,null,null,null,null,null,null,null,null,null,null,null,null,null,null,null,null,null,null,null,null,null,null,null,null,null,null,null,null,null,null,null,null,null,null,null,null,null,null,null,null,null,null,null,null,null,null,null,null,null,null,null,null,null,null,null,null,null,null,null,null,null,null,null,null,null,null,null,null,null,null,null,null,{"$f":"data2!Y2","v":0},{"$f":"data2!Z2","v":0},{"$f":"data2!AA2","v":0},null,{"$f":"data2!AB2","v":0},{"$f":"data2!O2","v":0},null,null,{"$f":"data2!P2","v":0},null,null,{"$f":"data2!Q2","v":0}]
[]
[]
[]
[null,null,null,null,null,null,null,null,null,null,null,null,null,null,null,null,null,null,null,null,null,null,null,null,null,null,null,null,null,null,null,null,null,null,null,null,null,null,null,null,null,null,null,null,null,null,null,null,null,null,null,null,null,null,null,null,null,null,null,null,null,null,null,null,null,null,null,null,null,null,null,null,null,null,null,null,null,null,null,null,null,null,null,null,null,null,null,null,null,null,null,null,null,null,null,null,{"$f":"data5!W5","v":0}]
[]
[]
[]
[]
[]
[]
[]
[null,null,null,null,null,null,null,null,null,null,null,null,null,null,null,null,null,null,null,null,null,null,null,null,null,null,null,null,null,null,null,null,null,null,null,null,null,null,null,null,null,null,null,null,null,null,null,null,null,null,null,null,null,null,null,null,null,null,null,null,null,null,null,null,null,null,null,null,null,null,null,null,null,null,null,null,null,{"$f":"data5!I7","v":0},null,null,{"$f":"data5!K7","v":0},null,null,null,null,null,null,null,{"$f":"data5!S7","v":0},null,null,null,null,null,{"$f":"data5!W7","v":0},null,null,null,{"$f":"data5!Y7","v":0},null,null,null,null,null,null,null,{"$f":"data5!AC7","v":0}]
[]
[null,null,null,null,null,null,null,null,null,null,{"$f":"data3!B2","v":"1"},{"$f":"data3!R2","v":0},null,{"$f":"data3!AH2+data3!AT2","v":0},null,null,null,null,null,null,null,{"$f":"data3!AY2+data3!BK2","v":0},null,null,null,null,null,null,{"$f":"data3!I4+data3!AT2-data3!BK2","v":0},null,null,null,null,null,null,null,null,{"$f":"data3!BP2","v":0},null,null,null,null,{"$f":"data3!CJ2+data3!CV2","v":0},null,null,null,null,null,null,null,null,{"$f":"data3!DA2","v":0},null,null,null,null,null,{"$f":"data3!AA4","v":0}]
[]
[]
[null,null,null,null,null,null,null,null,null,null,null,null,null,null,null,null,null,null,null,null,null,null,null,null,null,null,null,null,null,null,null,null,null,null,null,null,null,null,null,null,null,null,null,null,null,null,null,null,null,null,null,null,null,null,null,null,null,null,null,null,null,null,null,null,null,null,null,null,{"$f":"IF(ライセンス2!D8=\"ok\",\"\",\"ＳＡＭＰＬＥ　　　　　　　　　ライセンスシート参照\")","v":"ＳＡＭＰＬＥ　　　　　　　　　ライセンスシート参照"}]
[]
[]
[]
[]
[]
[null,null,null,null,null,null,null,null,null,null,{"$f":"data3!C2","v":"2"},{"$f":"data3!S2","v":0},null,{"$f":"data3!AI2","v":0},null,null,null,null,null,null,null,{"$f":"data3!AZ2","v":0},{"$f":"data3!AZ2","v":0},null,null,null,null,null,{"$f":"data3!J4","v":0},null,null,null,null,null,null,null,null,{"$f":"data3!BQ2","v":0},null,null,null,null,{"$f":"data3!CK2","v":0},null,null,null,null,null,null,null,null,{"$f":"data3!DB2","v":0},null,null,null,null,null,{"$f":"data3!AB4","v":0}]
[]
[]
[]
[]
[]
[]
[null,30,null,null,null,null,null,null,null,null,null,null,null,null,null,null,null,null,null,null,null,null,null,null,null,null,null,null,null,null,null,null,null,null,null,null,null,null,null,null,null,null,null,null,null,null,null,null,null,null,null,null,null,null,null,null,null,null,null,null,null,null,null,null,null,{"$f":"IF(data2!AC2=\"有\",\"○\",\"\")","v":""}]
[]
[null,null,null,null,null,null,null,null,null,null,{"$f":"data3!D2","v":"3"},{"$f":"data3!T2","v":0},null,{"$f":"data3!AJ2","v":0},null,null,null,null,null,null,null,{"$f":"data3!BA2","v":0},{"$f":"data3!BA2","v":0},null,null,null,null,null,{"$f":"data3!K4","v":0},null,null,null,null,null,null,null,null,{"$f":"data3!BR2","v":0},null,null,null,null,{"$f":"data3!CL2","v":0},null,null,null,null,null,null,null,null,{"$f":"data3!DC2","v":0},null,null,null,null,null,{"$f":"data3!AC4","v":0},null,null,null,null,null,null,null,null,null,null,null,null,null,null,null,null,null,null,null,null,null,null,null,null,null,null,null,null,null,null,null,null,null,null,null,null,null,null,null,null,null,null,null,null,null,null,null,null,null,{"$f":"IF(data4!M2=\"有\",\"○\",\"\")","v":""}]
[]
[]
[null,null,null,null,null,null,null,null,null,null,null,null,null,null,null,null,null,null,null,null,null,null,null,null,null,null,null,null,null,null,null,null,null,null,null,null,null,null,null,null,null,null,null,null,null,null,null,null,null,null,null,null,null,null,null,null,null,null,null,null,null,null,null,null,null,{"$f":"IF(data2!AC2=\"無\",\"○\",\"\")","v":""}]
[]
[null,null,null,null,null,null,null,null,null,null,null,null,null,null,null,null,null,null,null,null,null,null,null,null,null,null,null,null,null,null,null,null,null,null,null,null,null,null,null,null,null,null,null,null,null,null,null,null,null,null,null,null,null,null,null,null,null,null,null,null,null,null,null,null,null,null,null,null,null,null,null,null,null,null,null,null,null,null,null,null,null,null,null,null,null,null,null,null,null,null,null,null,null,null,null,null,null,null,null,null,null,null,null,null,null,null,null,{"$f":"IF(data4!M2=\"無\",\"○\",\"\")","v":""}]
[]
[]
[]
[null,null,null,null,null,null,null,null,null,null,{"$f":"data3!E2","v":"4"},{"$f":"data3!U2","v":0},null,{"$f":"data3!AK2","v":0},null,null,null,null,null,null,null,{"$f":"data3!BB2","v":0},{"$f":"data3!BB2","v":0},null,null,null,null,null,{"$f":"data3!L4","v":0},null,null,null,null,null,null,null,null,{"$f":"data3!BS2","v":0},null,null,null,null,{"$f":"data3!CM2","v":0},null,null,null,null,null,null,null,null,{"$f":"data3!DD2","v":0},null,null,null,null,null,{"$f":"data3!AD4","v":0}]
[]
[]
[]
[]
[]
[null,null,null,null,null,null,null,null,null,null,null,null,null,null,null,null,null,null,null,null,null,null,null,null,null,null,null,null,null,null,null,null,null,null,null,null,null,null,null,null,null,null,null,null,null,null,null,null,null,null,null,null,null,null,null,null,null,null,null,null,null,null,null,null,null,null,null,null,null,null,null,null,null,null,null,null,null,null,null,null,null,null,null,null,null,null,null,{"$f":"data5!B2","v":0},null,null,null,null,null,null,null,null,null,null,null,null,{"$f":"data5!S2","v":0}]
[]
[]
[null,null,null,null,null,null,null,null,null,null,{"$f":"data3!F2","v":"5"},{"$f":"data3!V2","v":0},null,{"$f":"data3!AL2","v":0},null,null,null,null,null,null,null,{"$f":"data3!BC2","v":0},{"$f":"data3!BC2","v":0},null,null,null,null,null,{"$f":"data3!M4","v":0},null,null,null,null,null,null,null,null,{"$f":"data3!BT2","v":0},null,null,null,null,{"$f":"data3!CN2","v":0},null,null,null,null,null,null,null,null,{"$f":"data3!DE2","v":0},null,null,null,null,null,{"$f":"data3!AE4","v":0}]
[]
[null,null,null,null,null,null,null,null,null,null,null,null,null,null,null,null,null,null,null,null,null,null,null,null,null,null,null,null,null,null,null,null,null,null,null,null,null,null,null,null,null,null,null,null,null,null,null,null,null,null,null,null,null,null,null,null,null,null,null,null,null,null,null,null,null,null,null,null,null,null,null,null,null,null,null,null,null,null,null,null,null,null,null,null,null,null,null,{"$f":"data5!C2","v":0},null,null,null,null,null,null,null,null,null,null,null,null,{"$f":"data5!T2","v":0}]
[]
[]
[]
[]
[null,null,null,null,null,null,null,null,null,null,null,null,null,null,null,null,null,null,null,null,null,null,null,null,null,null,null,null,null,null,null,null,null,null,null,null,null,null,null,null,null,null,null,null,null,null,null,null,null,null,null,null,null,null,null,null,null,null,null,null,null,null,null,null,null,null,null,null,null,null,null,null,null,null,null,null,null,null,null,null,null,null,null,null,null,null,null,{"$f":"data5!D2","v":0},null,null,null,null,null,null,null,null,null,null,null,null,{"$f":"data5!U2","v":0}]
[]
[null,null,null,null,null,null,null,null,null,null,{"$f":"data3!G2","v":"6"},{"$f":"data3!W2","v":0},null,{"$f":"data3!AM2","v":0},null,null,null,null,null,null,null,{"$f":"data3!BD2","v":0},{"$f":"data3!BD2","v":0},null,null,null,null,null,{"$f":"data3!N4","v":0},null,null,null,null,null,null,null,null,{"$f":"data3!BU2","v":0},null,null,null,null,{"$f":"data3!CO2","v":0},null,null,null,null,null,null,null,null,{"$f":"data3!DF2","v":0},null,null,null,null,null,{"$f":"data3!AF4","v":0}]
[]
[]
[null,null,null,null,null,null,null,null,null,null,null,null,null,null,null,null,null,null,null,null,null,null,null,null,null,null,null,null,null,null,null,null,null,null,null,null,null,null,null,null,null,null,null,null,null,null,null,null,null,null,null,null,null,null,null,null,null,null,null,null,null,null,null,null,null,null,null,null,null,null,null,null,null,null,null,null,null,null,null,null,null,null,null,null,null,null,null,{"$f":"IF(data2!B2=\"要\",data5!E2,\"\")","v":""}]
[]
[null,null,null,null,null,null,null,null,null,null,null,null,null,null,null,null,null,null,null,null,null,null,null,null,null,null,null,null,null,null,null,null,null,null,null,null,null,null,null,null,null,null,null,null,null,null,null,null,null,null,null,null,null,null,null,null,null,null,null,null,null,null,null,null,null,null,null,null,null,null,null,null,null,null,null,null,null,null,null,null,null,null,null,null,null,null,null,null,null,null,null,null,null,null,null,null,null,null,null,null,{"$f":"data4!N2","v":0}]
[]
[]
[null,null,null,null,null,null,null,null,null,null,null,null,null,null,null,null,null,null,null,null,null,null,null,null,null,null,null,null,null,null,null,null,null,null,null,null,null,null,null,null,null,null,null,null,null,null,null,null,null,null,null,null,null,null,null,null,null,null,null,null,null,null,null,null,null,null,null,null,null,null,null,null,null,null,null,null,null,null,null,null,null,null,null,null,null,null,null,{"$f":"data5!F2","v":0}]
[null,null,null,null,null,null,null,null,null,null,{"$f":"data3!H2","v":"7"},{"$f":"data3!X2","v":0},null,{"$f":"data3!AN2","v":0},null,null,null,null,null,null,null,{"$f":"data3!BE2","v":0},{"$f":"data3!BE2","v":0},null,null,null,null,null,{"$f":"data3!O4","v":0},null,null,null,null,null,null,null,null,{"$f":"data3!BV2","v":0},null,null,null,null,{"$f":"data3!CP2","v":0},null,null,null,null,null,null,null,null,{"$f":"data3!DG2","v":0},null,null,null,null,null,{"$f":"data3!AG4","v":0}]
[]
[]
[null,null,null,null,null,null,null,null,null,null,null,null,null,null,null,null,null,null,null,null,null,null,null,null,null,null,null,null,null,null,null,null,null,null,null,null,null,null,null,null,null,null,null,null,null,null,null,null,null,null,null,null,null,null,null,null,null,null,null,null,null,null,null,null,null,null,null,null,null,null,null,null,null,null,null,null,null,null,null,null,null,null,null,null,null,null,null,{"$f":"data5!G2","v":0},null,null,null,null,null,null,null,null,null,null,null,null,null,{"$f":"data4!DE2","v":0}]
[]
[]
[]
[]
[null,null,null,null,null,null,null,null,null,null,null,null,null,null,null,null,null,null,null,null,null,null,null,null,null,null,null,null,null,null,null,null,null,null,null,null,null,null,null,null,null,null,null,null,null,null,null,null,null,null,null,null,null,null,null,null,null,null,null,null,null,null,null,null,null,null,null,null,null,null,null,null,null,null,null,null,null,null,null,null,null,null,null,null,null,null,null,{"$f":"data5!H2","v":0}]
[null,null,null,null,null,null,null,null,null,null,{"$f":"data3!I2","v":"8"},{"$f":"data3!Y2","v":0},null,{"$f":"data3!AO2","v":0},null,null,null,null,null,null,null,{"$f":"data3!BF2","v":0},{"$f":"data3!BF2","v":0},null,null,null,null,null,{"$f":"data3!P4","v":0},null,null,null,null,null,null,null,null,{"$f":"data3!BW2","v":0},null,null,null,null,{"$f":"data3!CQ2","v":0},null,null,null,null,null,null,null,null,{"$f":"data3!DH2","v":0},null,null,null,null,null,{"$f":"data3!AH4","v":0}]
[]
[]
[]
[null,null,null,null,null,null,null,null,null,null,null,null,null,null,null,null,null,null,null,null,null,null,null,null,null,null,null,null,null,null,null,null,null,null,null,null,null,null,null,null,null,null,null,null,null,null,null,null,null,null,null,null,null,null,null,null,null,null,null,null,null,null,null,null,null,null,null,null,null,null,null,null,null,null,null,null,null,null,null,null,null,null,null,null,null,null,null,{"$f":"data5!I2","v":0},null,null,null,null,null,null,null,null,null,null,null,null,null,{"$f":"data4!CW2","v":0}]
[]
[]
[]
[null,null,null,null,null,null,null,null,null,null,null,null,null,{"$f":"data3!AP2","v":0},null,null,null,null,null,null,null,null,null,null,null,null,null,null,null,null,null,null,null,null,null,null,null,null,null,null,null,null,null,null,null,null,null,null,null,null,null,null,null,null,null,null,null,null,null,null,null,null,null,null,null,null,null,null,null,null,null,null,null,null,null,null,null,null,null,null,null,null,null,null,null,null,null,{"$f":"data5!J2","v":0}]
[null,null,null,null,null,null,null,null,null,null,{"$f":"data3!J2","v":"9"},{"$f":"data3!Z2","v":0},null,null,null,null,null,null,null,null,null,{"$f":"data3!BG2","v":0},{"$f":"data3!BG2","v":0},null,null,null,null,null,{"$f":"data3!Q4","v":0},null,null,null,null,null,null,null,null,{"$f":"data3!BX2","v":0},null,null,null,null,{"$f":"data3!CR2","v":0},null,null,null,null,null,null,null,null,{"$f":"data3!DI2","v":0},null,null,null,null,null,{"$f":"data3!AI4","v":0}]
[]
[]
[]
[null,null,null,null,null,null,null,null,null,null,null,null,null,null,null,null,null,null,null,null,null,null,null,null,null,null,null,null,null,null,null,null,null,null,null,null,null,null,null,null,null,null,null,null,null,null,null,null,null,null,null,null,null,null,null,null,null,null,null,null,null,null,null,null,null,null,null,null,null,null,null,null,null,null,null,null,null,null,null,null,null,null,null,null,null,null,null,{"$f":"data5!K2","v":0},null,null,null,null,null,null,null,null,null,null,null,null,null,{"$f":"data4!CV2","v":0}]
[]
[]
[]
[]
[null,null,null,null,null,null,null,null,null,null,{"$f":"data3!K2","v":"10"},{"$f":"data3!AA2","v":0},null,{"$f":"data3!AQ2","v":0},null,null,null,null,null,null,null,{"$f":"data3!BH2","v":0},{"$f":"data3!BH2","v":0},null,null,null,null,null,{"$f":"data3!R4","v":0},null,null,null,null,null,null,null,null,{"$f":"data3!BY2","v":0},null,null,null,null,{"$f":"data3!CS2","v":0},null,null,null,null,null,null,null,null,{"$f":"data3!DJ2","v":0},null,null,null,null,null,{"$f":"data3!AJ4","v":0},null,null,null,null,null,null,null,null,null,null,null,null,null,null,null,null,null,null,null,null,null,null,null,null,null,null,null,null,null,{"$f":"data5!P2","v":0}]
[]
[]
[]
[]
[null,null,null,null,null,null,null,null,null,null,null,null,null,null,null,null,null,null,null,null,null,null,null,null,null,null,null,null,null,null,null,null,null,null,null,null,null,null,null,null,null,null,null,null,null,null,null,null,null,null,null,null,null,null,null,null,null,null,null,null,null,null,null,null,null,null,null,null,null,null,null,null,null,null,null,null,null,null,null,null,null,null,null,null,null,null,null,{"$f":"data5!Q2","v":0}]
[]
[]
[]
[null,null,null,null,null,null,null,null,null,null,{"$f":"data3!L2","v":"11"},{"$f":"data3!AB2","v":0},null,{"$f":"data3!AR2","v":0},null,null,null,null,null,null,null,{"$f":"data3!BI2","v":0},{"$f":"data3!BI2","v":0},null,null,null,null,null,{"$f":"data3!S4","v":0},null,null,null,null,null,null,null,null,{"$f":"data3!BZ2","v":0},null,null,null,null,{"$f":"data3!CT2","v":0},null,null,null,null,null,null,null,null,{"$f":"data3!DK2","v":0},null,null,null,null,null,{"$f":"data3!AK4","v":0}]
[]
[null,null,null,null,null,null,null,null,null,null,null,null,null,null,null,null,null,null,null,null,null,null,null,null,null,null,null,null,null,null,null,null,null,null,null,null,null,null,null,null,null,null,null,null,null,null,null,null,null,null,null,null,null,null,null,null,null,null,null,null,null,null,null,null,null,null,null,null,null,null,null,null,null,null,null,null,null,null,null,null,null,null,null,null,null,null,null,{"$f":"IF(data2!B2=\"要\",data5!R2,\"\")","v":""},null,null,null,null,null,null,null,null,null,null,null,null,null,{"$f":"IF(data2!B2=\"要\",data5!V2,\"\")","v":""}]
[]
[]
[]
[null,null,null,null,null,null,null,null,null,null,null,null,null,null,null,null,null,null,null,null,null,null,null,null,null,null,null,null,null,null,null,null,null,null,null,null,null,null,null,null,null,null,null,null,null,null,null,null,null,null,null,null,null,null,null,null,null,null,null,null,null,null,null,null,null,null,null,null,null,null,null,null,null,null,null,null,null,null,null,null,null,null,null,null,null,null,null,null,null,null,null,null,null,null,null,null,null,null,null,null,null,{"$f":"data5!W2","v":0}]
[]
[]
[null,null,null,null,null,null,null,null,null,null,{"$f":"data3!M2","v":"12"},{"$f":"data3!AC2","v":0},null,{"$f":"data3!AS2","v":0},null,null,null,null,null,null,null,{"$f":"data3!BJ2","v":0},{"$f":"data3!BJ2","v":0},null,null,null,null,null,{"$f":"data3!T4","v":0},null,null,null,null,null,null,null,null,{"$f":"data3!CA2","v":0},null,null,null,null,{"$f":"data3!CU2","v":0},null,null,null,null,null,null,null,null,{"$f":"data3!DL2","v":0},null,null,null,null,null,{"$f":"data3!AL4","v":0}]
[]
[null,null,null,null,null,null,null,null,null,null,null,null,null,null,null,null,null,null,null,null,null,null,null,null,null,null,null,null,null,null,null,null,null,null,null,null,null,null,null,null,null,null,null,null,null,null,null,null,null,null,null,null,null,null,null,null,null,null,null,null,null,null,null,null,null,null,null,null,null,null,null,null,null,null,null,null,null,null,null,null,null,null,null,null,null,null,null,null,null,null,null,null,null,null,null,null,null,null,null,null,null,{"$f":"data5!X2","v":0}]
[]
[]
[]
[]
[]
[]
[null,null,null,null,null,null,null,null,null,null,null,null,null,null,{"$f":"data3!C4","v":0},null,null,null,null,null,null,{"$f":"data3!F4","v":0},null,null,null,null,null,null,{"$f":"data3!U4","v":0},null,null,null,null,null,null,null,null,null,null,null,null,null,{"$f":"data3!X4","v":0},null,null,null,null,null,null,null,null,null,null,null,null,null,null,null,null,null,null,null,null,null,null,null,null,null,null,null,null,null,null,null,null,null,null,null,null,null,null,null,null,null,null,null,null,null,null,null,null,null,null,null,null,null,null,null,null,null,null,{"$f":"data5!Y2","v":0}]
[]
[]
[]
[null,null,null,null,null,null,null,null,null,null,null,null,null,null,null,null,null,null,null,null,null,null,null,null,null,null,null,null,null,null,null,null,null,null,null,null,null,null,null,null,null,null,null,null,null,null,null,null,null,null,null,null,null,null,null,null,null,null,null,null,null,null,null,null,null,null,null,null,null,null,null,{"$f":"IF(data5!Z2=\"不足額\",\"　　　　　　　　　\",\"\")","v":""},null,null,null,null,null,null,null,null,null,null,null,{"$f":"IF(data5!Z2=\"超過額\",\"　　　　　　　　　\",\"\")","v":""},null,null,null,null,null,null,null,null,null,null,null,null,null,null,null,null,null,{"$f":"data5!AA2","v":0}]
[]
[null,null,null,null,null,null,null,null,null,null,null,null,null,null,null,null,null,null,null,null,null,null,null,null,null,null,null,null,null,null,null,null,null,null,null,null,null,null,null,null,null,null,null,null,{"$f":"data3!CF2","v":0}]
[null,null,null,null,null,null,null,null,null,null,{"$f":"data3!N2","v":0},{"$f":"data3!AD2","v":0},null,{"$f":"data3!AU2","v":0},null,null,null,null,null,null,null,{"$f":"data3!BL2","v":0},null,null,null,null,null,null,{"$f":"data3!AU4","v":0},null,null,null,null,null,null,null,null,{"$f":"data3!CB2","v":0},null,null,null,null,null,null,null,null,null,null,null,null,null,{"$f":"data3!DM2","v":0},null,null,null,null,null,{"$f":"data3!BE4","v":0}]
[null,null,null,null,null,null,null,null,null,null,null,null,null,null,null,null,null,null,null,null,null,null,null,null,null,null,null,null,null,null,null,null,null,null,null,null,null,null,null,null,null,null,null,null,null,null,null,null,null,null,null,null,null,null,null,null,null,null,null,null,null,null,null,null,null,null,null,null,null,null,null,null,null,null,null,null,null,null,null,null,null,null,null,null,null,null,null,null,null,null,null,null,null,null,null,null,null,null,null,null,null,{"$f":"data4!DX2","v":0}]
[null,null,null,null,null,null,null,null,null,null,null,null,null,null,null,null,null,null,null,null,null,null,null,null,null,null,null,null,null,null,null,null,null,null,null,null,null,null,null,null,null,null,{"$f":"data3!CW2","v":0}]
[]
[]
[null,null,null,null,null,null,null,null,null,null,null,null,null,null,null,null,null,null,null,null,null,null,null,null,null,null,null,null,null,null,null,null,null,null,null,null,null,null,null,null,null,null,null,null,{"$f":"data3!CG2","v":0}]
[null,null,null,null,null,null,null,null,null,null,null,null,null,null,null,null,null,null,null,null,null,null,null,null,null,null,null,null,null,null,null,null,null,null,null,null,null,null,null,null,null,null,null,null,null,null,null,null,null,null,null,null,null,null,null,null,null,null,null,null,null,null,null,null,null,null,null,null,null,null,null,null,null,null,null,null,null,null,null,null,null,null,null,null,null,null,null,null,null,null,null,null,null,null,null,null,null,null,null,null,null,{"$f":"data4!DY2","v":0}]
[null,null,null,null,null,null,null,null,null,null,{"$f":"data3!O2","v":0},{"$f":"data3!AE2","v":0},null,{"$f":"data3!AV2","v":0},null,null,null,null,null,null,null,{"$f":"data3!BM2","v":0},null,null,null,null,null,null,{"$f":"data3!AV4","v":0},null,null,null,null,null,null,null,null,{"$f":"data3!CC2","v":0},null,null,null,null,null,null,null,null,null,null,null,null,null,{"$f":"data3!DN2","v":0},null,null,null,null,null,{"$f":"data3!BF4","v":0}]
[null,null,null,null,null,null,null,null,null,null,null,null,null,null,null,null,null,null,null,null,null,null,null,null,null,null,null,null,null,null,null,null,null,null,null,null,null,null,null,null,null,null,{"$f":"data3!CX2","v":0}]
[]
[null,null,null,null,null,null,null,null,null,null,null,null,null,null,null,null,null,null,null,null,null,null,null,null,null,null,null,null,null,null,null,null,null,null,null,null,null,null,null,null,null,null,null,null,null,null,null,null,null,null,null,null,null,null,null,null,null,null,null,null,null,null,null,null,null,null,null,null,null,null,null,null,null,null,null,null,null,null,null,null,null,null,null,null,null,null,null,null,null,null,null,null,null,null,null,null,null,null,null,null,null,{"$f":"data5!AB2","v":""}]
[]
[null,null,null,null,null,null,null,null,null,null,null,null,null,null,null,null,null,null,null,null,null,null,null,null,null,null,null,null,null,null,null,null,null,null,null,null,null,null,null,null,null,null,null,null,{"$f":"data3!CH2","v":0}]
[]
[null,null,null,null,null,null,null,null,null,null,{"$f":"data3!P2","v":0},{"$f":"data3!AF2","v":0},null,{"$f":"data3!AW2","v":0},null,null,null,null,null,null,null,{"$f":"data3!BN2","v":0},null,null,null,null,null,null,{"$f":"data3!AW4","v":0},null,null,null,null,null,null,null,null,{"$f":"data3!CD2","v":0},null,null,null,null,null,null,null,null,null,null,null,null,null,{"$f":"data3!DO2","v":0},null,null,null,null,null,{"$f":"data3!BG4","v":0},null,null,null,null,null,null,null,null,null,null,null,null,null,null,null,null,null,null,null,null,null,null,null,null,null,null,null,null,null,null,null,null,null,null,null,null,null,null,null,null,null,null,null,{"$f":"data4!DZ2","v":0}]
[null,null,null,null,null,null,null,null,null,null,null,null,null,null,null,null,null,null,null,null,null,null,null,null,null,null,null,null,null,null,null,null,null,null,null,null,null,null,null,null,null,null,{"$f":"data3!CY2","v":0}]
[]
[]
[null,null,null,null,null,null,null,null,null,null,null,null,null,null,null,null,null,null,null,null,null,null,null,null,null,null,null,null,null,null,null,null,null,null,null,null,null,null,null,null,null,null,null,null,{"$f":"data3!CI2","v":0}]
[null,null,null,null,null,null,null,null,null,null,null,null,null,null,null,null,null,null,null,null,null,null,null,null,null,null,null,null,null,null,null,null,null,null,null,null,null,null,null,null,null,null,null,null,null,null,null,null,null,null,null,null,null,null,null,null,null,null,null,null,null,null,null,null,null,null,null,null,null,null,null,null,null,null,null,null,null,null,null,null,null,null,null,null,null,null,null,null,null,null,null,null,null,null,null,null,null,null,null,null,null,{"$f":"data4!EA2","v":0}]
[null,null,null,null,null,null,null,null,null,null,{"$f":"data3!Q2","v":0},{"$f":"data3!AG2","v":0},null,{"$f":"data3!AX2","v":0},null,null,null,null,null,null,null,{"$f":"data3!BO2","v":0},null,null,null,null,null,null,{"$f":"data3!AX4","v":0},null,null,null,null,null,null,null,null,{"$f":"data3!CE2","v":0},null,null,null,null,null,null,null,null,null,null,null,null,null,{"$f":"data3!DP2","v":0},null,null,null,null,null,{"$f":"data3!BH4","v":0}]
[null,null,null,null,null,null,null,null,null,null,null,null,null,null,null,null,null,null,null,null,null,null,null,null,null,null,null,null,null,null,null,null,null,null,null,null,null,null,null,null,null,null,{"$f":"data3!CZ2","v":0}]
[]
[null,null,null,null,null,null,null,null,null,null,null,null,null,null,null,null,null,null,null,null,null,null,null,null,null,null,null,null,null,null,null,null,null,null,null,null,null,null,null,null,null,null,null,null,null,null,null,null,null,null,null,null,null,null,null,null,null,null,null,null,null,null,null,null,null,null,null,null,null,null,null,null,null,null,null,null,null,null,null,null,null,null,null,null,null,null,null,null,null,null,null,null,null,null,null,null,null,null,null,null,null,{"$f":"data4!EB2","v":0}]
[]
[]
[]
[null,null,null,null,null,null,null,null,null,null,null,null,null,{"$f":"data3!AO4","v":0},null,null,null,null,null,null,null,null,{"$f":"data3!AR4","v":0},null,null,null,null,null,{"$f":"data3!AY4","v":0},null,null,null,null,null,null,null,null,null,null,null,null,null,{"$f":"data3!BB4","v":0}]
[null,null,null,null,null,null,null,null,null,null,null,null,null,null,null,null,null,null,null,null,null,null,null,null,null,null,null,null,null,null,null,null,null,null,null,null,null,null,null,null,null,null,null,null,null,null,null,null,null,null,null,null,null,null,null,null,null,null,null,null,null,null,null,null,null,null,null,null,null,null,null,null,null,null,null,null,null,null,null,null,null,null,null,null,null,null,null,null,null,null,null,null,null,null,null,null,null,null,null,null,null,{"$f":"data4!EC2","v":0}]

{"sheet":"徴収票印刷（カラー）","index":7,"n_rows":116,"n_cols":131,"rows_kept":116,"cut":false,"hidden":false,"merged":[[66,121,66,130],[66,55,66,64],[4,46,4,54],[5,45,5,54],[4,112,4,120],[5,111,5,120],[65,112,65,120],[66,111,66,120],[65,46,65,54],[66,45,66,54],[0,15,0,28],[0,81,0,94],[111,107,111,109],[109,122,110,124],[104,103,104,117],[98,103,98,117],[98,118,99,119],[98,120,99,122],[99,98,99,102],[99,103,99,117],[98,98,98,102],[92,113,92,118],[92,119,94,124],[92,125,92,130],[90,119,90,130],[87,124,87,130],[72,115,72,122],[111,29,111,31],[111,32,111,34],[111,35,111,37],[111,82,112,84],[111,85,112,87],[111,1,112,3],[111,4,112,5],[111,6,112,7],[111,8,112,9],[111,10,112,12],[111,13,112,15],[111,16,112,18],[111,19,112,21],[111,22,112,24],[111,25,112,26],[111,27,112,28],[111,44,112,46],[111,47,112,49],[111,50,112,52],[111,53,112,55],[111,56,112,58],[111,59,112,61],[10,10,11,12],[16,17,16,32],[16,33,16,48],[16,49,16,64],[13,29,15,32],[13,23,15,26],[12,23,12,26],[111,62,112,64],[112,29,112,31],[112,32,112,34],[112,35,112,37],[112,38,112,40],[112,41,112,43],[50,44,51,46],[50,47,51,49],[50,50,51,52],[50,53,51,55],[50,56,51,58],[50,59,51,61],[50,62,51,64],[107,27,110,28],[104,54,105,56],[107,29,108,43],[107,44,108,64],[98,37,98,51],[74,29,76,32],[74,33,76,36],[74,39,76,42],[74,13,76,22],[74,23,76,26],[74,27,76,28],[35,57,35,59],[111,91,112,92],[111,93,112,94],[111,110,112,112],[42,70,42,94],[16,83,16,98],[30,93,30,96],[30,97,30,100],[13,57,15,60],[13,39,15,42],[40,24,41,25],[50,67,51,69],[50,70,51,71],[50,72,51,73],[101,92,102,94],[111,66,115,66],[111,67,112,69],[111,70,112,71],[111,72,112,73],[111,74,112,75],[104,69,106,69],[104,70,104,74],[104,75,104,89],[91,76,91,82],[111,76,112,78],[102,98,102,102],[101,97,103,97],[101,98,101,102],[101,103,101,117],[111,113,112,115],[111,116,112,118],[104,26,105,28],[104,31,106,31],[111,122,112,124],[111,125,112,127],[111,128,112,130],[112,95,112,97],[112,98,112,100],[112,101,112,103],[112,104,112,106],[112,107,112,109],[4,55,4,64],[4,121,4,130],[65,55,65,64],[65,121,65,130],[115,10,115,46],[115,47,115,49],[115,76,115,112],[115,113,115,115],[113,67,115,68],[113,69,113,75],[113,76,113,77],[113,78,113,85],[113,86,113,93],[113,94,113,101],[114,10,114,64],[114,69,114,75],[114,76,114,130],[115,69,115,75],[111,95,111,97],[111,98,111,100],[111,101,111,103],[111,104,111,106],[111,79,112,81],[111,88,112,90],[50,119,51,121],[50,122,51,124],[50,125,51,127],[50,128,51,130],[51,95,51,97],[101,90,102,91],[108,79,110,81],[107,79,107,84],[109,101,110,103],[111,0,115,0],[113,1,115,2],[113,3,113,9],[113,10,113,11],[113,12,113,19],[113,20,113,27],[113,28,113,35],[114,3,114,9],[115,3,115,9],[108,13,110,15],[108,16,110,18],[108,19,110,21],[108,22,110,24],[111,38,111,40],[111,41,111,43],[107,1,110,3],[107,4,110,5],[107,6,110,7],[107,8,110,9],[107,10,110,12],[107,13,107,18],[107,19,107,24],[107,25,110,26],[109,125,110,127],[109,128,110,130],[109,29,110,31],[109,32,110,34],[109,35,110,37],[109,38,110,40],[109,41,110,43],[109,44,110,46],[109,47,110,49],[109,50,110,52],[109,53,110,55],[109,56,110,58],[109,59,110,61],[109,62,110,64],[109,95,110,97],[109,98,110,100],[107,85,107,90],[107,91,110,92],[107,93,110,94],[107,74,110,75],[109,113,110,115],[107,76,110,78],[107,72,110,73],[107,95,108,109],[109,104,110,106],[109,107,110,109],[107,67,110,69],[108,82,110,84],[109,116,110,118],[109,119,110,121],[108,85,110,87],[108,88,110,90],[111,119,112,121],[107,110,108,130],[102,70,102,74],[102,4,102,8],[102,9,102,23],[102,32,102,36],[103,4,103,8],[103,9,103,15],[103,16,103,21],[103,22,103,28],[103,32,103,36],[103,37,103,43],[103,44,103,49],[103,50,103,56],[103,70,103,74],[106,103,106,109],[106,110,106,115],[106,116,106,122],[106,98,106,102],[104,98,104,102],[105,75,105,89],[105,98,105,102],[103,75,103,81],[105,4,105,8],[105,9,105,23],[105,32,105,36],[105,37,105,51],[105,70,105,74],[105,103,105,117],[103,98,103,102],[107,70,110,71],[109,110,110,112],[101,69,103,69],[101,70,101,74],[101,75,101,89],[95,95,106,96],[95,97,97,97],[101,37,101,51],[96,32,96,36],[96,37,96,51],[96,70,96,74],[96,75,96,89],[97,22,97,28],[97,32,97,36],[97,37,97,43],[95,37,95,51],[95,52,96,53],[95,54,96,56],[95,75,95,89],[95,92,96,94],[99,75,99,89],[103,103,103,109],[103,110,103,115],[103,116,103,122],[102,75,102,89],[98,97,100,97],[104,4,104,8],[104,9,104,23],[104,24,105,25],[100,37,100,43],[100,44,100,49],[100,50,100,56],[95,98,95,102],[104,32,104,36],[104,37,104,51],[95,103,95,117],[100,98,100,102],[100,103,100,109],[100,110,100,115],[100,116,100,122],[98,52,99,53],[101,32,101,36],[104,90,105,91],[104,92,105,94],[104,97,106,97],[101,26,102,28],[101,31,103,31],[98,92,99,94],[106,88,106,94],[106,22,106,28],[103,82,103,87],[103,88,103,94],[106,82,106,87],[98,3,100,3],[98,4,98,8],[98,9,98,23],[98,24,99,25],[98,26,99,28],[98,31,100,31],[98,32,98,36],[99,37,99,51],[96,4,96,8],[96,9,96,23],[97,4,97,8],[97,9,97,15],[97,16,97,21],[95,67,106,68],[95,69,97,69],[95,70,95,74],[106,4,106,8],[106,9,106,15],[106,16,106,21],[99,70,99,74],[100,9,100,15],[100,16,100,21],[100,22,100,28],[100,32,100,36],[98,54,99,56],[98,69,100,69],[100,4,100,8],[106,32,106,36],[106,37,106,43],[106,44,106,49],[104,52,105,53],[101,54,102,56],[101,118,102,119],[101,120,102,122],[101,52,102,53],[96,98,96,102],[96,103,96,117],[104,118,105,119],[104,120,105,122],[100,70,100,74],[100,75,100,81],[100,82,100,87],[100,88,100,94],[95,1,106,2],[95,3,97,3],[95,4,95,8],[95,9,95,23],[95,24,96,25],[95,26,96,28],[95,29,106,30],[95,31,97,31],[95,32,95,36],[99,4,99,8],[99,9,99,23],[99,32,99,36],[101,3,103,3],[101,4,101,8],[101,9,101,23],[101,24,102,25],[106,50,106,56],[102,37,102,51],[106,70,106,74],[106,75,106,81],[104,3,106,3],[95,118,96,119],[93,4,93,8],[93,9,93,23],[93,35,94,40],[93,47,94,52],[93,59,94,64],[93,70,93,74],[93,75,93,89],[93,101,94,106],[93,113,94,118],[92,107,94,112],[95,90,96,91],[97,44,97,49],[97,50,97,56],[97,70,97,74],[97,75,97,81],[97,82,97,87],[97,88,97,94],[97,98,97,102],[97,103,97,109],[97,110,97,115],[97,116,97,122],[95,120,96,122],[102,103,102,117],[98,70,98,74],[98,75,98,89],[98,90,99,91],[93,125,94,130],[94,4,94,8],[94,9,94,15],[94,16,94,21],[94,22,94,28],[94,70,94,74],[94,75,94,81],[94,82,94,87],[94,88,94,94],[92,53,94,58],[92,59,92,64],[92,67,94,69],[92,70,92,74],[92,75,92,89],[92,90,93,91],[92,92,93,94],[92,95,94,100],[92,101,92,106],[92,35,92,40],[92,26,93,28],[92,41,94,46],[92,47,92,52],[97,123,97,125],[98,124,98,125],[98,126,98,127],[98,128,98,129],[99,123,99,125],[100,124,100,125],[88,1,91,4],[88,5,89,9],[88,10,89,16],[88,17,89,21],[88,22,88,26],[88,27,88,30],[88,31,88,34],[88,35,89,40],[88,41,89,46],[88,47,89,52],[88,53,88,64],[88,67,91,70],[88,71,89,75],[88,76,89,82],[88,83,89,87],[88,93,88,96],[88,97,88,100],[91,88,91,92],[90,71,91,75],[87,100,87,106],[87,112,87,118],[88,107,89,112],[88,113,89,118],[88,119,88,130],[91,119,91,130],[90,5,91,9],[90,17,91,21],[90,22,90,26],[90,27,90,30],[90,31,90,34],[90,35,91,40],[90,41,91,46],[90,47,91,52],[90,53,90,64],[91,10,91,16],[91,22,91,26],[91,27,91,30],[91,31,91,34],[91,53,91,64],[89,31,89,34],[89,53,89,64],[89,88,89,92],[89,93,89,96],[89,97,89,100],[89,119,89,130],[89,22,89,26],[88,88,88,92],[90,107,91,112],[89,27,89,30],[90,113,91,118],[88,101,89,106],[77,1,77,16],[77,17,77,32],[77,33,77,48],[77,49,77,64],[77,67,77,82],[79,115,80,130],[74,71,76,74],[74,75,76,78],[74,79,76,88],[74,89,76,92],[74,93,76,94],[74,95,76,98],[74,99,76,102],[74,105,76,108],[74,5,76,8],[74,9,76,12],[86,1,87,4],[86,5,87,9],[86,17,87,21],[86,29,87,33],[86,41,87,45],[86,53,87,57],[86,67,87,70],[86,71,87,75],[86,83,87,87],[86,95,87,99],[86,107,87,111],[86,119,87,123],[87,10,87,16],[87,22,87,28],[87,34,87,40],[87,46,87,52],[73,45,73,48],[73,49,73,52],[73,53,73,56],[74,45,76,48],[81,1,81,4],[81,67,81,70],[82,1,85,4],[74,49,76,52],[74,53,76,56],[72,49,72,56],[78,5,78,14],[78,71,78,80],[79,1,80,16],[79,17,80,32],[79,33,80,48],[79,49,80,64],[79,67,80,82],[81,72,81,73],[81,74,81,81],[81,82,81,83],[73,5,73,8],[73,9,73,12],[73,23,73,26],[73,27,73,28],[73,29,73,32],[73,33,73,36],[82,71,85,130],[73,37,73,38],[73,39,73,42],[73,43,73,44],[74,1,76,4],[79,99,80,114],[70,127,72,130],[74,123,76,126],[73,111,73,114],[73,115,73,118],[73,119,73,122],[73,123,73,126],[74,111,76,114],[74,115,76,118],[74,119,76,122],[70,67,70,78],[70,79,72,88],[70,89,70,110],[71,67,72,74],[71,76,72,78],[71,89,71,110],[72,89,72,94],[72,95,72,104],[72,105,72,110],[74,67,76,70],[73,127,73,130],[74,127,76,130],[73,75,73,78],[73,89,73,92],[73,93,73,94],[73,95,73,98],[73,99,73,102],[73,103,73,104],[73,105,73,108],[73,109,73,110],[38,103,38,117],[36,70,36,94],[34,120,35,122],[40,92,41,94],[40,97,42,97],[40,98,40,102],[40,103,40,117],[34,97,36,97],[34,98,34,102],[35,70,35,74],[67,1,67,12],[67,13,67,25],[67,26,67,38],[67,39,67,51],[67,52,67,64],[67,67,67,78],[67,79,67,91],[67,92,67,104],[67,105,67,117],[67,118,67,130],[62,1,66,4],[62,5,66,6],[62,7,66,37],[62,38,66,39],[62,67,66,70],[62,71,66,72],[62,73,66,103],[62,104,66,105],[63,47,63,52],[63,53,63,58],[63,59,63,64],[62,113,62,130],[41,103,41,117],[43,103,43,117],[43,118,44,119],[43,120,44,122],[44,70,44,74],[44,75,44,89],[44,98,44,102],[44,103,44,117],[40,118,41,119],[45,70,45,94],[35,98,35,102],[35,103,35,117],[34,123,45,130],[37,75,37,89],[37,90,38,91],[37,92,38,94],[34,90,35,91],[34,92,35,94],[34,95,45,96],[37,97,39,97],[37,70,37,74],[36,98,36,122],[39,98,39,122],[42,98,42,122],[40,120,41,122],[37,98,37,102],[37,103,37,117],[37,118,38,119],[37,120,38,122],[38,70,38,74],[38,75,38,89],[38,98,38,102],[16,67,16,82],[30,76,30,82],[31,119,33,124],[31,125,31,130],[32,70,32,74],[32,75,32,89],[32,101,33,106],[32,113,33,118],[32,125,33,130],[33,70,33,94],[31,67,33,69],[31,70,31,74],[31,75,31,89],[31,90,32,91],[31,92,32,94],[31,95,33,100],[31,101,31,106],[31,107,33,112],[31,113,31,118],[18,99,19,114],[18,115,19,130],[25,107,26,111],[25,119,26,123],[26,76,26,82],[26,88,26,94],[26,100,26,106],[26,112,26,118],[26,124,26,130],[27,113,28,118],[27,119,27,130],[32,4,32,8],[31,4,31,8],[27,1,30,4],[28,88,28,92],[28,93,28,96],[12,115,12,118],[12,119,12,122],[12,123,12,126],[27,67,30,70],[27,71,28,75],[27,76,28,82],[27,83,28,87],[27,88,27,92],[27,93,27,96],[27,97,27,100],[27,101,28,106],[27,107,28,112],[20,67,20,70],[21,67,24,70],[25,67,26,70],[25,71,26,75],[25,83,26,87],[25,95,26,99],[28,97,28,100],[30,119,30,130],[28,119,28,130],[29,71,30,75],[29,83,30,87],[13,111,15,114],[29,88,29,92],[29,93,29,96],[29,97,29,100],[28,53,28,64],[29,53,29,64],[29,41,30,46],[30,22,30,26],[30,27,30,30],[30,31,30,34],[28,22,28,26],[28,27,28,30],[28,31,28,34],[27,22,27,26],[27,27,27,30],[27,31,27,34],[27,47,28,52],[29,47,30,52],[31,53,33,58],[31,59,31,64],[29,27,29,30],[29,31,29,34],[29,35,30,40],[6,1,6,12],[32,59,33,64],[31,29,33,34],[31,41,33,46],[31,47,31,52],[31,35,31,40],[32,35,33,40],[32,47,33,52],[31,24,32,25],[31,26,32,28],[20,1,20,4],[25,1,26,4],[21,1,24,4],[25,5,26,9],[26,10,26,16],[25,17,26,21],[25,29,26,33],[31,1,33,3],[33,4,33,8],[6,26,6,38],[6,39,6,51],[8,26,8,38],[11,39,11,44],[10,23,10,44],[9,23,9,44],[12,5,12,8],[13,5,15,8],[20,6,20,7],[29,17,30,21],[33,9,33,15],[33,16,33,21],[33,22,33,28],[46,93,49,94],[46,76,49,78],[42,9,42,15],[69,92,69,104],[61,71,61,72],[61,73,61,74],[64,40,64,46],[64,106,64,112],[63,40,63,46],[63,106,63,112],[62,106,62,112],[61,17,61,18],[69,105,69,117],[61,99,61,100],[62,40,62,46],[62,47,62,64],[61,87,61,88],[61,89,61,90],[61,91,61,92],[61,93,61,94],[61,95,61,96],[61,97,61,98],[61,75,61,76],[61,77,61,78],[61,67,61,68],[61,69,61,70],[64,113,64,130],[65,106,66,107],[69,118,69,130],[68,67,69,78],[69,13,69,25],[69,26,69,38],[48,107,49,109],[48,59,49,61],[48,62,49,64],[53,69,53,75],[46,70,49,71],[46,91,49,92],[36,16,36,21],[48,110,49,112],[37,24,38,25],[61,81,61,82],[61,83,61,84],[61,85,61,86],[60,56,60,64],[61,15,61,16],[61,25,61,26],[61,79,61,80],[56,67,56,74],[56,75,56,76],[46,67,49,69],[46,85,46,90],[48,35,49,37],[48,38,49,40],[37,57,37,59],[38,58,38,59],[38,60,38,61],[38,62,38,63],[37,69,39,69],[40,69,42,69],[40,70,40,74],[40,75,40,89],[40,90,41,91],[39,70,39,94],[50,0,54,0],[54,47,54,49],[54,69,54,75],[52,1,54,2],[52,3,52,9],[52,10,52,11],[52,12,52,19],[52,20,52,27],[52,28,52,35],[53,3,53,9],[53,10,53,64],[50,35,50,37],[50,38,50,40],[50,41,50,43],[54,10,54,46],[54,76,54,112],[54,3,54,9],[50,76,51,78],[50,79,51,81],[50,10,51,12],[50,13,51,15],[50,16,51,18],[50,85,51,87],[50,88,51,90],[50,91,51,92],[36,4,36,8],[48,95,49,97],[46,72,49,73],[46,74,49,75],[50,66,54,66],[53,76,53,130],[48,128,49,130],[34,103,34,117],[35,75,35,89],[29,101,30,106],[29,107,30,112],[29,113,30,118],[43,69,45,69],[43,70,43,74],[43,75,43,89],[43,90,44,91],[37,4,37,8],[45,22,45,28],[43,26,44,28],[40,52,41,53],[50,93,51,94],[50,110,51,112],[50,113,51,115],[50,116,51,118],[50,74,51,75],[51,98,51,100],[51,101,51,103],[51,104,51,106],[51,107,51,109],[47,16,49,18],[47,19,49,21],[48,104,49,106],[43,92,44,94],[43,97,45,97],[43,98,43,102],[45,98,45,122],[41,70,41,74],[41,75,41,89],[41,98,41,102],[50,95,50,97],[50,29,50,31],[50,32,50,34],[50,1,51,3],[50,4,51,5],[50,6,51,7],[50,8,51,9],[50,22,51,24],[50,25,51,26],[50,27,51,28],[51,29,51,31],[51,32,51,34],[51,35,51,37],[51,38,51,40],[51,41,51,43],[46,1,49,3],[47,22,49,24],[46,29,47,43],[46,44,47,64],[50,19,51,21],[34,67,45,68],[34,69,36,69],[34,70,34,74],[36,58,36,59],[48,101,49,103],[48,113,49,115],[48,116,49,118],[48,98,49,100],[46,79,46,84],[48,125,49,127],[50,104,50,106],[52,69,52,130],[54,113,54,115],[52,67,54,68],[50,107,50,109],[50,98,50,100],[48,119,49,121],[48,122,49,124],[3,40,3,46],[3,106,3,112],[1,67,5,70],[1,71,5,72],[1,73,5,103],[1,104,5,105],[1,106,1,112],[1,113,1,130],[13,127,15,130],[12,127,12,130],[12,61,12,64],[13,61,15,64],[9,61,11,64],[9,111,11,114],[9,115,10,126],[9,45,11,48],[2,106,2,130],[3,47,3,64],[4,40,5,41],[34,75,34,89],[3,113,3,130],[4,106,5,107],[9,67,9,78],[9,79,11,88],[9,89,9,110],[10,67,11,74],[10,76,11,78],[10,89,10,110],[9,127,11,130],[2,40,2,46],[12,45,12,48],[12,39,12,42],[11,123,11,126],[6,67,6,78],[6,79,6,91],[6,92,6,104],[6,105,6,117],[6,118,6,130],[7,67,8,78],[8,79,8,91],[8,92,8,104],[8,105,8,117],[8,118,8,130],[5,55,5,64],[5,121,5,130],[6,52,6,64],[8,52,8,64],[8,39,8,51],[34,118,35,119],[29,119,29,130],[30,88,30,92],[43,3,45,3],[41,9,41,23],[42,4,42,8],[34,54,35,56],[35,32,35,36],[35,37,35,51],[36,32,36,36],[37,26,38,28],[45,16,45,21],[13,115,15,118],[13,119,15,122],[13,123,15,126],[18,17,19,32],[18,33,19,48],[9,49,10,60],[11,49,11,56],[11,115,11,122],[12,111,12,114],[11,89,11,94],[11,57,11,60],[12,49,12,52],[12,27,12,28],[13,27,15,28],[13,45,15,48],[13,33,15,36],[16,99,16,114],[16,115,16,130],[17,71,17,80],[18,67,19,82],[18,83,19,98],[36,60,36,61],[20,18,20,25],[39,32,39,36],[6,13,6,25],[8,13,8,25],[18,49,19,64],[25,53,26,57],[26,22,26,28],[26,34,26,40],[26,46,26,52],[26,58,26,64],[30,53,30,64],[27,35,28,40],[27,41,28,46],[29,22,29,26],[34,29,45,30],[34,31,36,31],[34,32,34,36],[34,37,34,51],[34,52,35,53],[43,52,44,53]],"merged_total":1259,"flags":["merged_cut"]}
[null,null,null,null,null,null,null,null,null,null,null,null,null,null,null,"平成 30 年分",null,null,null,null,null,null,null,null,null,null,null,null,null,null,null,"給与所得の源泉徴収票",null,null,null,null,null,null,null,null,null,null,null,null,null,null,null,null,null,null,null,null,null,null,null,null,null,null,null,null,null,null,null,null,{"$f":"IF(ライセンス2!$D$8=\"ok\",,\"ＳＡＭＰＬＥ\")","v":"ＳＡＭＰＬＥ"},null,null,null,null,null,null,null,null,null,null,null,null,null,null,null,null,"平成 30 年分",null,null,null,null,null,null,null,null,null,null,null,null,null,null,null,"給与所得の源泉徴収票",null,null,null,null,null,null,null,null,null,null,null,null,null,null,null,null,null,null,null,null,null,null,null,null,null,null,null,null,null,null,null,null,{"$f":"IF(ライセンス2!$D$8=\"ok\",,\"ＳＡＭＰＬＥ\")","v":"ＳＡＭＰＬＥ"}]
[null,"支   払　を受け　　る者",null,null,null,"住所又は居所",null,{"$f":"data2!$K$2","v":0},null,null,null,null,null,null,null,null,null,null,null,null,null,null,null,null,null,null,null,null,null,null,null,null,null,null,null,null,null,null,"氏　名",null,"（受給者番号）",null,null,null,null,null,null,{"$f":"data2!$H$2","v":0},null,null,null,null,null,null,null,null,null,null,null,null,null,null,null,null,null,null,null,"支   払　を受け　　る者",null,null,null,"住所又は居所",null,{"$f":"data2!$K$2","v":0},null,null,null,null,null,null,null,null,null,null,null,null,null,null,null,null,null,null,null,null,null,null,null,null,null,null,null,null,null,null,"氏　名",null,"（受給者番号）",null,null,null,null,null,null,{"$f":"data2!$H$2","v":0}]
[null,null,null,null,null,null,null,null,null,null,null,null,null,null,null,null,null,null,null,null,null,null,null,null,null,null,null,null,null,null,null,null,null,null,null,null,null,null,null,null,"（個人番号）",null,null,null,null,null,null,{"$f":"DBCS(data2!$L$2)","v":""},null,null,null,null,null,{"$f":"DBCS(data2!$M$2)","v":""},null,null,null,null,null,{"$f":"DBCS(data2!$N$2)","v":""}]
[null,null,null,null,null,null,null,null,null,null,null,null,null,null,null,null,null,null,null,null,null,null,null,null,null,null,null,null,null,null,null,null,null,null,null,null,null,null,null,null,"（役職名）",null,null,null,null,null,null,{"$f":"data2!$G$2","v":0},null,null,null,null,null,null,null,null,null,null,null,null,null,null,null,null,null,null,null,null,null,null,null,null,null,null,null,null,null,null,null,null,null,null,null,null,null,null,null,null,null,null,null,null,null,null,null,null,null,null,null,null,null,null,null,null,null,null,"（役職名）",null,null,null,null,null,null,{"$f":"data2!$G$2","v":0}]
[null,null,null,null,null,null,null,null,null,null,null,null,null,null,null,null,null,null,null,null,null,null,null,null,null,null,null,null,null,null,null,null,null,null,null,null,null,null,null,null,"氏名",null,"（フリガナ）",null,null,null,{"$f":"data2!$C$2","v":0},null,null,null,null,null,null,null,null,{"$f":"data2!$D$2","v":0},null,null,null,null,null,null,null,null,null,null,null,null,null,null,null,null,null,null,null,null,null,null,null,null,null,null,null,null,null,null,null,null,null,null,null,null,null,null,null,null,null,null,null,null,null,null,null,null,null,null,"氏名",null,"（フリガナ）",null,null,null,{"$f":"data2!$C$2","v":0},null,null,null,null,null,null,null,null,{"$f":"data2!$D$2","v":0}]
[null,null,null,null,null,null,null,null,null,null,null,null,null,null,null,null,null,null,null,null,null,null,null,null,null,null,null,null,null,null,null,null,null,null,null,null,null,null,null,null,null,null,null,null,null,{"$f":"data2!$E$2","v":0},null,null,null,null,null,null,null,null,null,{"$f":"data2!$F$2","v":0},null,null,null,null,null,null,null,null,null,null,null,null,null,null,null,null,null,null,null,null,null,null,null,null,null,null,null,null,null,null,null,null,null,null,null,null,null,null,null,null,null,null,null,null,null,null,null,null,null,null,null,null,null,null,null,{"$f":"data2!$E$2","v":0},null,null,null,null,null,null,null,null,null,{"$f":"data2!$F$2","v":0}]
[null,"種　　　別",null,null,null,null,null,null,null,null,null,null,null,"支　払　金　額",null,null,null,null,null,null,null,null,null,null,null,null,"給与所得控除後の金額",null,null,null,null,null,null,null,null,null,null,null,null,"所得控除の額の合計額",null,null,null,null,null,null,null,null,null,null,null,null,"源  泉  徴  収  税  額",null,null,null,null,null,null,null,null,null,null,null,null,null,null,"種　　　別",null,null,null,null,null,null,null,null,null,null,null,"支　払　金　額",null,null,null,null,null,null,null,null,null,null,null,null,"給与所得控除後の金額",null,null,null,null,null,null,null,null,null,null,null,null,"所得控除の額の合計額",null,null,null,null,null,null,null,null,null,null,null,null,"源  泉  徴  収  税  額"]
[null,{"$f":"IF(ライセンス2!$D$8=\"ok\",data2!$R$2,\"ＳＡＭＰＬＥ\")","v":"ＳＡＭＰＬＥ"},null,null,null,null,null,null,null,null,null,null,null,"内",null,null,null,null,null,null,null,null,null,null,null,"円",null,null,null,null,null,null,null,null,null,null,null,null,"円",null,null,null,null,null,null,null,null,null,null,null,null,"円","内",null,null,null,null,null,null,null,null,null,null,null,"円",null,null,{"$f":"IF(ライセンス2!$D$8=\"ok\",data2!$R$2,\"ＳＡＭＰＬＥ\")","v":"ＳＡＭＰＬＥ"},null,null,null,null,null,null,null,null,null,null,null,"内",null,null,null,null,null,null,null,null,null,null,null,"円",null,null,null,null,null,null,null,null,null,null,null,null,"円",null,null,null,null,null,null,null,null,null,null,null,null,"円","内",null,null,null,null,null,null,null,null,null,null,null,"円"]
[null,null,null,null,null,null,null,null,null,null,null,null,null,{"$f":"IF(ライセンス2!$D$8=\"ok\",data5!$D$2,\"ＳＡＭＰＬＥ\")","v":"ＳＡＭＰＬＥ"},null,null,null,null,null,null,null,null,null,null,null,null,{"$f":"IF(data2!$B$2=\"要\",data5!$E$2,\"\")","v":""},null,null,null,null,null,null,null,null,null,null,null,null,{"$f":"IF(data2!$B$2=\"要\",data5!$Q$2,\"\")","v":""},null,null,null,null,null,null,null,null,null,null,null,null,{"$f":"IF(IF(data2!$B$2=\"否\",data5!$U$2,data5!$Y$2)=0,\"0\",IF(data2!$B$2=\"否\",data5!$U$2,data5!$Y$2))","v":"0"},null,null,null,null,null,null,null,null,null,null,null,null,".",null,null,null,null,null,null,null,null,null,null,null,null,null,{"$f":"IF(ライセンス2!$D$8=\"ok\",data5!$D$2,\"ＳＡＭＰＬＥ\")","v":"ＳＡＭＰＬＥ"},null,null,null,null,null,null,null,null,null,null,null,null,{"$f":"IF(data2!$B$2=\"要\",data5!$E$2,\"\")","v":""},null,null,null,null,null,null,null,null,null,null,null,null,{"$f":"IF(data2!$B$2=\"要\",data5!$Q$2,\"\")","v":""},null,null,null,null,null,null,null,null,null,null,null,null,{"$f":"IF(IF(data2!$B$2=\"否\",data5!$U$2,data5!$Y$2)=0,\"0\",IF(data2!$B$2=\"否\",data5!$U$2,data5!$Y$2))","v":"0"}]
[null,"控除対象配偶者",null,null,null,null,null,null,null,null,null,null,null,"配偶者特別              控除の額",null,null,null,null,null,null,null,null,null,"控除対象扶養親族の数",null,null,null,null,null,null,null,null,null,null,null,null,null,null,null,null,null,null,null,null,null,"16歳未満扶養親族の数",null,null,null,"障 害 者 の 数　　　　　　　　（本人を除く）",null,null,null,null,null,null,null,null,null,null,null,"非居住者である　親族の数",null,null,null,null,null,"控除対象配偶者",null,null,null,null,null,null,null,null,null,null,null,"配偶者特別              控除の額",null,null,null,null,null,null,null,null,null,"控除対象扶養親族の数",null,null,null,null,null,null,null,null,null,null,null,null,null,null,null,null,null,null,null,null,null,"16歳未満扶養親族の数",null,null,null,"障 害 者 の 数　　　　　　　　（本人を除く）",null,null,null,null,null,null,null,null,null,null,null,"非居住者である　親族の数"]
[null,"の有無等",null,null,null,null,null,null,null,null,"老人",null,null,null,null,null,null,null,null,null,null,null,null,"（　配　偶　者　を　除　く　）",null,null,null,null,null,null,null,null,null,null,null,null,null,null,null,null,null,null,null,null,null,null,null,null,null,null,null,null,null,null,null,null,null,null,null,null,null,null,null,null,null,null,null,"の有無等",null,null,null,null,null,null,null,null,"老人",null,null,null,null,null,null,null,null,null,null,null,null,"（　配　偶　者　を　除　く　）"]
[null,null,null,null,null,null,null,null,null,null,null,null,null,null,null,null,null,null,null,null,null,null,null,"特　定",null,null,null,null,null,"老　　人",null,null,null,null,null,null,null,null,null,"その他",null,null,null,null,null,null,null,null,null,"特　別",null,null,null,null,null,null,null,"その他",null,null,null,null,null,null,null,null,null,null,null,null,null,null,null,null,null,null,null,null,null,null,null,null,null,null,null,null,null,null,null,"特　定",null,null,null,null,null,"老　　人",null,null,null,null,null,null,null,null,null,"その他",null,null,null,null,null,null,null,null,null,"特　別",null,null,null,null,null,null,null,"その他"]
[null,"有",null,null,null,"従有",null,null,null,null,null,null,null,null,null,null,null,null,null,null,null,null,"円","人",null,null,null,"従人",null,"内",null,null,null,"人",null,null,null,"従人",null,"人",null,null,null,"従人",null,"人",null,null,null,"内",null,null,null,"人",null,null,null,"人",null,null,null,"人",null,null,null,null,null,"有",null,null,null,"従有",null,null,null,null,null,null,null,null,null,null,null,null,null,null,null,null,"円","人",null,null,null,"従人",null,"内",null,null,null,"人",null,null,null,"従人",null,"人",null,null,null,"従人",null,"人",null,null,null,"内",null,null,null,"人",null,null,null,"人",null,null,null,"人"]
[null,{"$f":"IF(AND(data2!$B$2=\"要\",OR(data4!$R$2=\"一般の控除対象配偶者\",data4!$R$2=\"老人控除対象配偶者\")),\"○\",\"\")","v":""},null,null,null,null,null,null,null,{"$f":"IF(AND(data2!$B$2=\"要\",data4!$R$2=\"老人控除対象配偶者\"),\"○\",\"\")","v":""},null,null,null,{"$f":"data5!$K$2","v":0},null,null,null,null,null,null,null,null,null,{"$f":"data4!$AQ$7","v":0},null,null,null,null,null,{"$f":"data4!$AR$7","v":0},null,null,null,{"$f":"data4!$AS$7+data4!$AR$7","v":0},null,null,null,null,null,{"$f":"data4!$AT$7","v":0},null,null,null,null,null,{"$f":"data4!$AI$7","v":0},null,null,null,{"$f":"data4!$BZ$7","v":0},null,null,null,{"$f":"data4!$CA$7+data4!$BZ$7","v":0},null,null,null,{"$f":"data4!$CB$7","v":0},null,null,null,{"$f":"data4!$CP$6","v":0},null,null,null,null,null,{"$f":"IF(AND(data2!$B$2=\"要\",OR(data4!$R$2=\"一般の控除対象配偶者\",data4!$R$2=\"老人控除対象配偶者\")),\"○\",\"\")","v":""},null,null,null,null,null,null,null,{"$f":"IF(AND(data2!$B$2=\"要\",data4!$R$2=\"老人控除対象配偶者\"),\"○\",\"\")","v":""},null,null,null,{"$f":"data5!$K$2","v":0},null,null,null,null,null,null,null,null,null,{"$f":"data4!$AQ$7","v":0},null,null,null,null,null,{"$f":"data4!$AR$7","v":0},null,null,null,{"$f":"data4!$AS$7+data4!$AR$7","v":0},null,null,null,null,null,{"$f":"data4!$AT$7","v":0},null,null,null,null,null,{"$f":"data4!$AI$7","v":0},null,null,null,{"$f":"data4!$BZ$7","v":0},null,null,null,{"$f":"data4!$CA$7+data4!$BZ$7","v":0},null,null,null,{"$f":"data4!$CB$7","v":0},null,null,null,{"$f":"data4!$CP$6","v":0}]
[]
[]
[null,"社会保険料等の金額",null,null,null,null,null,null,null,null,null,null,null,null,null,null,null,"生命保険料の控除額",null,null,null,null,null,null,null,null,null,null,null,null,null,null,null,"地震保険料の控除額",null,null,null,null,null,null,null,null,null,null,null,null,null,null,null,"住宅借入金等特別控除の額",null,null,null,null,null,null,null,null,null,null,null,null,null,null,null,null,null,"社会保険料等の金額",null,null,null,null,null,null,null,null,null,null,null,null,null,null,null,"生命保険料の控除額",null,null,null,null,null,null,null,null,null,null,null,null,null,null,null,"地震保険料の控除額",null,null,null,null,null,null,null,null,null,null,null,null,null,null,null,"住宅借入金等特別控除の額"]
[null,"内",null,null,null,{"$f":"data4!$CW$2+data4!$CX$2","v":0},null,null,null,null,null,null,null,null,null,null,"円",null,null,null,null,null,null,null,null,null,null,null,null,null,null,null,"円",null,null,null,null,null,null,null,null,null,null,null,null,null,null,null,"円",null,null,null,null,null,null,null,null,null,null,null,null,null,null,null,"円",null,null,"内",null,null,null,{"$f":"data4!$CW$2+data4!$CX$2","v":0},null,null,null,null,null,null,null,null,null,null,"円",null,null,null,null,null,null,null,null,null,null,null,null,null,null,null,"円",null,null,null,null,null,null,null,null,null,null,null,null,null,null,null,"円",null,null,null,null,null,null,null,null,null,null,null,null,null,null,null,"円"]
[null,{"$f":"data5!$F$2+data5!$G$2+data5!$H$2","v":0},null,null,null,null,null,null,null,null,null,null,null,null,null,null,null,{"$f":"data5!$I$2","v":0},null,null,null,null,null,null,null,null,null,null,null,null,null,null,null,{"$f":"data5!$J$2","v":0},null,null,null,null,null,null,null,null,null,null,null,null,null,null,null,{"$f":"MIN(data5!$V$2,data5!$W$2)","v":0},null,null,null,null,null,null,null,null,null,null,null,null,null,null,null,null,null,{"$f":"data5!$F$2+data5!$G$2+data5!$H$2","v":0},null,null,null,null,null,null,null,null,null,null,null,null,null,null,null,{"$f":"data5!$I$2","v":0},null,null,null,null,null,null,null,null,null,null,null,null,null,null,null,{"$f":"data5!$J$2","v":0},null,null,null,null,null,null,null,null,null,null,null,null,null,null,null,{"$f":"MIN(data5!$V$2,data5!$W$2)","v":0}]
[]
[null,"(摘要）",null,null,null,null,{"$f":"IF(data4!$AK$2=\"\",\"\",\"(1)\")","v":""},null,{"$f":"data4!$AK$2","v":0},null,null,null,null,null,null,null,{"$f":"IF(data4!$AL$2=\"\",\"\",\"(2)\")","v":""},null,{"$f":"data4!$AL$2","v":0},null,null,null,null,null,null,null,null,null,null,null,null,null,null,null,null,null,null,null,null,null,null,null,null,null,null,null,null,null,null,null,null,null,null,null,null,null,null,null,null,null,null,null,null,null,null,null,null,"(摘要）",null,null,null,null,{"$f":"IF(data4!$AK$2=\"\",\"\",\"(1)\")","v":""},null,{"$f":"data4!$AK$2","v":0},null,null,null,null,null,null,null,{"$f":"IF(data4!$AL$2=\"\",\"\",\"(2)\")","v":""},null,{"$f":"data4!$AL$2","v":0}]
[null,null,null,null,null,{"$f":"data4!$DR$2","v":0},null,null,null,null,null,null,null,null,null,null,null,null,null,null,null,null,null,null,null,null,null,null,null,null,null,null,null,null,null,null,null,null,null,null,null,null,null,null,null,null,null,null,null,null,null,null,null,null,null,null,null,null,null,null,null,null,null,null,null,null,null,null,null,null,null,{"$f":"data4!$DR$2","v":0}]
[]
[]
[]
[null,"生命保険料の金額の　内訳",null,null,null,"新生命保険料の金額",null,null,null,null,null,null,null,null,null,null,"円","旧生命保険料の金額",null,null,null,null,null,null,null,null,null,null,"円","介護医療保　険料の金額",null,null,null,null,null,null,null,null,null,null,"円","新個人年金         保険料の金額",null,null,null,null,null,null,null,null,null,null,"円","旧個人年金      保険料の金額",null,null,null,null,null,null,null,null,null,null,"円",null,null,"生命保険料の金額の　内訳",null,null,null,"新生命保険料の金額",null,null,null,null,null,null,null,null,null,null,"円","旧生命保険料の金額",null,null,null,null,null,null,null,null,null,null,"円","介護医療保　険料の金額",null,null,null,null,null,null,null,null,null,null,"円","新個人年金         保険料の金額",null,null,null,null,null,null,null,null,null,null,"円","旧個人年金      保険料の金額",null,null,null,null,null,null,null,null,null,null,"円"]
[null,null,null,null,null,null,null,null,null,null,{"$f":"data4!$CY$2","v":0},null,null,null,null,null,null,null,null,null,null,null,{"$f":"data4!$CZ$2","v":0},null,null,null,null,null,null,null,null,null,null,null,{"$f":"data4!$DA$2","v":0},null,null,null,null,null,null,null,null,null,null,null,{"$f":"data4!$DB$2","v":0},null,null,null,null,null,null,null,null,null,null,null,{"$f":"data4!$DC$2","v":0},null,null,null,null,null,null,null,null,null,null,null,null,null,null,null,null,null,{"$f":"data4!$CY$2","v":0},null,null,null,null,null,null,null,null,null,null,null,{"$f":"data4!$CZ$2","v":0},null,null,null,null,null,null,null,null,null,null,null,{"$f":"data4!$DA$2","v":0},null,null,null,null,null,null,null,null,null,null,null,{"$f":"data4!$DB$2","v":0},null,null,null,null,null,null,null,null,null,null,null,{"$f":"data4!$DC$2","v":0}]
[null,"住宅借入金等特別控除の額の内訳",null,null,null,"住宅借入金等　　　　　　特別控除適用数",null,null,null,null,{"$f":"data4!$DF$2","v":0},null,null,null,null,null,null,"居住開始年月日（１回目）",null,null,null,null,"年",null,null,null,null,"月",null,null,null,"日",null,null,null,"住宅借入金等特別　　　控除区分（１回目）",null,null,null,null,null,{"$f":"data4!$DN$2","v":0},null,null,null,null,null,"住宅借入金等　　　　年末残高（１回目）",null,null,null,null,null,"円",null,null,null,null,null,null,null,null,null,null,null,null,null,"住宅借入金等特別控除の額の内訳",null,null,null,"住宅借入金等　　　　　　特別控除適用数",null,null,null,null,{"$f":"data4!$DF$2","v":0},null,null,null,null,null,null,"居住開始年月日（１回目）",null,null,null,null,"年",null,null,null,null,"月",null,null,null,"日",null,null,null,"住宅借入金等特別　　　控除区分（１回目）",null,null,null,null,null,{"$f":"data4!$DN$2","v":0},null,null,null,null,null,"住宅借入金等　　　　年末残高（１回目）",null,null,null,null,null,"円"]
[null,null,null,null,null,null,null,null,null,null,null,null,null,null,null,null,null,null,null,null,null,null,{"$f":"data4!$DH$2","v":0},null,null,null,null,{"$f":"data4!$DJ$2","v":0},null,null,null,{"$f":"data4!$DL$2","v":0},null,null,null,null,null,null,null,null,null,null,null,null,null,null,null,null,null,null,null,null,null,{"$f":"data4!$DP$2","v":0},null,null,null,null,null,null,null,null,null,null,null,null,null,null,null,null,null,null,null,null,null,null,null,null,null,null,null,null,null,null,null,null,null,null,{"$f":"data4!$DH$2","v":0},null,null,null,null,{"$f":"data4!$DJ$2","v":0},null,null,null,{"$f":"data4!$DL$2","v":0},null,null,null,null,null,null,null,null,null,null,null,null,null,null,null,null,null,null,null,null,null,{"$f":"data4!$DP$2","v":0}]
[null,null,null,null,null,"住宅借入金等　　特別控除可能額",null,null,null,null,null,null,null,null,null,null,"円","居住開始年月日（２回目）",null,null,null,null,"年",null,null,null,null,"月",null,null,null,"日",null,null,null,"住宅借入金等特別　　　控除区分（２回目）",null,null,null,null,null,{"$f":"data4!$DO$2","v":0},null,null,null,null,null,"住宅借入金等　　　　年末残高（２回目）",null,null,null,null,null,"円",null,null,null,null,null,null,null,null,null,null,null,null,null,null,null,null,null,"住宅借入金等　　特別控除可能額",null,null,null,null,null,null,null,null,null,null,"円","居住開始年月日（２回目）",null,null,null,null,"年",null,null,null,null,"月",null,null,null,"日",null,null,null,"住宅借入金等特別　　　控除区分（２回目）",null,null,null,null,null,{"$f":"data4!$DO$2","v":0},null,null,null,null,null,"住宅借入金等　　　　年末残高（２回目）",null,null,null,null,null,"円"]
[null,null,null,null,null,null,null,null,null,null,{"$f":"data4!$DG$2","v":0},null,null,null,null,null,null,null,null,null,null,null,{"$f":"data4!$DI$2","v":0},null,null,null,null,{"$f":"data4!$DK$2","v":0},null,null,null,{"$f":"data4!$DM$2","v":0},null,null,null,null,null,null,null,null,null,null,null,null,null,null,null,null,null,null,null,null,null,{"$f":"data4!$DQ$2","v":0},null,null,null,null,null,null,null,null,null,null,null,null,null,null,null,null,null,null,null,null,null,null,{"$f":"data4!$DG$2","v":0},null,null,null,null,null,null,null,null,null,null,null,{"$f":"data4!$DI$2","v":0},null,null,null,null,{"$f":"data4!$DK$2","v":0},null,null,null,{"$f":"data4!$DM$2","v":0},null,null,null,null,null,null,null,null,null,null,null,null,null,null,null,null,null,null,null,null,null,{"$f":"data4!$DQ$2","v":0}]
[null,"控除対象配偶者",null,null,"（フリガナ）",null,null,null,null,{"$f":"data4!$P$2","v":0},null,null,null,null,null,null,null,null,null,null,null,null,null,null,"区分",null,{"$f":"data4!$S$2","v":0},null,null,"配偶者の　　　　　合計所得",null,null,null,null,null,"円",null,null,null,null,null,"国民年金保険　　　　　　料等の金額",null,null,null,null,null,"円",null,null,null,null,null,"旧長期損害　　　　保険料の金額",null,null,null,null,null,"円",null,null,null,null,null,null,null,"控除対象配偶者",null,null,"（フリガナ）",null,null,null,null,{"$f":"data4!$P$2","v":0},null,null,null,null,null,null,null,null,null,null,null,null,null,null,"区分",null,{"$f":"data4!$S$2","v":0},null,null,"配偶者の　　　　　合計所得",null,null,null,null,null,"円",null,null,null,null,null,"国民年金保険　　　　　　料等の金額",null,null,null,null,null,"円",null,null,null,null,null,"旧長期損害　　　　保険料の金額",null,null,null,null,null,"円"]
[null,null,null,null,"氏名",null,null,null,null,{"$f":"data4!$Q$2","v":0},null,null,null,null,null,null,null,null,null,null,null,null,null,null,null,null,null,null,null,null,null,null,null,null,null,{"$f":"data4!$N$2","v":0},null,null,null,null,null,null,null,null,null,null,null,{"$f":"data4!$CV$2","v":0},null,null,null,null,null,null,null,null,null,null,null,{"$f":"data4!$DE$2","v":0},null,null,null,null,null,null,null,null,null,null,"氏名",null,null,null,null,{"$f":"data4!$Q$2","v":0},null,null,null,null,null,null,null,null,null,null,null,null,null,null,null,null,null,null,null,null,null,null,null,null,null,{"$f":"data4!$N$2","v":0},null,null,null,null,null,null,null,null,null,null,null,{"$f":"data4!$CV$2","v":0},null,null,null,null,null,null,null,null,null,null,null,{"$f":"data4!$DE$2","v":0}]
[null,null,null,null,"個人番号",null,null,null,null,{"$f":"DBCS(data4!$T$2)","v":""},null,null,null,null,null,null,{"$f":"DBCS(data4!$U$2)","v":""},null,null,null,null,null,{"$f":"DBCS(data4!$V$2)","v":""}]
[null,"控除対象扶養親族",null,1,"（フリガナ）",null,null,null,null,{"$f":"data4!$W$2","v":0},null,null,null,null,null,null,null,null,null,null,null,null,null,null,"区分",null,{"$f":"data4!$CK$2","v":0},null,null,"16歳未満の扶養親族",null,1,"（フリガナ）",null,null,null,null,{"$f":"data4!$AC$2","v":0},null,null,null,null,null,null,null,null,null,null,null,null,null,null,"区分",null,{"$f":"data4!$CQ$2","v":0},null,null,"（備考）",null,null,null,null,null,null,null,null,null,"控除対象扶養親族",null,1,"（フリガナ）",null,null,null,null,{"$f":"data4!$W$2","v":0},null,null,null,null,null,null,null,null,null,null,null,null,null,null,"区分",null,{"$f":"data4!$CK$2","v":0},null,null,"16歳未満の扶養親族",null,1,"（フリガナ）",null,null,null,null,{"$f":"data4!$AC$2","v":0},null,null,null,null,null,null,null,null,null,null,null,null,null,null,"区分",null,{"$f":"data4!$CQ$2","v":0}]
[null,null,null,null,"氏名",null,null,null,null,{"$f":"data4!$AG$2","v":0},null,null,null,null,null,null,null,null,null,null,null,null,null,null,null,null,null,null,null,null,null,null,"氏名",null,null,null,null,{"$f":"data4!$AM$2","v":0},null,null,null,null,null,null,null,null,null,null,null,null,null,null,null,null,null,null,null,{"$f":"IF(data4!$BA$2=0,\"\",\"（1）\")","v":""},null,null,null,null,null,null,null,null,null,null,null,null,"氏名",null,null,null,null,{"$f":"data4!$AG$2","v":0},null,null,null,null,null,null,null,null,null,null,null,null,null,null,null,null,null,null,null,null,null,null,"氏名",null,null,null,null,{"$f":"data4!$AM$2","v":0}]
[null,null,null,null,"個人番号",null,null,null,null,{"$f":"DBCS(data4!$AW$2)","v":""},null,null,null,null,null,null,{"$f":"DBCS(data4!$BG$2)","v":""},null,null,null,null,null,{"$f":"DBCS(data4!$BQ$2)","v":""},null,null,null,null,null,null,null,null,null,"個人番号",null,null,null,null,null,null,null,null,null,null,null,null,null,null,null,null,null,null,null,null,null,null,null,null,null,{"$f":"IF(data4!$BA$2=\"\",\"\",data4!$BA$2)","v":""},null,{"$f":"IF(data4!$BK$2=\"\",\"\",data4!$BK$2)","v":""},null,{"$f":"IF(data4!$BU$2=\"\",\"\",data4!$BU$2)","v":""}]
[null,null,null,2,"（フリガナ）",null,null,null,null,{"$f":"data4!$X$2","v":0},null,null,null,null,null,null,null,null,null,null,null,null,null,null,"区分",null,{"$f":"data4!$CL$2","v":0},null,null,null,null,2,"（フリガナ）",null,null,null,null,{"$f":"data4!$AD$2","v":0},null,null,null,null,null,null,null,null,null,null,null,null,null,null,"区分",null,{"$f":"data4!$CR$2","v":0},null,null,{"$f":"IF(data4!$BB$2=0,\"\",\"（2）\")","v":""},null,null,null,null,null,null,null,null,null,null,null,2,"（フリガナ）",null,null,null,null,{"$f":"data4!$X$2","v":0},null,null,null,null,null,null,null,null,null,null,null,null,null,null,"区分",null,{"$f":"data4!$CL$2","v":0},null,null,null,null,2,"（フリガナ）",null,null,null,null,{"$f":"data4!$AD$2","v":0},null,null,null,null,null,null,null,null,null,null,null,null,null,null,"区分",null,{"$f":"data4!$CR$2","v":0}]
[null,null,null,null,"氏名",null,null,null,null,{"$f":"data4!$AH$2","v":0},null,null,null,null,null,null,null,null,null,null,null,null,null,null,null,null,null,null,null,null,null,null,"氏名",null,null,null,null,{"$f":"data4!$AN$2","v":0},null,null,null,null,null,null,null,null,null,null,null,null,null,null,null,null,null,null,null,null,{"$f":"IF(data4!$BB$2=\"\",\"\",data4!$BB$2)","v":""},null,{"$f":"IF(data4!$BL$2=\"\",\"\",data4!$BL$2)","v":""},null,{"$f":"IF(data4!$BV$2=\"\",\"\",data4!$BV$2)","v":""},null,null,null,null,null,null,null,"氏名",null,null,null,null,{"$f":"data4!$AH$2","v":0},null,null,null,null,null,null,null,null,null,null,null,null,null,null,null,null,null,null,null,null,null,null,"氏名",null,null,null,null,{"$f":"data4!$AN$2","v":0}]
[null,null,null,null,"個人番号",null,null,null,null,{"$f":"DBCS(data4!$AX$2)","v":""},null,null,null,null,null,null,{"$f":"DBCS(data4!$BH$2)","v":""},null,null,null,null,null,{"$f":"DBCS(data4!$BR$2)","v":""},null,null,null,null,null,null,null,null,null,"個人番号"]
[null,null,null,3,"（フリガナ）",null,null,null,null,{"$f":"data4!$Y$2","v":0},null,null,null,null,null,null,null,null,null,null,null,null,null,null,"区分",null,{"$f":"data4!$CM$2","v":0},null,null,null,null,3,"（フリガナ）",null,null,null,null,{"$f":"data4!$AE$2","v":0},null,null,null,null,null,null,null,null,null,null,null,null,null,null,"区分",null,{"$f":"data4!$CS$2","v":0},null,null,null,null,null,null,null,null,null,null,null,null,null,null,3,"（フリガナ）",null,null,null,null,{"$f":"data4!$Y$2","v":0},null,null,null,null,null,null,null,null,null,null,null,null,null,null,"区分",null,{"$f":"data4!$CM$2","v":0},null,null,null,null,3,"（フリガナ）",null,null,null,null,{"$f":"data4!$AE$2","v":0},null,null,null,null,null,null,null,null,null,null,null,null,null,null,"区分",null,{"$f":"data4!$CS$2","v":0}]
[null,null,null,null,"氏名",null,null,null,null,{"$f":"data4!$AI$2","v":0},null,null,null,null,null,null,null,null,null,null,null,null,null,null,null,null,null,null,null,null,null,null,"氏名",null,null,null,null,{"$f":"data4!$AO$2","v":0},null,null,null,null,null,null,null,null,null,null,null,null,null,null,null,null,null,null,null,null,null,null,null,null,null,null,null,null,null,null,null,null,"氏名",null,null,null,null,{"$f":"data4!$AI$2","v":0},null,null,null,null,null,null,null,null,null,null,null,null,null,null,null,null,null,null,null,null,null,null,"氏名",null,null,null,null,{"$f":"data4!$AO$2","v":0}]
[null,null,null,null,"個人番号",null,null,null,null,{"$f":"DBCS(data4!$AY$2)","v":""},null,null,null,null,null,null,{"$f":"DBCS(data4!$BI$2)","v":""},null,null,null,null,null,{"$f":"DBCS(data4!$BS$2)","v":""},null,null,null,null,null,null,null,null,null,"個人番号"]
[null,null,null,4,"（フリガナ）",null,null,null,null,{"$f":"data4!$Z$2","v":0},null,null,null,null,null,null,null,null,null,null,null,null,null,null,"区分",null,{"$f":"data4!$CN$2","v":0},null,null,null,null,4,"（フリガナ）",null,null,null,null,{"$f":"data4!$AF$2","v":0},null,null,null,null,null,null,null,null,null,null,null,null,null,null,"区分",null,{"$f":"data4!$CT$2","v":0},null,null,null,null,null,null,null,null,null,null,null,null,null,null,4,"（フリガナ）",null,null,null,null,{"$f":"data4!$Z$2","v":0},null,null,null,null,null,null,null,null,null,null,null,null,null,null,"区分",null,{"$f":"data4!$CN$2","v":0},null,null,null,null,4,"（フリガナ）",null,null,null,null,{"$f":"data4!$AF$2","v":0},null,null,null,null,null,null,null,null,null,null,null,null,null,null,"区分",null,{"$f":"data4!$CT$2","v":0}]
[null,null,null,null,"氏名",null,null,null,null,{"$f":"data4!$AJ$2","v":0},null,null,null,null,null,null,null,null,null,null,null,null,null,null,null,null,null,null,null,null,null,null,"氏名",null,null,null,null,{"$f":"data4!$AP$2","v":0},null,null,null,null,null,null,null,null,null,null,null,null,null,null,null,null,null,null,null,null,null,null,null,null,null,null,null,null,null,null,null,null,"氏名",null,null,null,null,{"$f":"data4!$AJ$2","v":0},null,null,null,null,null,null,null,null,null,null,null,null,null,null,null,null,null,null,null,null,null,null,"氏名",null,null,null,null,{"$f":"data4!$AP$2","v":0}]
[null,null,null,null,"個人番号",null,null,null,null,{"$f":"DBCS(data4!$AZ$2)","v":""},null,null,null,null,null,null,{"$f":"DBCS(data4!$BJ$2)","v":""},null,null,null,null,null,{"$f":"DBCS(data4!$BT$2)","v":""},null,null,null,null,null,null,null,null,null,"個人番号"]
[null,"未成年者",null,null,"外国人",null,"死亡退職",null,"災害者",null,"乙欄",null,null,"本人が障害者",null,null,null,null,null,"寡　婦",null,null,null,null,null,"寡夫",null,"勤労学生",null,"中途・就退職",null,null,null,null,null,null,null,null,null,null,null,null,null,null,"受 給 者 生 年 月 日",null,null,null,null,null,null,null,null,null,null,null,null,null,null,null,null,null,null,null,null,null,null,"未成年者",null,null,"外国人",null,"死亡退職",null,"災害者",null,"乙欄",null,null,"本人が障害者",null,null,null,null,null,"寡　婦",null,null,null,null,null,"寡夫",null,"勤労学生",null,"中途・就退職",null,null,null,null,null,null,null,null,null,null,null,null,null,null,"受 給 者 生 年 月 日"]
[null,null,null,null,null,null,null,null,null,null,null,null,null,"特別",null,null,"その他",null,null,"一般",null,null,"特別",null,null,null,null,null,null,null,null,null,null,null,null,null,null,null,null,null,null,null,null,null,null,null,null,null,null,null,null,null,null,null,null,null,null,null,null,null,null,null,null,null,null,null,null,null,null,null,null,null,null,null,null,null,null,null,null,"特別",null,null,"その他",null,null,"一般",null,null,"特別"]
[null,null,null,null,null,null,null,null,null,null,null,null,null,null,null,null,null,null,null,null,null,null,null,null,null,null,null,null,null,"就職",null,null,"退職",null,null,"年",null,null,"月",null,null,"日",null,null,"明",null,null,"大",null,null,"昭",null,null,"平",null,null,"年",null,null,"月",null,null,"日",null,null,null,null,null,null,null,null,null,null,null,null,null,null,null,null,null,null,null,null,null,null,null,null,null,null,null,null,null,null,null,null,"就職",null,null,"退職",null,null,"年",null,null,"月",null,null,"日",null,null,"明",null,null,"大",null,null,"昭",null,null,"平",null,null,"年",null,null,"月",null,null,"日"]
[]
["（税務署提出用）",{"$f":"data4!$B$2","v":0},null,null,{"$f":"data4!$C$2","v":0},null,{"$f":"data4!$D$2","v":0},null,{"$f":"data4!$E$2","v":0},null,{"$f":"data4!$F$2","v":0},null,null,{"$f":"data4!$G$2","v":0},null,null,{"$f":"data4!$H$2","v":0},null,null,{"$f":"data4!$I$2","v":0},null,null,{"$f":"data4!$J$2","v":0},null,null,{"$f":"data4!$K$2","v":0},null,{"$f":"data4!$L$2","v":0},null,{"$f":"data2!$AD$2","v":0},null,null,null,null,null,{"$f":"data2!$S$2","v":0},null,null,{"$f":"data2!$T$2","v":0},null,null,{"$f":"data2!$U$2","v":0},null,null,{"$f":"data2!$Y$2","v":0},null,null,{"$f":"data2!$Z$2","v":0},null,null,{"$f":"data2!$AA$2","v":0},null,null,{"$f":"data2!$AB$2","v":0},null,null,{"$f":"data2!$O$2","v":0},null,null,{"$f":"data2!$P$2","v":0},null,null,{"$f":"data2!$Q$2","v":0},null,null,null,"（受給者交付用）",{"$f":"data4!$B$2","v":0},null,null,{"$f":"data4!$C$2","v":0},null,{"$f":"data4!$D$2","v":0},null,{"$f":"data4!$E$2","v":0},null,{"$f":"data4!$F$2","v":0},null,null,{"$f":"data4!$G$2","v":0},null,null,{"$f":"data4!$H$2","v":0},null,null,{"$f":"data4!$I$2","v":0},null,null,{"$f":"data4!$J$2","v":0},null,null,{"$f":"data4!$K$2","v":0},null,{"$f":"data4!$L$2","v":0},null,{"$f":"data2!$AD$2","v":0},null,null,null,null,null,{"$f":"data2!$S$2","v":0},null,null,{"$f":"data2!$T$2","v":0},null,null,{"$f":"data2!$U$2","v":0},null,null,{"$f":"data2!$Y$2","v":0},null,null,{"$f":"data2!$Z$2","v":0},null,null,{"$f":"data2!$AA$2","v":0},null,null,{"$f":"data2!$AB$2","v":0},null,null,{"$f":"data2!$O$2","v":0},null,null,{"$f":"data2!$P$2","v":0},null,null,{"$f":"data2!$Q$2","v":0}]
[null,null,null,null,null,null,null,null,null,null,null,null,null,null,null,null,null,null,null,null,null,null,null,null,null,null,null,null,null,null,null,null,{"$f":"data2!$AE$2","v":0},null,null,{"$f":"data2!$V$2","v":0},null,null,{"$f":"data2!$W$2","v":0},null,null,{"$f":"data2!$X$2","v":0},null,null,null,null,null,null,null,null,null,null,null,null,null,null,null,null,null,null,null,null,null,null,null,null,null,null,null,null,null,null,null,null,null,null,null,null,null,null,null,null,null,null,null,null,null,null,null,null,null,null,null,null,null,null,null,null,{"$f":"data2!$AE$2","v":0},null,null,{"$f":"data2!$V$2","v":0},null,null,{"$f":"data2!$W$2","v":0},null,null,{"$f":"data2!$X$2","v":0}]
[null,"支 払 者",null,"個人番号又は　　法人番号",null,null,null,null,null,null,{"$f":"DBCS(data1!$D$2)","v":""},null,{"$f":"DBCS(data1!$E$2)","v":""},null,null,null,null,null,null,null,{"$f":"DBCS(data1!$F$2)","v":""},null,null,null,null,null,null,null,{"$f":"DBCS(data1!$G$2)","v":""},null,null,null,null,null,null,null,"（右詰で記載してください。）",null,null,null,null,null,null,null,null,null,null,null,null,null,null,null,null,null,null,null,null,null,null,null,null,null,null,null,null,null,null,"支 払 者"]
[null,null,null,"住所（居所）　　又は所在地",null,null,null,null,null,null,{"$f":"data1!$A$2","v":""},null,null,null,null,null,null,null,null,null,null,null,null,null,null,null,null,null,null,null,null,null,null,null,null,null,null,null,null,null,null,null,null,null,null,null,null,null,null,null,null,null,null,null,null,null,null,null,null,null,null,null,null,null,null,null,null,null,null,"住所（居所）　　又は所在地",null,null,null,null,null,null,{"$f":"data1!$A$2","v":""}]
[null,null,null,"氏名又は名称",null,null,null,null,null,null,{"$f":"data1!$B$2","v":""},null,null,null,null,null,null,null,null,null,null,null,null,null,null,null,null,null,null,null,null,null,null,null,null,null,null,null,null,null,null,null,null,null,null,null,null,"（電話）",null,null,null,{"$f":"data1!$C$2","v":""},null,null,null,null,null,null,null,null,null,null,null,null,null,null,null,null,null,"氏名又は名称",null,null,null,null,null,null,{"$f":"data1!$B$2","v":""},null,null,null,null,null,null,null,null,null,null,null,null,null,null,null,null,null,null,null,null,null,null,null,null,null,null,null,null,null,null,null,null,null,null,null,null,"（電話）",null,null,null,{"$f":"data1!$C$2","v":""}]
[]
[null,"整 　理　 欄",null,null,null,null,null,null,null,null,null,null,null,null,null,null,null,null,null,null,null,null,null,null,null,null,null,null,null,null,null,null,null,null,null,null,null,null,null,null,null,null,null,null,null,null,null,null,null,null,null,null,null,null,null,null,null,null,null,null,null,null,375]
[]
[]
[null,null,null,null,null,null,null,null,null,null,null,null,null,null,null,null,null,null,null,null,null,null,null,null,null,null,null,null,null,null,null,null,null,null,null,null,null,null,null,null,null,null,null,null,null,null,null,null,null,null,null,null,null,null,null,null,null,null,null,null,null,null,null,null,{"$f":"IF(ライセンス2!$D$8=\"ok\",,\"ＳＡＭＰＬＥ\")","v":"ＳＡＭＰＬＥ"},null,null,null,null,null,null,null,null,null,null,null,null,null,null,null,null,null,null,null,null,null,null,null,null,null,null,null,null,null,null,null,null,null,null,null,null,null,null,null,null,null,null,null,null,null,null,null,null,null,null,null,null,null,null,null,null,null,null,null,null,null,null,null,null,null,{"$f":"IF(ライセンス2!$D$8=\"ok\",,\"ＳＡＭＰＬＥ\")","v":"ＳＡＭＰＬＥ"}]
["㉛","※",null,null,null,null,null,null,null,null,null,null,null,null,null,null,null,null,null,null,null,null,null,null,null,null,null,null,null,null,null,null,null,null,null,null,null,"※種別",null,null,null,null,null,null,null,"※整理番号",null,null,null,null,null,null,null,null,null,null,"※",null,null,null,null,null,null,null,null,null,"㉛","※",null,null,null,null,null,null,null,null,null,null,null,null,null,null,null,null,null,null,null,null,null,null,null,null,null,null,null,null,null,null,null,null,null,null,null,"※種別",null,null,null,null,null,null,null,"※整理番号",null,null,null,null,null,null,null,null,null,null,"※"]
[]
[null,"支   払　を受け　　る者",null,null,null,"住所又は居所",null,{"$f":"data2!$K$2","v":0},null,null,null,null,null,null,null,null,null,null,null,null,null,null,null,null,null,null,null,null,null,null,null,null,null,null,null,null,null,null,"氏　名",null,"（受給者番号）",null,null,null,null,null,null,{"$f":"data2!$H$2","v":0},null,null,null,null,null,null,null,null,null,null,null,null,null,null,null,null,null,null,null,"支   払　を受け　　る者",null,null,null,"住所又は居所",null,{"$f":"data2!$K$2","v":0},null,null,null,null,null,null,null,null,null,null,null,null,null,null,null,null,null,null,null,null,null,null,null,null,null,null,null,null,null,null,"氏　名",null,"（受給者番号）",null,null,null,null,null,null,{"$f":"data2!$H$2","v":0}]
["給与支払報告書（個人別明細書)",null,null,null,null,null,null,null,null,null,null,null,null,null,null,null,null,null,null,null,null,null,null,null,null,null,null,null,null,null,null,null,null,null,null,null,null,null,null,null,"（個人番号）",null,null,null,null,null,null,{"$f":"DBCS(data2!$L$2)","v":""},null,null,null,null,null,{"$f":"DBCS(data2!$M$2)","v":""},null,null,null,null,null,{"$f":"DBCS(data2!$N$2)","v":""},null,null,null,null,null,null,"給与支払報告書（個人別明細書)",null,null,null,null,null,null,null,null,null,null,null,null,null,null,null,null,null,null,null,null,null,null,null,null,null,null,null,null,null,null,null,null,null,null,null,null,null,null,null,"（個人番号）",null,null,null,null,null,null,{"$f":"DBCS(data2!$L$2)","v":""},null,null,null,null,null,{"$f":"DBCS(data2!$M$2)","v":""},null,null,null,null,null,{"$f":"DBCS(data2!$N$2)","v":""}]
[null,null,null,null,null,null,null,null,null,null,null,null,null,null,null,null,null,null,null,null,null,null,null,null,null,null,null,null,null,null,null,null,null,null,null,null,null,null,null,null,"（役職名）",null,null,null,null,null,null,{"$f":"data2!$G$2","v":0},null,null,null,null,null,null,null,null,null,null,null,null,null,null,null,null,null,null,null,null,null,null,null,null,null,null,null,null,null,null,null,null,null,null,null,null,null,null,null,null,null,null,null,null,null,null,null,null,null,null,null,null,null,null,null,null,null,null,"（役職名）",null,null,null,null,null,null,{"$f":"data2!$G$2","v":0}]
[null,null,null,null,null,null,null,null,null,null,null,null,null,null,null,null,null,null,null,null,null,null,null,null,null,null,null,null,null,null,null,null,null,null,null,null,null,null,null,null,"氏名",null,"（フリガナ）",null,null,null,{"$f":"data2!$C$2","v":0},null,null,null,null,null,null,null,null,{"$f":"data2!$D$2","v":0},null,null,null,null,null,null,null,null,null,null,null,null,null,null,null,null,null,null,null,null,null,null,null,null,null,null,null,null,null,null,null,null,null,null,null,null,null,null,null,null,null,null,null,null,null,null,null,null,null,null,"氏名",null,"（フリガナ）",null,null,null,{"$f":"data2!$C$2","v":0},null,null,null,null,null,null,null,null,{"$f":"data2!$D$2","v":0}]
[null,null,null,null,null,null,null,null,null,null,null,null,null,null,null,null,null,null,null,null,null,null,null,null,null,null,null,null,null,null,null,null,null,null,null,null,null,null,null,null,null,null,null,null,null,{"$f":"data2!$E$2","v":0},null,null,null,null,null,null,null,null,null,{"$f":"data2!$F$2","v":0},null,null,null,null,null,null,null,null,null,null,null,null,null,null,null,null,null,null,null,null,null,null,null,null,null,null,null,null,null,null,null,null,null,null,null,null,null,null,null,null,null,null,null,null,null,null,null,null,null,null,null,null,null,null,null,{"$f":"data2!$E$2","v":0},null,null,null,null,null,null,null,null,null,{"$f":"data2!$F$2","v":0}]
[null,"種　　　別",null,null,null,null,null,null,null,null,null,null,null,"支　払　金　額",null,null,null,null,null,null,null,null,null,null,null,null,"給与所得控除後の金額",null,null,null,null,null,null,null,null,null,null,null,null,"所得控除の額の合計額",null,null,null,null,null,null,null,null,null,null,null,null,"源  泉  徴  収  税  額",null,null,null,null,null,null,null,null,null,null,null,null,null,null,"種　　　別",null,null,null,null,null,null,null,null,null,null,null,"支　払　金　額",null,null,null,null,null,null,null,null,null,null,null,null,"給与所得控除後の金額",null,null,null,null,null,null,null,null,null,null,null,null,"所得控除の額の合計額",null,null,null,null,null,null,null,null,null,null,null,null,"源  泉  徴  収  税  額"]
[null,{"$f":"IF(ライセンス2!$D$8=\"ok\",data2!$R$2,\"ＳＡＭＰＬＥ\")","v":"ＳＡＭＰＬＥ"},null,null,null,null,null,null,null,null,null,null,null,"内",null,null,null,null,null,null,null,null,null,null,null,"円",null,null,null,null,null,null,null,null,null,null,null,null,"円",null,null,null,null,null,null,null,null,null,null,null,null,"円","内",null,null,null,null,null,null,null,null,null,null,null,"円",null,null,{"$f":"IF(ライセンス2!$D$8=\"ok\",data2!$R$2,\"ＳＡＭＰＬＥ\")","v":"ＳＡＭＰＬＥ"},null,null,null,null,null,null,null,null,null,null,null,"内",null,null,null,null,null,null,null,null,null,null,null,"円",null,null,null,null,null,null,null,null,null,null,null,null,"円",null,null,null,null,null,null,null,null,null,null,null,null,"円","内",null,null,null,null,null,null,null,null,null,null,null,"円"]
[null,null,null,null,null,null,null,null,null,null,null,null,null,{"$f":"IF(ライセンス2!$D$8=\"ok\",data5!$D$2,\"ＳＡＭＰＬＥ\")","v":"ＳＡＭＰＬＥ"},null,null,null,null,null,null,null,null,null,null,null,null,{"$f":"IF(data2!$B$2=\"要\",data5!$E$2,\"\")","v":""},null,null,null,null,null,null,null,null,null,null,null,null,{"$f":"IF(data2!$B$2=\"要\",data5!$Q$2,\"\")","v":""},null,null,null,null,null,null,null,null,null,null,null,null,{"$f":"IF(IF(data2!$B$2=\"否\",data5!$U$2,data5!$Y$2)=0,\"0\",IF(data2!$B$2=\"否\",data5!$U$2,data5!$Y$2))","v":"0"},null,null,null,null,null,null,null,null,null,null,null,null,null,null,null,null,null,null,null,null,null,null,null,null,null,null,{"$f":"IF(ライセンス2!$D$8=\"ok\",data5!$D$2,\"ＳＡＭＰＬＥ\")","v":"ＳＡＭＰＬＥ"},null,null,null,null,null,null,null,null,null,null,null,null,{"$f":"IF(data2!$B$2=\"要\",data5!$E$2,\"\")","v":""},null,null,null,null,null,null,null,null,null,null,null,null,{"$f":"IF(data2!$B$2=\"要\",data5!$Q$2,\"\")","v":""},null,null,null,null,null,null,null,null,null,null,null,null,{"$f":"IF(IF(data2!$B$2=\"否\",data5!$U$2,data5!$Y$2)=0,\"0\",IF(data2!$B$2=\"否\",data5!$U$2,data5!$Y$2))","v":"0"}]
[null,"控除対象配偶者",null,null,null,null,null,null,null,null,null,null,null,"配偶者特別              控除の額",null,null,null,null,null,null,null,null,null,"控除対象扶養親族の数",null,null,null,null,null,null,null,null,null,null,null,null,null,null,null,null,null,null,null,null,null,"16歳未満扶養親族の数",null,null,null,"障 害 者 の 数　　　　　　　　（本人を除く）",null,null,null,null,null,null,null,null,null,null,null,"非居住者である　親族の数",null,null,null,null,null,"控除対象配偶者",null,null,null,null,null,null,null,null,null,null,null,"配偶者特別              控除の額",null,null,null,null,null,null,null,null,null,"控除対象扶養親族の数",null,null,null,null,null,null,null,null,null,null,null,null,null,null,null,null,null,null,null,null,null,"16歳未満扶養親族の数",null,null,null,"障 害 者 の 数　　　　　　　　（本人を除く）",null,null,null,null,null,null,null,null,null,null,null,"非居住者である　親族の数"]
[null,"の有無等",null,null,null,null,null,null,null,null,"老人",null,null,null,null,null,null,null,null,null,null,null,null,"（　配　偶　者　を　除　く　）",null,null,null,null,null,null,null,null,null,null,null,null,null,null,null,null,null,null,null,null,null,null,null,null,null,null,null,null,null,null,null,null,null,null,null,null,null,null,null,null,null,null,null,"の有無等",null,null,null,null,null,null,null,null,"老人",null,null,null,null,null,null,null,null,null,null,null,null,"（　配　偶　者　を　除　く　）"]
[null,null,null,null,null,null,null,null,null,null,null,null,null,null,null,null,null,null,null,null,null,null,null,"特　定",null,null,null,null,null,"老　　人",null,null,null,null,null,null,null,null,null,"その他",null,null,null,null,null,null,null,null,null,"特　別",null,null,null,null,null,null,null,"その他",null,null,null,null,null,null,null,null,null,null,null,null,null,null,null,null,null,null,null,null,null,null,null,null,null,null,null,null,null,null,null,"特　定",null,null,null,null,null,"老　　人",null,null,null,null,null,null,null,null,null,"その他",null,null,null,null,null,null,null,null,null,"特　別",null,null,null,null,null,null,null,"その他"]
[null,"有",null,null,null,"従有",null,null,null,null,null,null,null,null,null,null,null,null,null,null,null,null,"円","人",null,null,null,"従人",null,"内",null,null,null,"人",null,null,null,"従人",null,"人",null,null,null,"従人",null,"人",null,null,null,"内",null,null,null,"人",null,null,null,"人",null,null,null,"人",null,null,null,null,null,"有",null,null,null,"従有",null,null,null,null,null,null,null,null,null,null,null,null,null,null,null,null,"円","人",null,null,null,"従人",null,"内",null,null,null,"人",null,null,null,"従人",null,"人",null,null,null,"従人",null,"人",null,null,null,"内",null,null,null,"人",null,null,null,"人",null,null,null,"人"]
[null,{"$f":"IF(AND(data2!$B$2=\"要\",OR(data4!$R$2=\"一般の控除対象配偶者\",data4!$R$2=\"老人控除対象配偶者\")),\"○\",\"\")","v":""},null,null,null,null,null,null,null,{"$f":"IF(AND(data2!$B$2=\"要\",data4!$R$2=\"老人控除対象配偶者\"),\"○\",\"\")","v":""},null,null,null,{"$f":"data5!$K$2","v":0},null,null,null,null,null,null,null,null,null,{"$f":"data4!$AQ$7","v":0},null,null,null,null,null,{"$f":"data4!$AR$7","v":0},null,null,null,{"$f":"data4!$AS$7+data4!$AR$7","v":0},null,null,null,null,null,{"$f":"data4!$AT$7","v":0},null,null,null,null,null,{"$f":"data4!$AI$7","v":0},null,null,null,{"$f":"data4!$BZ$7","v":0},null,null,null,{"$f":"data4!$CA$7+data4!$BZ$7","v":0},null,null,null,{"$f":"data4!$CB$7","v":0},null,null,null,{"$f":"data4!$CP$6","v":0},null,null,null,null,null,{"$f":"IF(AND(data2!$B$2=\"要\",OR(data4!$R$2=\"一般の控除対象配偶者\",data4!$R$2=\"老人控除対象配偶者\")),\"○\",\"\")","v":""},null,null,null,null,null,null,null,{"$f":"IF(AND(data2!$B$2=\"要\",data4!$R$2=\"老人控除対象配偶者\"),\"○\",\"\")","v":""},null,null,null,{"$f":"data5!$K$2","v":0},null,null,null,null,null,null,null,null,null,{"$f":"data4!$AQ$7","v":0},null,null,null,null,null,{"$f":"data4!$AR$7","v":0},null,null,null,{"$f":"data4!$AS$7+data4!$AR$7","v":0},null,null,null,null,null,{"$f":"data4!$AT$7","v":0},null,null,null,null,null,{"$f":"data4!$AI$7","v":0},null,null,null,{"$f":"data4!$BZ$7","v":0},null,null,null,{"$f":"data4!$CA$7+data4!$BZ$7","v":0},null,null,null,{"$f":"data4!$CB$7","v":0},null,null,null,{"$f":"data4!$CP$6","v":0}]
[]
[]
[null,"社会保険料等の金額",null,null,null,null,null,null,null,null,null,null,null,null,null,null,null,"生命保険料の控除額",null,null,null,null,null,null,null,null,null,null,null,null,null,null,null,"地震保険料の控除額",null,null,null,null,null,null,null,null,null,null,null,null,null,null,null,"住宅借入金等特別控除の額",null,null,null,null,null,null,null,null,null,null,null,null,null,null,null,null,null,"社会保険料等の金額",null,null,null,null,null,null,null,null,null,null,null,null,null,null,null,"生命保険料の控除額",null,null,null,null,null,null,null,null,null,null,null,null,null,null,null,"地震保険料の控除額",null,null,null,null,null,null,null,null,null,null,null,null,null,null,null,"住宅借入金等特別控除の額"]
[null,"内",null,null,null,{"$f":"data4!$CW$2+data4!$CX$2","v":0},null,null,null,null,null,null,null,null,null,null,"円",null,null,null,null,null,null,null,null,null,null,null,null,null,null,null,"円",null,null,null,null,null,null,null,null,null,null,null,null,null,null,null,"円",null,null,null,null,null,null,null,null,null,null,null,null,null,null,null,"円",null,null,"内",null,null,null,{"$f":"data4!$CW$2+data4!$CX$2","v":0},null,null,null,null,null,null,null,null,null,null,"円",null,null,null,null,null,null,null,null,null,null,null,null,null,null,null,"円",null,null,null,null,null,null,null,null,null,null,null,null,null,null,null,"円",null,null,null,null,null,null,null,null,null,null,null,null,null,null,null,"円"]
[null,{"$f":"data5!$F$2+data5!$G$2+data5!$H$2","v":0},null,null,null,null,null,null,null,null,null,null,null,null,null,null,null,{"$f":"data5!$I$2","v":0},null,null,null,null,null,null,null,null,null,null,null,null,null,null,null,{"$f":"data5!$J$2","v":0},null,null,null,null,null,null,null,null,null,null,null,null,null,null,null,{"$f":"MIN(data5!$V$2,data5!$W$2)","v":0},null,null,null,null,null,null,null,null,null,null,null,null,null,null,null,null,null,{"$f":"data5!$F$2+data5!$G$2+data5!$H$2","v":0},null,null,null,null,null,null,null,null,null,null,null,null,null,null,null,{"$f":"data5!$I$2","v":0},null,null,null,null,null,null,null,null,null,null,null,null,null,null,null,{"$f":"data5!$J$2","v":0},null,null,null,null,null,null,null,null,null,null,null,null,null,null,null,{"$f":"MIN(data5!$V$2,data5!$W$2)","v":0}]
[]
[null,"(摘要）",null,null,null,null,{"$f":"IF(data4!$AK$2=\"\",\"\",\"(1)\")","v":""},null,{"$f":"data4!$AK$2","v":0},null,null,null,null,null,null,null,{"$f":"IF(data4!$AL$2=\"\",\"\",\"(2)\")","v":""},null,{"$f":"data4!$AL$2","v":0},null,null,null,null,null,null,null,null,null,null,null,null,null,null,null,null,null,null,null,null,null,null,null,null,null,null,null,null,null,null,null,null,null,null,null,null,null,null,null,null,null,null,null,null,null,null,null,null,"(摘要）",null,null,null,null,{"$f":"IF(data4!$AK$2=\"\",\"\",\"(1)\")","v":""},null,{"$f":"data4!$AK$2","v":0},null,null,null,null,null,null,null,{"$f":"IF(data4!$AL$2=\"\",\"\",\"(2)\")","v":""},null,{"$f":"data4!$AL$2","v":0}]
[null,null,null,null,null,{"$f":"data4!$DR$2","v":0},null,null,null,null,null,null,null,null,null,null,null,null,null,null,null,null,null,null,null,null,null,null,null,null,null,null,null,null,null,null,null,null,null,null,null,null,null,null,null,null,null,null,null,null,null,null,null,null,null,null,null,null,null,null,null,null,null,null,null,null,null,null,null,null,null,{"$f":"data4!$DR$2","v":0}]
[]
[]
[]
[null,"生命保険料の金額の　内訳",null,null,null,"新生命保険料の金額",null,null,null,null,null,null,null,null,null,null,"円","旧生命保険料の金額",null,null,null,null,null,null,null,null,null,null,"円","介護医療保　険料の金額",null,null,null,null,null,null,null,null,null,null,"円","新個人年金         保険料の金額",null,null,null,null,null,null,null,null,null,null,"円","旧個人年金      保険料の金額",null,null,null,null,null,null,null,null,null,null,"円",null,null,"生命保険料の金額の　内訳",null,null,null,"新生命保険料の金額",null,null,null,null,null,null,null,null,null,null,"円","旧生命保険料の金額",null,null,null,null,null,null,null,null,null,null,"円","介護医療保　険料の金額",null,null,null,null,null,null,null,null,null,null,"円","新個人年金         保険料の金額",null,null,null,null,null,null,null,null,null,null,"円","旧個人年金      保険料の金額",null,null,null,null,null,null,null,null,null,null,"円"]
[null,null,null,null,null,null,null,null,null,null,{"$f":"data4!$CY$2","v":0},null,null,null,null,null,null,null,null,null,null,null,{"$f":"data4!$CZ$2","v":0},null,null,null,null,null,null,null,null,null,null,null,{"$f":"data4!$DA$2","v":0},null,null,null,null,null,null,null,null,null,null,null,{"$f":"data4!$DB$2","v":0},null,null,null,null,null,null,null,null,null,null,null,{"$f":"data4!$DC$2","v":0},null,null,null,null,null,null,null,null,null,null,null,null,null,null,null,null,null,{"$f":"data4!$CY$2","v":0},null,null,null,null,null,null,null,null,null,null,null,{"$f":"data4!$CZ$2","v":0},null,null,null,null,null,null,null,null,null,null,null,{"$f":"data4!$DA$2","v":0},null,null,null,null,null,null,null,null,null,null,null,{"$f":"data4!$DB$2","v":0},null,null,null,null,null,null,null,null,null,null,null,{"$f":"data4!$DC$2","v":0}]
[null,"住宅借入金等特別控除の額の内訳",null,null,null,"住宅借入金等　　　　　　特別控除適用数",null,null,null,null,{"$f":"data4!$DF$2","v":0},null,null,null,null,null,null,"居住開始年月日（１回目）",null,null,null,null,"年",null,null,null,null,"月",null,null,null,"日",null,null,null,"住宅借入金等特別　　　控除区分（１回目）",null,null,null,null,null,{"$f":"data4!$DN$2","v":0},null,null,null,null,null,"住宅借入金等　　　　年末残高（１回目）",null,null,null,null,null,"円",null,null,null,null,null,null,null,null,null,null,null,null,null,"住宅借入金等特別控除の額の内訳",null,null,null,"住宅借入金等　　　　　　特別控除適用数",null,null,null,null,{"$f":"data4!$DF$2","v":0},null,null,null,null,null,null,"居住開始年月日（１回目）",null,null,null,null,"年",null,null,null,null,"月",null,null,null,"日",null,null,null,"住宅借入金等特別　　　控除区分（１回目）",null,null,null,null,null,{"$f":"data4!$DN$2","v":0},null,null,null,null,null,"住宅借入金等　　　　年末残高（１回目）",null,null,null,null,null,"円"]
[null,null,null,null,null,null,null,null,null,null,null,null,null,null,null,null,null,null,null,null,null,null,{"$f":"data4!$DH$2","v":0},null,null,null,null,{"$f":"data4!$DJ$2","v":0},null,null,null,{"$f":"data4!$DL$2","v":0},null,null,null,null,null,null,null,null,null,null,null,null,null,null,null,null,null,null,null,null,null,{"$f":"data4!$DP$2","v":0},null,null,null,null,null,null,null,null,null,null,null,null,null,null,null,null,null,null,null,null,null,null,null,null,null,null,null,null,null,null,null,null,null,null,{"$f":"data4!$DH$2","v":0},null,null,null,null,{"$f":"data4!$DJ$2","v":0},null,null,null,{"$f":"data4!$DL$2","v":0},null,null,null,null,null,null,null,null,null,null,null,null,null,null,null,null,null,null,null,null,null,{"$f":"data4!$DP$2","v":0}]
[null,null,null,null,null,"住宅借入金等　　特別控除可能額",null,null,null,null,null,null,null,null,null,null,"円","居住開始年月日（２回目）",null,null,null,null,"年",null,null,null,null,"月",null,null,null,"日",null,null,null,"住宅借入金等特別　　　控除区分（２回目）",null,null,null,null,null,{"$f":"data4!$DO$2","v":0},null,null,null,null,null,"住宅借入金等　　　　年末残高（２回目）",null,null,null,null,null,"円",null,null,null,null,null,null,null,null,null,null,null,null,null,null,null,null,null,"住宅借入金等　　特別控除可能額",null,null,null,null,null,null,null,null,null,null,"円","居住開始年月日（２回目）",null,null,null,null,"年",null,null,null,null,"月",null,null,null,"日",null,null,null,"住宅借入金等特別　　　控除区分（２回目）",null,null,null,null,null,{"$f":"data4!$DO$2","v":0},null,null,null,null,null,"住宅借入金等　　　　年末残高（２回目）",null,null,null,null,null,"円"]
[null,null,null,null,null,null,null,null,null,null,{"$f":"data4!$DG$2","v":0},null,null,null,null,null,null,null,null,null,null,null,{"$f":"data4!$DI$2","v":0},null,null,null,null,{"$f":"data4!$DK$2","v":0},null,null,null,{"$f":"data4!$DM$2","v":0},null,null,null,null,null,null,null,null,null,null,null,null,null,null,null,null,null,null,null,null,null,{"$f":"data4!$DQ$2","v":0},null,null,null,null,null,null,null,null,null,null,null,null,null,null,null,null,null,null,null,null,null,null,{"$f":"data4!$DG$2","v":0},null,null,null,null,null,null,null,null,null,null,null,{"$f":"data4!$DI$2","v":0},null,null,null,null,{"$f":"data4!$DK$2","v":0},null,null,null,{"$f":"data4!$DM$2","v":0},null,null,null,null,null,null,null,null,null,null,null,null,null,null,null,null,null,null,null,null,null,{"$f":"data4!$DQ$2","v":0}]
[null,"控除対象配偶者",null,null,"（フリガナ）",null,null,null,null,{"$f":"data4!$P$2","v":0},null,null,null,null,null,null,null,null,null,null,null,null,null,null,"区分",null,{"$f":"data4!$S$2","v":0},null,null,"配偶者の　　　　　合計所得",null,null,null,null,null,"円",null,null,null,null,null,"国民年金保険　　　　　　料等の金額",null,null,null,null,null,"円",null,null,null,null,null,"旧長期損害　　　　保険料の金額",null,null,null,null,null,"円",null,null,null,null,null,null,null,"控除対象配偶者",null,null,"（フリガナ）",null,null,null,null,{"$f":"data4!$P$2","v":0},null,null,null,null,null,null,null,null,null,null,null,null,null,null,"区分",null,{"$f":"data4!$S$2","v":0},null,null,"配偶者の　　　　　合計所得",null,null,null,null,null,"円",null,null,null,null,null,"国民年金保険　　　　　　料等の金額",null,null,null,null,null,"円",null,null,null,null,null,"旧長期損害　　　　保険料の金額",null,null,null,null,null,"円"]
[null,null,null,null,"氏名",null,null,null,null,{"$f":"data4!$Q$2","v":0},null,null,null,null,null,null,null,null,null,null,null,null,null,null,null,null,null,null,null,null,null,null,null,null,null,{"$f":"data4!$N$2","v":0},null,null,null,null,null,null,null,null,null,null,null,{"$f":"data4!$CV$2","v":0},null,null,null,null,null,null,null,null,null,null,null,{"$f":"data4!$DE$2","v":0},null,null,null,null,null,null,null,null,null,null,"氏名",null,null,null,null,{"$f":"data4!$Q$2","v":0},null,null,null,null,null,null,null,null,null,null,null,null,null,null,null,null,null,null,null,null,null,null,null,null,null,{"$f":"data4!$N$2","v":0},null,null,null,null,null,null,null,null,null,null,null,{"$f":"data4!$CV$2","v":0},null,null,null,null,null,null,null,null,null,null,null,{"$f":"data4!$DE$2","v":0}]
[null,null,null,null,"個人番号",null,null,null,null,{"$f":"DBCS(data4!$T$2)","v":""},null,null,null,null,null,null,{"$f":"DBCS(data4!$U$2)","v":""},null,null,null,null,null,{"$f":"DBCS(data4!$V$2)","v":""},null,null,null,null,null,null,null,null,null,null,null,null,null,null,null,null,null,null,null,null,null,null,null,null,null,null,null,null,null,null,null,null,null,null,null,null,null,null,null,null,null,null,null,null,null,null,null,"個人番号",null,null,null,null,{"$f":"DBCS(data4!$T$2)","v":""},null,null,null,null,null,null,{"$f":"DBCS(data4!$U$2)","v":""},null,null,null,null,null,{"$f":"DBCS(data4!$V$2)","v":""}]
[null,"控除対象扶養親族",null,1,"（フリガナ）",null,null,null,null,{"$f":"data4!$W$2","v":0},null,null,null,null,null,null,null,null,null,null,null,null,null,null,"区分",null,{"$f":"data4!$CK$2","v":0},null,null,"16歳未満の扶養親族",null,1,"（フリガナ）",null,null,null,null,{"$f":"data4!$AC$2","v":0},null,null,null,null,null,null,null,null,null,null,null,null,null,null,"区分",null,{"$f":"data4!$CQ$2","v":0},null,null,"５人目以降の控除対象扶養親族の個人番号",null,null,null,null,null,null,null,null,null,"控除対象扶養親族",null,1,"（フリガナ）",null,null,null,null,{"$f":"data4!$W$2","v":0},null,null,null,null,null,null,null,null,null,null,null,null,null,null,"区分",null,{"$f":"data4!$CK$2","v":0},null,null,"16歳未満の扶養親族",null,1,"（フリガナ）",null,null,null,null,{"$f":"data4!$AC$2","v":0},null,null,null,null,null,null,null,null,null,null,null,null,null,null,"区分",null,{"$f":"data4!$CQ$2","v":0},null,null,"５人目以降の控除対象扶養親族の個人番号"]
[null,null,null,null,"氏名",null,null,null,null,{"$f":"data4!$AG$2","v":0},null,null,null,null,null,null,null,null,null,null,null,null,null,null,null,null,null,null,null,null,null,null,"氏名",null,null,null,null,{"$f":"data4!$AM$2","v":0},null,null,null,null,null,null,null,null,null,null,null,null,null,null,null,null,null,null,null,null,null,null,null,null,null,null,null,null,null,null,null,null,"氏名",null,null,null,null,{"$f":"data4!$AG$2","v":0},null,null,null,null,null,null,null,null,null,null,null,null,null,null,null,null,null,null,null,null,null,null,"氏名",null,null,null,null,{"$f":"data4!$AM$2","v":0}]
[null,null,null,null,"個人番号",null,null,null,null,{"$f":"DBCS(data4!$AW$2)","v":""},null,null,null,null,null,null,{"$f":"DBCS(data4!$BG$2)","v":""},null,null,null,null,null,{"$f":"DBCS(data4!$BQ$2)","v":""},null,null,null,null,null,null,null,null,null,"個人番号",null,null,null,null,{"$f":"DBCS(data4!$BC$2)","v":""},null,null,null,null,null,null,{"$f":"DBCS(data4!$BM$2)","v":""},null,null,null,null,null,{"$f":"DBCS(data4!$BW$2)","v":""},null,null,null,null,null,null,{"$f":"IF(data4!$BA$2=0,\"\",\"（1）\")","v":""},null,null,null,null,null,null,null,null,null,null,null,null,"個人番号",null,null,null,null,{"$f":"DBCS(data4!$AW$2)","v":""},null,null,null,null,null,null,{"$f":"DBCS(data4!$BG$2)","v":""},null,null,null,null,null,{"$f":"DBCS(data4!$BQ$2)","v":""},null,null,null,null,null,null,null,null,null,"個人番号",null,null,null,null,{"$f":"DBCS(data4!$BC$2)","v":""},null,null,null,null,null,null,{"$f":"DBCS(data4!$BM$2)","v":""},null,null,null,null,null,{"$f":"DBCS(data4!$BW$2)","v":""},null,null,null,null,null,null,{"$f":"IF(data4!$BA$2=0,\"\",\"（1）\")","v":""}]
[null,null,null,2,"（フリガナ）",null,null,null,null,{"$f":"data4!$X$2","v":0},null,null,null,null,null,null,null,null,null,null,null,null,null,null,"区分",null,{"$f":"data4!$CL$2","v":0},null,null,null,null,2,"（フリガナ）",null,null,null,null,{"$f":"data4!$AD$2","v":0},null,null,null,null,null,null,null,null,null,null,null,null,null,null,"区分",null,{"$f":"data4!$CR$2","v":0},null,null,null,{"$f":"IF(data4!$BA$2=\"\",\"\",data4!$BA$2)","v":""},null,{"$f":"IF(data4!$BK$2=\"\",\"\",data4!$BK$2)","v":""},null,{"$f":"IF(data4!$BU$2=\"\",\"\",data4!$BU$2)","v":""},null,null,null,null,null,null,2,"（フリガナ）",null,null,null,null,{"$f":"data4!$X$2","v":0},null,null,null,null,null,null,null,null,null,null,null,null,null,null,"区分",null,{"$f":"data4!$CL$2","v":0},null,null,null,null,2,"（フリガナ）",null,null,null,null,{"$f":"data4!$AD$2","v":0},null,null,null,null,null,null,null,null,null,null,null,null,null,null,"区分",null,{"$f":"data4!$CR$2","v":0},null,null,null,{"$f":"IF(data4!$BA$2=\"\",\"\",data4!$BA$2)","v":""},null,{"$f":"IF(data4!$BK$2=\"\",\"\",data4!$BK$2)","v":""},null,{"$f":"IF(data4!$BU$2=\"\",\"\",data4!$BU$2)","v":""}]
[null,null,null,null,"氏名",null,null,null,null,{"$f":"data4!$AH$2","v":0},null,null,null,null,null,null,null,null,null,null,null,null,null,null,null,null,null,null,null,null,null,null,"氏名",null,null,null,null,{"$f":"data4!$AN$2","v":0},null,null,null,null,null,null,null,null,null,null,null,null,null,null,null,null,null,null,null,{"$f":"IF(data4!$BB$2=0,\"\",\"（2）\")","v":""},null,null,null,null,null,null,null,null,null,null,null,null,"氏名",null,null,null,null,{"$f":"data4!$AH$2","v":0},null,null,null,null,null,null,null,null,null,null,null,null,null,null,null,null,null,null,null,null,null,null,"氏名",null,null,null,null,{"$f":"data4!$AN$2","v":0},null,null,null,null,null,null,null,null,null,null,null,null,null,null,null,null,null,null,null,{"$f":"IF(data4!$BB$2=0,\"\",\"（2）\")","v":""}]
[null,null,null,null,"個人番号",null,null,null,null,{"$f":"DBCS(data4!$AX$2)","v":""},null,null,null,null,null,null,{"$f":"DBCS(data4!$BH$2)","v":""},null,null,null,null,null,{"$f":"DBCS(data4!$BR$2)","v":""},null,null,null,null,null,null,null,null,null,"個人番号",null,null,null,null,{"$f":"DBCS(data4!$BD$2)","v":""},null,null,null,null,null,null,{"$f":"DBCS(data4!$BN$2)","v":""},null,null,null,null,null,{"$f":"DBCS(data4!$BX$2)","v":""},null,null,null,null,null,null,null,{"$f":"IF(data4!$BB$2=\"\",\"\",data4!$BB$2)","v":""},null,{"$f":"IF(data4!$BL$2=\"\",\"\",data4!$BL$2)","v":""},null,{"$f":"IF(data4!$BV$2=\"\",\"\",data4!$BV$2)","v":""},null,null,null,null,null,null,null,"個人番号",null,null,null,null,{"$f":"DBCS(data4!$AX$2)","v":""},null,null,null,null,null,null,{"$f":"DBCS(data4!$BH$2)","v":""},null,null,null,null,null,{"$f":"DBCS(data4!$BR$2)","v":""},null,null,null,null,null,null,null,null,null,"個人番号",null,null,null,null,{"$f":"DBCS(data4!$BD$2)","v":""},null,null,null,null,null,null,{"$f":"DBCS(data4!$BN$2)","v":""},null,null,null,null,null,{"$f":"DBCS(data4!$BX$2)","v":""},null,null,null,null,null,null,null,{"$f":"IF(data4!$BB$2=\"\",\"\",data4!$BB$2)","v":""},null,{"$f":"IF(data4!$BL$2=\"\",\"\",data4!$BL$2)","v":""},null,{"$f":"IF(data4!$BV$2=\"\",\"\",data4!$BV$2)","v":""}]
[null,null,null,3,"（フリガナ）",null,null,null,null,{"$f":"data4!$Y$2","v":0},null,null,null,null,null,null,null,null,null,null,null,null,null,null,"区分",null,{"$f":"data4!$CM$2","v":0},null,null,null,null,3,"（フリガナ）",null,null,null,null,{"$f":"data4!$AE$2","v":0},null,null,null,null,null,null,null,null,null,null,null,null,null,null,"区分",null,{"$f":"data4!$CS$2","v":0},null,null,null,null,null,null,null,null,null,null,null,null,null,null,3,"（フリガナ）",null,null,null,null,{"$f":"data4!$Y$2","v":0},null,null,null,null,null,null,null,null,null,null,null,null,null,null,"区分",null,{"$f":"data4!$CM$2","v":0},null,null,null,null,3,"（フリガナ）",null,null,null,null,{"$f":"data4!$AE$2","v":0},null,null,null,null,null,null,null,null,null,null,null,null,null,null,"区分",null,{"$f":"data4!$CS$2","v":0}]
[null,null,null,null,"氏名",null,null,null,null,{"$f":"data4!$AI$2","v":0},null,null,null,null,null,null,null,null,null,null,null,null,null,null,null,null,null,null,null,null,null,null,"氏名",null,null,null,null,{"$f":"data4!$AO$2","v":0},null,null,null,null,null,null,null,null,null,null,null,null,null,null,null,null,null,null,null,"５人目以降の１６歳未満の扶養親族等の個人番号",null,null,null,null,null,null,null,null,null,null,null,null,"氏名",null,null,null,null,{"$f":"data4!$AI$2","v":0},null,null,null,null,null,null,null,null,null,null,null,null,null,null,null,null,null,null,null,null,null,null,"氏名",null,null,null,null,{"$f":"data4!$AO$2","v":0},null,null,null,null,null,null,null,null,null,null,null,null,null,null,null,null,null,null,null,"５人目以降の１６歳未満の扶養親族等の個人番号"]
[null,null,null,null,"個人番号",null,null,null,null,{"$f":"DBCS(data4!$AY$2)","v":""},null,null,null,null,null,null,{"$f":"DBCS(data4!$BI$2)","v":""},null,null,null,null,null,{"$f":"DBCS(data4!$BS$2)","v":""},null,null,null,null,null,null,null,null,null,"個人番号",null,null,null,null,{"$f":"DBCS(data4!$BE$2)","v":""},null,null,null,null,null,null,{"$f":"DBCS(data4!$BO$2)","v":""},null,null,null,null,null,{"$f":"DBCS(data4!$BY$2)","v":""},null,null,null,null,null,null,null,null,null,null,null,null,null,null,null,null,null,null,null,"個人番号",null,null,null,null,{"$f":"DBCS(data4!$AY$2)","v":""},null,null,null,null,null,null,{"$f":"DBCS(data4!$BI$2)","v":""},null,null,null,null,null,{"$f":"DBCS(data4!$BS$2)","v":""},null,null,null,null,null,null,null,null,null,"個人番号",null,null,null,null,{"$f":"DBCS(data4!$BE$2)","v":""},null,null,null,null,null,null,{"$f":"DBCS(data4!$BO$2)","v":""},null,null,null,null,null,{"$f":"DBCS(data4!$BY$2)","v":""}]
[null,null,null,4,"（フリガナ）",null,null,null,null,{"$f":"data4!$Z$2","v":0},null,null,null,null,null,null,null,null,null,null,null,null,null,null,"区分",null,{"$f":"data4!$CN$2","v":0},null,null,null,null,4,"（フリガナ）",null,null,null,null,{"$f":"data4!$AF$2","v":0},null,null,null,null,null,null,null,null,null,null,null,null,null,null,"区分",null,{"$f":"data4!$CT$2","v":0},null,null,null,null,null,null,null,null,null,null,null,null,null,null,4,"（フリガナ）",null,null,null,null,{"$f":"data4!$Z$2","v":0},null,null,null,null,null,null,null,null,null,null,null,null,null,null,"区分",null,{"$f":"data4!$CN$2","v":0},null,null,null,null,4,"（フリガナ）",null,null,null,null,{"$f":"data4!$AF$2","v":0},null,null,null,null,null,null,null,null,null,null,null,null,null,null,"区分",null,{"$f":"data4!$CT$2","v":0}]
[null,null,null,null,"氏名",null,null,null,null,{"$f":"data4!$AJ$2","v":0},null,null,null,null,null,null,null,null,null,null,null,null,null,null,null,null,null,null,null,null,null,null,"氏名",null,null,null,null,{"$f":"data4!$AP$2","v":0},null,null,null,null,null,null,null,null,null,null,null,null,null,null,null,null,null,null,null,null,null,null,null,null,null,null,null,null,null,null,null,null,"氏名",null,null,null,null,{"$f":"data4!$AJ$2","v":0},null,null,null,null,null,null,null,null,null,null,null,null,null,null,null,null,null,null,null,null,null,null,"氏名",null,null,null,null,{"$f":"data4!$AP$2","v":0}]
[null,null,null,null,"個人番号",null,null,null,null,{"$f":"DBCS(data4!$AZ$2)","v":""},null,null,null,null,null,null,{"$f":"DBCS(data4!$BJ$2)","v":""},null,null,null,null,null,{"$f":"DBCS(data4!$BT$2)","v":""},null,null,null,null,null,null,null,null,null,"個人番号",null,null,null,null,{"$f":"DBCS(data4!$BF$2)","v":""},null,null,null,null,null,null,{"$f":"DBCS(data4!$BP$2)","v":""},null,null,null,null,null,{"$f":"DBCS(data4!$BZ$2)","v":""},null,null,null,null,null,null,null,null,null,null,null,null,null,null,null,null,null,null,null,"個人番号",null,null,null,null,{"$f":"DBCS(data4!$AZ$2)","v":""},null,null,null,null,null,null,{"$f":"DBCS(data4!$BJ$2)","v":""},null,null,null,null,null,{"$f":"DBCS(data4!$BT$2)","v":""},null,null,null,null,null,null,null,null,null,"個人番号",null,null,null,null,{"$f":"DBCS(data4!$BF$2)","v":""},null,null,null,null,null,null,{"$f":"DBCS(data4!$BP$2)","v":""},null,null,null,null,null,{"$f":"DBCS(data4!$BZ$2)","v":""}]
[null,"未成年者",null,null,"外国人",null,"死亡退職",null,"災害者",null,"乙欄",null,null,"本人が障害者",null,null,null,null,null,"寡　婦",null,null,null,null,null,"寡夫",null,"勤労学生",null,"中途・就退職",null,null,null,null,null,null,null,null,null,null,null,null,null,null,"受 給 者 生 年 月 日",null,null,null,null,null,null,null,null,null,null,null,null,null,null,null,null,null,null,null,null,null,null,"未成年者",null,null,"外国人",null,"死亡退職",null,"災害者",null,"乙欄",null,null,"本人が障害者",null,null,null,null,null,"寡　婦",null,null,null,null,null,"寡夫",null,"勤労学生",null,"中途・就退職",null,null,null,null,null,null,null,null,null,null,null,null,null,null,"受 給 者 生 年 月 日"]
[null,null,null,null,null,null,null,null,null,null,null,null,null,"特別",null,null,"その他",null,null,"一般",null,null,"特別",null,null,null,null,null,null,null,null,null,null,null,null,null,null,null,null,null,null,null,null,null,null,null,null,null,null,null,null,null,null,null,null,null,null,null,null,null,null,null,null,null,null,null,null,null,null,null,null,null,null,null,null,null,null,null,null,"特別",null,null,"その他",null,null,"一般",null,null,"特別"]
[null,null,null,null,null,null,null,null,null,null,null,null,null,null,null,null,null,null,null,null,null,null,null,null,null,null,null,null,null,"就職",null,null,"退職",null,null,"年",null,null,"月",null,null,"日",null,null,"明",null,null,"大",null,null,"昭",null,null,"平",null,null,"年",null,null,"月",null,null,"日",null,null,null,null,null,null,null,null,null,null,null,null,null,null,null,null,null,null,null,null,null,null,null,null,null,null,null,null,null,null,null,null,"就職",null,null,"退職",null,null,"年",null,null,"月",null,null,"日",null,null,"明",null,null,"大",null,null,"昭",null,null,"平",null,null,"年",null,null,"月",null,null,"日"]
[]
["（市区町村提出用）",{"$f":"data4!$B$2","v":0},null,null,{"$f":"data4!$C$2","v":0},null,{"$f":"data4!$D$2","v":0},null,{"$f":"data4!$E$2","v":0},null,{"$f":"data4!$F$2","v":0},null,null,{"$f":"data4!$G$2","v":0},null,null,{"$f":"data4!$H$2","v":0},null,null,{"$f":"data4!$I$2","v":0},null,null,{"$f":"data4!$J$2","v":0},null,null,{"$f":"data4!$K$2","v":0},null,{"$f":"data4!$L$2","v":0},null,{"$f":"data2!$AD$2","v":0},null,null,null,null,null,{"$f":"data2!$S$2","v":0},null,null,{"$f":"data2!$T$2","v":0},null,null,{"$f":"data2!$U$2","v":0},null,null,{"$f":"data2!$Y$2","v":0},null,null,{"$f":"data2!$Z$2","v":0},null,null,{"$f":"data2!$AA$2","v":0},null,null,{"$f":"data2!$AB$2","v":0},null,null,{"$f":"data2!$O$2","v":0},null,null,{"$f":"data2!$P$2","v":0},null,null,{"$f":"data2!$Q$2","v":0},null,null,null,"（市区町村提出用）",{"$f":"data4!$B$2","v":0},null,null,{"$f":"data4!$C$2","v":0},null,{"$f":"data4!$D$2","v":0},null,{"$f":"data4!$E$2","v":0},null,{"$f":"data4!$F$2","v":0},null,null,{"$f":"data4!$G$2","v":0},null,null,{"$f":"data4!$H$2","v":0},null,null,{"$f":"data4!$I$2","v":0},null,null,{"$f":"data4!$J$2","v":0},null,null,{"$f":"data4!$K$2","v":0},null,{"$f":"data4!$L$2","v":0},null,{"$f":"data2!$AD$2","v":0},null,null,null,null,null,{"$f":"data2!$S$2","v":0},null,null,{"$f":"data2!$T$2","v":0},null,null,{"$f":"data2!$U$2","v":0},null,null,{"$f":"data2!$Y$2","v":0},null,null,{"$f":"data2!$Z$2","v":0},null,null,{"$f":"data2!$AA$2","v":0},null,null,{"$f":"data2!$AB$2","v":0},null,null,{"$f":"data2!$O$2","v":0},null,null,{"$f":"data2!$P$2","v":0},null,null,{"$f":"data2!$Q$2","v":0}]
[null,null,null,null,null,null,null,null,null,null,null,null,null,null,null,null,null,null,null,null,null,null,null,null,null,null,null,null,null,null,null,null,{"$f":"data2!$AE$2","v":0},null,null,{"$f":"data2!$V$2","v":0},null,null,{"$f":"data2!$W$2","v":0},null,null,{"$f":"data2!$X$2","v":0},null,null,null,null,null,null,null,null,null,null,null,null,null,null,null,null,null,null,null,null,null,null,null,null,null,null,null,null,null,null,null,null,null,null,null,null,null,null,null,null,null,null,null,null,null,null,null,null,null,null,null,null,null,null,null,null,{"$f":"data2!$AE$2","v":0},null,null,{"$f":"data2!$V$2","v":0},null,null,{"$f":"data2!$W$2","v":0},null,null,{"$f":"data2!$X$2","v":0}]
[null,"支 払 者",null,"個人番号又は　　法人番号",null,null,null,null,null,null,{"$f":"DBCS(data1!$D$2)","v":""},null,{"$f":"DBCS(data1!$E$2)","v":""},null,null,null,null,null,null,null,{"$f":"DBCS(data1!$F$2)","v":""},null,null,null,null,null,null,null,{"$f":"DBCS(data1!$G$2)","v":""},null,null,null,null,null,null,null,"（右詰で記載してください。）",null,null,null,null,null,null,null,null,null,null,null,null,null,null,null,null,null,null,null,null,null,null,null,null,null,null,null,null,null,null,"支 払 者",null,"個人番号又は　　法人番号",null,null,null,null,null,null,{"$f":"DBCS(data1!$D$2)","v":""},null,{"$f":"DBCS(data1!$E$2)","v":""},null,null,null,null,null,null,null,{"$f":"DBCS(data1!$F$2)","v":""},null,null,null,null,null,null,null,{"$f":"DBCS(data1!$G$2)","v":""},null,null,null,null,null,null,null,"（右詰で記載してください。）"]
[null,null,null,"住所（居所）　　又は所在地",null,null,null,null,null,null,{"$f":"data1!$A$2","v":""},null,null,null,null,null,null,null,null,null,null,null,null,null,null,null,null,null,null,null,null,null,null,null,null,null,null,null,null,null,null,null,null,null,null,null,null,null,null,null,null,null,null,null,null,null,null,null,null,null,null,null,null,null,null,null,null,null,null,"住所（居所）　　又は所在地",null,null,null,null,null,null,{"$f":"data1!$A$2","v":""}]
[null,null,null,"氏名又は名称",null,null,null,null,null,null,{"$f":"data1!$B$2","v":""},null,null,null,null,null,null,null,null,null,null,null,null,null,null,null,null,null,null,null,null,null,null,null,null,null,null,null,null,null,null,null,null,null,null,null,null,"（電話）",null,null,null,{"$f":"data1!$C$2","v":""},null,null,null,null,null,null,null,null,null,null,null,null,null,null,null,null,null,"氏名又は名称",null,null,null,null,null,null,{"$f":"data1!$B$2","v":""},null,null,null,null,null,null,null,null,null,null,null,null,null,null,null,null,null,null,null,null,null,null,null,null,null,null,null,null,null,null,null,null,null,null,null,null,"（電話）",null,null,null,{"$f":"data1!$C$2","v":""}]

{"sheet":"徴収票印刷（白黒）","index":8,"n_rows":116,"n_cols":131,"rows_kept":116,"cut":false,"hidden":false,"merged":[[0,15,0,28],[0,81,0,94],[1,1,5,4],[1,5,5,6],[1,7,5,37],[1,38,5,39],[1,40,1,46],[1,47,1,64],[1,67,5,70],[1,71,5,72],[5,55,5,64],[5,111,5,120],[5,121,5,130],[6,1,6,12],[6,13,6,25],[6,26,6,38],[6,39,6,51],[6,52,6,64],[6,67,6,78],[6,79,6,91],[3,47,3,64],[3,106,3,112],[3,113,3,130],[4,40,5,41],[4,46,4,54],[4,55,4,64],[4,106,5,107],[4,112,4,120],[4,121,4,130],[5,45,5,54],[1,73,5,103],[1,104,5,105],[1,106,1,112],[1,113,1,130],[2,40,2,46],[2,47,2,52],[2,53,2,58],[2,59,2,64],[2,106,2,130],[3,40,3,46],[9,127,11,130],[10,1,11,8],[10,10,11,12],[10,23,10,44],[10,67,11,74],[10,76,11,78],[8,92,8,104],[8,105,8,117],[8,118,8,130],[9,1,9,12],[9,13,11,22],[9,23,9,44],[9,45,11,48],[9,49,10,60],[9,61,11,64],[9,67,9,78],[6,92,6,104],[6,105,6,117],[6,118,6,130],[7,1,8,12],[7,67,8,78],[8,13,8,25],[8,26,8,38],[8,39,8,51],[8,52,8,64],[8,79,8,91],[11,115,11,122],[11,123,11,126],[12,1,12,4],[12,5,12,8],[12,9,12,12],[12,23,12,26],[12,27,12,28],[12,29,12,32],[12,33,12,36],[12,37,12,38],[10,89,10,110],[11,23,11,28],[11,29,11,38],[11,39,11,44],[11,49,11,56],[11,57,11,60],[11,89,11,94],[11,95,11,104],[11,105,11,110],[9,79,11,88],[9,89,9,110],[9,111,11,114],[9,115,10,126],[12,115,12,118],[12,119,12,122],[12,123,12,126],[12,127,12,130],[13,1,15,4],[13,5,15,8],[13,9,15,12],[13,13,15,22],[13,23,15,26],[13,27,15,28],[12,95,12,98],[12,99,12,102],[12,103,12,104],[12,105,12,108],[12,109,12,110],[12,111,12,114],[12,61,12,64],[12,67,12,70],[12,71,12,74],[12,75,12,78],[12,89,12,92],[12,93,12,94],[12,39,12,42],[12,43,12,44],[12,45,12,48],[12,49,12,52],[12,53,12,56],[12,57,12,60],[13,115,15,118],[13,119,15,122],[13,123,15,126],[13,127,15,130],[13,89,15,92],[13,93,15,94],[13,95,15,98],[13,99,15,102],[13,105,15,108],[13,111,15,114],[13,57,15,60],[13,61,15,64],[13,67,15,70],[13,71,15,74],[13,75,15,78],[13,79,15,88],[13,29,15,32],[13,33,15,36],[13,39,15,42],[13,45,15,48],[13,49,15,52],[13,53,15,56],[20,82,20,83],[20,84,20,91],[21,1,24,4],[21,5,24,64],[21,67,24,70],[21,71,24,130],[18,99,19,114],[18,115,19,130],[20,1,20,4],[20,6,20,7],[20,8,20,15],[20,16,20,17],[20,18,20,25],[20,67,20,70],[20,72,20,73],[20,74,20,81],[16,99,16,114],[16,115,16,130],[17,5,17,14],[17,71,17,80],[18,1,19,16],[18,17,19,32],[18,33,19,48],[18,49,19,64],[18,67,19,82],[18,83,19,98],[16,1,16,16],[16,17,16,32],[16,33,16,48],[16,49,16,64],[16,67,16,82],[16,83,16,98],[27,17,28,21],[27,22,27,26],[27,27,27,30],[26,58,26,64],[26,76,26,82],[26,88,26,94],[26,100,26,106],[26,112,26,118],[26,124,26,130],[25,67,26,70],[25,71,26,75],[25,83,26,87],[25,95,26,99],[25,107,26,111],[25,119,26,123],[25,1,26,4],[25,5,26,9],[25,17,26,21],[25,29,26,33],[25,41,26,45],[25,53,26,57],[26,10,26,16],[26,22,26,28],[26,34,26,40],[26,46,26,52],[28,119,28,130],[29,5,30,9],[29,17,30,21],[29,22,29,26],[29,27,29,30],[29,31,29,34],[29,35,30,40],[29,41,30,46],[29,47,30,52],[29,53,29,64],[27,101,28,106],[27,107,28,112],[27,113,28,118],[27,119,27,130],[28,22,28,26],[28,27,28,30],[28,31,28,34],[28,53,28,64],[28,88,28,92],[28,93,28,96],[27,71,28,75],[27,76,28,82],[27,83,28,87],[27,88,27,92],[27,93,27,96],[27,97,27,100],[28,97,28,100],[27,31,27,34],[27,35,28,40],[27,41,28,46],[27,47,28,52],[27,53,27,64],[30,119,30,130],[31,1,33,3],[31,4,31,8],[31,9,31,23],[31,24,32,25],[31,26,32,28],[31,29,33,34],[31,35,31,40],[31,41,33,46],[31,47,31,52],[29,107,30,112],[29,113,30,118],[29,119,29,130],[30,10,30,16],[30,22,30,26],[30,27,30,30],[30,31,30,34],[30,53,30,64],[30,76,30,82],[30,88,30,92],[29,71,30,75],[29,83,30,87],[29,88,29,92],[29,93,29,96],[29,97,29,100],[29,101,30,106],[30,93,30,96],[30,97,30,100],[27,67,30,70],[27,1,30,4],[27,5,28,9],[27,10,28,16],[32,125,33,130],[45,22,45,28],[40,3,42,3],[40,4,40,8],[40,9,40,23],[40,24,41,25],[33,4,33,8],[33,9,33,15],[33,16,33,21],[33,22,33,28],[33,70,33,94],[31,125,31,130],[32,4,32,8],[32,9,32,23],[32,35,33,40],[32,47,33,52],[32,59,33,64],[32,70,32,74],[32,75,32,89],[32,101,33,106],[32,113,33,118],[31,92,32,94],[31,95,33,100],[31,101,31,106],[31,107,33,112],[31,113,31,118],[31,119,33,124],[31,53,33,58],[31,59,31,64],[31,67,33,69],[31,70,31,74],[31,75,31,89],[31,90,32,91],[36,60,36,61],[36,62,36,63],[40,75,40,89],[34,29,45,30],[34,31,36,31],[34,32,34,36],[34,37,34,51],[34,52,35,53],[34,54,35,56],[36,32,36,36],[36,37,36,56],[37,32,37,36],[37,37,37,51],[34,1,45,2],[34,3,36,3],[34,4,34,8],[34,9,34,23],[34,24,35,25],[34,26,35,28],[36,4,36,8],[36,9,36,15],[36,16,36,21],[36,22,36,28],[43,3,45,3],[43,4,43,8],[43,9,43,23],[43,24,44,25],[43,26,44,28],[43,31,45,31],[45,4,45,8],[45,9,45,15],[45,16,45,21],[37,57,37,59],[37,69,39,69],[37,70,37,74],[37,75,37,89],[38,75,38,89],[34,120,35,122],[34,123,45,130],[35,4,35,8],[35,9,35,23],[35,32,35,36],[35,37,35,51],[35,57,35,59],[35,70,35,74],[35,75,35,89],[35,98,35,102],[34,92,35,94],[34,95,45,96],[34,97,36,97],[34,98,34,102],[34,103,34,117],[34,118,35,119],[35,103,35,117],[36,70,36,94],[36,98,36,122],[37,90,38,91],[34,57,34,64],[34,67,45,68],[34,69,36,69],[34,70,34,74],[34,75,34,89],[34,90,35,91],[36,58,36,59],[39,16,39,21],[39,22,39,28],[39,32,39,36],[39,37,39,56],[39,70,39,94],[37,3,39,3],[37,4,37,8],[37,9,37,23],[37,24,38,25],[37,26,38,28],[37,31,39,31],[38,4,38,8],[38,9,38,23],[39,4,39,8],[39,9,39,15],[39,98,39,122],[38,32,38,36],[38,37,38,51],[38,58,38,59],[38,60,38,61],[38,62,38,63],[38,70,38,74],[37,92,38,94],[37,97,39,97],[37,98,37,102],[37,103,37,117],[37,118,38,119],[37,120,38,122],[38,98,38,102],[38,103,38,117],[37,52,38,53],[37,54,38,56],[40,120,41,122],[41,4,41,8],[41,9,41,23],[41,32,41,36],[41,37,41,51],[41,57,45,64],[41,70,41,74],[41,75,41,89],[41,98,41,102],[41,103,41,117],[40,90,41,91],[40,92,41,94],[40,97,42,97],[40,98,40,102],[40,103,40,117],[40,118,41,119],[42,70,42,94],[42,98,42,122],[40,32,40,36],[40,37,40,51],[40,52,41,53],[40,54,41,56],[40,69,42,69],[40,70,40,74],[42,32,42,36],[42,37,42,56],[40,26,41,28],[40,31,42,31],[42,4,42,8],[42,9,42,15],[42,16,42,21],[42,22,42,28],[46,1,49,3],[46,4,49,5],[46,6,49,7],[46,8,49,9],[46,10,49,12],[46,13,46,18],[43,118,44,119],[43,120,44,122],[44,4,44,8],[44,9,44,23],[44,32,44,36],[44,37,44,51],[44,70,44,74],[44,75,44,89],[44,98,44,102],[44,103,44,117],[43,75,43,89],[43,90,44,91],[43,92,44,94],[43,97,45,97],[43,98,43,102],[43,103,43,117],[45,70,45,94],[45,98,45,122],[43,32,43,36],[43,37,43,51],[43,52,44,53],[43,54,44,56],[43,69,45,69],[43,70,43,74],[45,32,45,36],[45,37,45,56],[47,13,49,15],[47,16,49,18],[47,19,49,21],[47,22,49,24],[47,79,49,81],[47,82,49,84],[46,70,49,71],[46,72,49,73],[46,74,49,75],[46,76,49,78],[46,79,46,84],[46,85,46,90],[47,85,49,87],[47,88,49,90],[46,19,46,24],[46,25,49,26],[46,27,49,28],[46,29,47,43],[46,44,47,64],[46,67,49,69],[48,29,49,31],[48,32,49,34],[48,35,49,37],[48,38,49,40],[48,125,49,127],[48,128,49,130],[50,0,54,0],[50,1,51,3],[50,4,51,5],[50,6,51,7],[50,8,51,9],[50,10,51,12],[50,13,51,15],[50,16,51,18],[48,107,49,109],[48,110,49,112],[48,113,49,115],[48,116,49,118],[48,119,49,121],[48,122,49,124],[48,59,49,61],[48,62,49,64],[48,95,49,97],[48,98,49,100],[48,101,49,103],[48,104,49,106],[48,41,49,43],[48,44,49,46],[48,47,49,49],[48,50,49,52],[48,53,49,55],[48,56,49,58],[46,91,49,92],[46,93,49,94],[46,95,47,109],[46,110,47,130],[50,53,51,55],[50,56,51,58],[50,59,51,61],[50,62,51,64],[50,66,54,66],[50,67,51,69],[52,67,54,68],[52,69,52,130],[53,69,53,75],[53,76,53,130],[50,35,50,37],[50,38,50,40],[50,41,50,43],[50,44,51,46],[50,47,51,49],[50,50,51,52],[50,19,51,21],[50,22,51,24],[50,25,51,26],[50,27,51,28],[50,29,50,31],[50,32,50,34],[50,119,51,121],[50,122,51,124],[50,125,51,127],[50,128,51,130],[51,29,51,31],[51,32,51,34],[51,35,51,37],[51,38,51,40],[51,41,51,43],[51,95,51,97],[50,101,50,103],[50,104,50,106],[50,107,50,109],[50,110,51,112],[50,113,51,115],[50,116,51,118],[51,101,51,103],[51,104,51,106],[51,107,51,109],[50,85,51,87],[50,88,51,90],[50,91,51,92],[50,93,51,94],[50,95,50,97],[50,98,50,100],[51,98,51,100],[50,70,51,71],[50,72,51,73],[50,74,51,75],[50,76,51,78],[50,79,51,81],[50,82,51,84],[56,91,56,92],[56,128,56,130],[60,0,61,0],[60,1,60,36],[60,37,60,44],[60,56,60,64],[60,66,61,66],[60,67,60,102],[60,103,60,110],[60,122,60,130],[54,47,54,49],[54,69,54,75],[54,76,54,112],[54,113,54,115],[56,1,56,8],[56,9,56,10],[56,25,56,26],[56,62,56,64],[56,67,56,74],[56,75,56,76],[52,1,54,2],[52,3,52,9],[52,10,52,11],[52,12,52,19],[52,20,52,27],[52,28,52,35],[53,3,53,9],[53,10,53,64],[54,3,54,9],[54,10,54,46],[61,73,61,74],[61,75,61,76],[61,25,61,26],[61,27,61,28],[61,29,61,30],[61,31,61,32],[61,33,61,34],[61,35,61,36],[61,13,61,14],[61,15,61,16],[61,17,61,18],[61,19,61,20],[61,21,61,22],[61,23,61,24],[61,1,61,2],[61,3,61,4],[61,5,61,6],[61,7,61,8],[61,9,61,10],[61,11,61,12],[63,0,82,0],[63,40,63,46],[63,47,63,52],[63,53,63,58],[63,59,63,64],[63,66,82,66],[61,101,61,102],[61,103,61,110],[62,1,66,4],[62,5,66,6],[62,7,66,37],[62,38,66,39],[62,40,62,46],[62,47,62,64],[62,67,66,70],[62,71,66,72],[61,89,61,90],[61,91,61,92],[61,93,61,94],[61,95,61,96],[61,97,61,98],[61,99,61,100],[61,77,61,78],[61,79,61,80],[61,81,61,82],[61,83,61,84],[61,85,61,86],[61,87,61,88],[61,37,61,44],[61,67,61,68],[61,69,61,70],[61,71,61,72],[65,40,66,41],[65,46,65,54],[65,55,65,64],[65,106,66,107],[65,112,65,120],[65,121,65,130],[66,45,66,54],[66,55,66,64],[66,111,66,120],[66,121,66,130],[63,106,63,112],[63,113,63,118],[63,119,63,124],[63,125,63,130],[64,40,64,46],[64,47,64,64],[64,106,64,112],[64,113,64,130],[62,73,66,103],[62,104,66,105],[62,106,62,112],[62,113,62,130],[70,67,70,78],[70,79,72,88],[70,89,70,110],[70,111,72,114],[70,115,71,126],[70,127,72,130],[69,79,69,91],[69,92,69,104],[69,105,69,117],[69,118,69,130],[70,1,70,12],[70,13,72,22],[70,23,70,44],[70,45,72,48],[70,49,71,60],[70,61,72,64],[67,79,67,91],[67,92,67,104],[67,105,67,117],[67,118,67,130],[68,1,69,12],[68,67,69,78],[69,13,69,25],[69,26,69,38],[69,39,69,51],[69,52,69,64],[67,1,67,12],[67,13,67,25],[67,26,67,38],[67,39,67,51],[67,52,67,64],[67,67,67,78],[74,123,76,126],[74,127,76,130],[73,1,73,4],[73,5,73,8],[73,9,73,12],[73,23,73,26],[73,27,73,28],[73,29,73,32],[72,57,72,60],[72,89,72,94],[72,95,72,104],[72,105,72,110],[72,115,72,122],[72,123,72,126],[71,1,72,8],[71,10,72,12],[71,23,71,44],[71,67,72,74],[71,76,72,78],[71,89,71,110],[72,23,72,28],[72,29,72,38],[72,39,72,44],[72,49,72,56],[74,1,76,4],[74,5,76,8],[74,9,76,12],[74,13,76,22],[74,23,76,26],[74,27,76,28],[73,109,73,110],[73,111,73,114],[73,115,73,118],[73,119,73,122],[73,123,73,126],[73,127,73,130],[73,89,73,92],[73,93,73,94],[73,95,73,98],[73,99,73,102],[73,103,73,104],[73,105,73,108],[73,53,73,56],[73,57,73,60],[73,61,73,64],[73,67,73,70],[73,71,73,74],[73,75,73,78],[73,33,73,36],[73,37,73,38],[73,39,73,42],[73,43,73,44],[73,45,73,48],[73,49,73,52],[74,115,76,118],[74,119,76,122],[74,89,76,92],[74,93,76,94],[74,95,76,98],[74,99,76,102],[74,105,76,108],[74,111,76,114],[74,57,76,60],[74,61,76,64],[74,67,76,70],[74,71,76,74],[74,75,76,78],[74,79,76,88],[74,29,76,32],[74,33,76,36],[74,39,76,42],[74,45,76,48],[74,49,76,52],[74,53,76,56],[81,82,81,83],[81,84,81,91],[82,1,85,4],[82,5,85,64],[82,67,85,70],[82,71,85,130],[79,99,80,114],[79,115,80,130],[81,1,81,4],[81,6,81,7],[81,8,81,15],[81,16,81,17],[81,18,81,25],[81,67,81,70],[81,72,81,73],[81,74,81,81],[77,99,77,114],[77,115,77,130],[78,5,78,14],[78,71,78,80],[79,1,80,16],[79,17,80,32],[79,33,80,48],[79,49,80,64],[79,67,80,82],[79,83,80,98],[77,1,77,16],[77,17,77,32],[77,33,77,48],[77,49,77,64],[77,67,77,82],[77,83,77,98],[88,17,89,21],[88,22,88,26],[88,27,88,30],[87,58,87,64],[87,76,87,82],[87,88,87,94],[87,100,87,106],[87,112,87,118],[87,124,87,130],[86,67,87,70],[86,71,87,75],[86,83,87,87],[86,95,87,99],[86,107,87,111],[86,119,87,123],[86,1,87,4],[86,5,87,9],[86,17,87,21],[86,29,87,33],[86,41,87,45],[86,53,87,57],[87,10,87,16],[87,22,87,28],[87,34,87,40],[87,46,87,52],[89,119,89,130],[90,5,91,9],[90,17,91,21],[90,22,90,26],[90,27,90,30],[90,31,90,34],[90,35,91,40],[90,41,91,46],[90,47,91,52],[90,53,90,64],[88,101,89,106],[88,107,89,112],[88,113,89,118],[88,119,88,130],[89,22,89,26],[89,27,89,30],[89,31,89,34],[89,53,89,64],[89,88,89,92],[89,93,89,96],[88,71,89,75],[88,76,89,82],[88,83,89,87],[88,88,88,92],[88,93,88,96],[88,97,88,100],[89,97,89,100],[88,31,88,34],[88,35,89,40],[88,41,89,46],[88,47,89,52],[88,53,88,64],[91,119,91,130],[92,1,94,3],[92,4,92,8],[92,9,92,23],[92,24,93,25],[92,26,93,28],[92,29,94,34],[92,35,92,40],[92,41,94,46],[92,47,92,52],[90,107,91,112],[90,113,91,118],[90,119,90,130],[91,10,91,16],[91,22,91,26],[91,27,91,30],[91,31,91,34],[91,53,91,64],[91,76,91,82],[91,88,91,92],[90,71,91,75],[90,83,91,87],[90,88,90,92],[90,93,90,96],[90,97,90,100],[90,101,91,106],[91,93,91,96],[91,97,91,100],[88,67,91,70],[88,1,91,4],[88,5,89,9],[88,10,89,16],[93,125,94,130],[94,4,94,8],[94,9,94,15],[94,16,94,21],[94,22,94,28],[94,70,94,74],[94,75,94,81],[94,82,94,87],[94,88,94,94],[92,125,92,130],[93,4,93,8],[93,9,93,23],[93,35,94,40],[93,47,94,52],[93,59,94,64],[93,70,93,74],[93,75,93,89],[93,101,94,106],[93,113,94,118],[92,92,93,94],[92,95,94,100],[92,101,92,106],[92,107,94,112],[92,113,92,118],[92,119,94,124],[92,53,94,58],[92,59,92,64],[92,67,94,69],[92,70,92,74],[92,75,92,89],[92,90,93,91],[95,69,97,69],[95,70,95,74],[95,75,95,89],[95,90,96,91],[97,57,97,59],[97,70,97,74],[97,75,97,81],[97,82,97,87],[95,29,106,30],[95,31,97,31],[95,32,95,36],[95,37,95,51],[95,52,96,53],[95,54,96,56],[97,32,97,36],[97,37,97,43],[97,44,97,49],[97,50,97,56],[105,32,105,36],[105,37,105,51],[105,70,105,74],[105,75,105,89],[97,116,97,122],[97,123,97,125],[98,3,100,3],[98,4,98,8],[98,9,98,23],[98,24,99,25],[98,26,99,28],[98,31,100,31],[98,32,98,36],[98,37,98,51],[95,120,96,122],[95,123,96,130],[96,4,96,8],[96,9,96,23],[96,32,96,36],[96,37,96,51],[96,70,96,74],[96,75,96,89],[96,98,96,102],[96,103,96,117],[95,92,96,94],[95,95,106,96],[95,97,97,97],[95,98,95,102],[95,103,95,117],[95,118,96,119],[97,88,97,94],[97,98,97,102],[97,103,97,109],[97,110,97,115],[95,57,96,64],[95,67,106,68],[98,120,99,122],[98,124,98,125],[98,126,98,127],[98,128,98,129],[99,103,99,117],[99,123,99,125],[98,70,98,74],[98,75,98,89],[98,90,99,91],[98,92,99,94],[98,97,100,97],[98,98,98,102],[99,75,99,89],[99,98,99,102],[100,75,100,81],[100,82,100,87],[98,52,99,53],[98,54,99,56],[98,58,98,59],[98,60,98,61],[98,62,98,63]],"merged_total":1259,"flags":["merged_cut"]}
[null,null,null,null,null,null,null,null,null,null,null,null,null,null,null,"平成 30 年分",null,null,null,null,null,null,null,null,null,null,null,null,null,null,null,"給与所得の源泉徴収票",null,null,null,null,null,null,null,null,null,null,null,null,null,null,null,null,null,null,null,null,null,null,null,null,null,null,null,null,null,null,null,null,{"$f":"IF(ライセンス2!$D$8=\"ok\",,\"ＳＡＭＰＬＥ\")","v":"ＳＡＭＰＬＥ"},null,null,null,null,null,null,null,null,null,null,null,null,null,null,null,null,"平成 30 年分",null,null,null,null,null,null,null,null,null,null,null,null,null,null,null,"給与所得の源泉徴収票",null,null,null,null,null,null,null,null,null,null,null,null,null,null,null,null,null,null,null,null,null,null,null,null,null,null,null,null,null,null,null,null,{"$f":"IF(ライセンス2!$D$8=\"ok\",,\"ＳＡＭＰＬＥ\")","v":"ＳＡＭＰＬＥ"}]
[null,"支   払　を受け　　る者",null,null,null,"住所又は居所",null,{"$f":"data2!$K$2","v":0},null,null,null,null,null,null,null,null,null,null,null,null,null,null,null,null,null,null,null,null,null,null,null,null,null,null,null,null,null,null,"氏　名",null,"（受給者番号）",null,null,null,null,null,null,{"$f":"data2!$H$2","v":0},null,null,null,null,null,null,null,null,null,null,null,null,null,null,null,null,null,null,null,"支   払　を受け　　る者",null,null,null,"住所又は居所",null,{"$f":"data2!$K$2","v":0},null,null,null,null,null,null,null,null,null,null,null,null,null,null,null,null,null,null,null,null,null,null,null,null,null,null,null,null,null,null,"氏　名",null,"（受給者番号）",null,null,null,null,null,null,{"$f":"data2!$H$2","v":0}]
[null,null,null,null,null,null,null,null,null,null,null,null,null,null,null,null,null,null,null,null,null,null,null,null,null,null,null,null,null,null,null,null,null,null,null,null,null,null,null,null,"（個人番号）",null,null,null,null,null,null,{"$f":"DBCS(data2!$L$2)","v":""},null,null,null,null,null,{"$f":"DBCS(data2!$M$2)","v":""},null,null,null,null,null,{"$f":"DBCS(data2!$N$2)","v":""}]
[null,null,null,null,null,null,null,null,null,null,null,null,null,null,null,null,null,null,null,null,null,null,null,null,null,null,null,null,null,null,null,null,null,null,null,null,null,null,null,null,"（役職名）",null,null,null,null,null,null,{"$f":"data2!$G$2","v":0},null,null,null,null,null,null,null,null,null,null,null,null,null,null,null,null,null,null,null,null,null,null,null,null,null,null,null,null,null,null,null,null,null,null,null,null,null,null,null,null,null,null,null,null,null,null,null,null,null,null,null,null,null,null,null,null,null,null,"（役職名）",null,null,null,null,null,null,{"$f":"data2!$G$2","v":0}]
[null,null,null,null,null,null,null,null,null,null,null,null,null,null,null,null,null,null,null,null,null,null,null,null,null,null,null,null,null,null,null,null,null,null,null,null,null,null,null,null,"氏名",null,"（フリガナ）",null,null,null,{"$f":"data2!$C$2","v":0},null,null,null,null,null,null,null,null,{"$f":"data2!$D$2","v":0},null,null,null,null,null,null,null,null,null,null,null,null,null,null,null,null,null,null,null,null,null,null,null,null,null,null,null,null,null,null,null,null,null,null,null,null,null,null,null,null,null,null,null,null,null,null,null,null,null,null,"氏名",null,"（フリガナ）",null,null,null,{"$f":"data2!$C$2","v":0},null,null,null,null,null,null,null,null,{"$f":"data2!$D$2","v":0}]
[null,null,null,null,null,null,null,null,null,null,null,null,null,null,null,null,null,null,null,null,null,null,null,null,null,null,null,null,null,null,null,null,null,null,null,null,null,null,null,null,null,null,null,null,null,{"$f":"data2!$E$2","v":0},null,null,null,null,null,null,null,null,null,{"$f":"data2!$F$2","v":0},null,null,null,null,null,null,null,null,null,null,null,null,null,null,null,null,null,null,null,null,null,null,null,null,null,null,null,null,null,null,null,null,null,null,null,null,null,null,null,null,null,null,null,null,null,null,null,null,null,null,null,null,null,null,null,{"$f":"data2!$E$2","v":0},null,null,null,null,null,null,null,null,null,{"$f":"data2!$F$2","v":0}]
[null,"種　　　別",null,null,null,null,null,null,null,null,null,null,null,"支　払　金　額",null,null,null,null,null,null,null,null,null,null,null,null,"給与所得控除後の金額",null,null,null,null,null,null,null,null,null,null,null,null,"所得控除の額の合計額",null,null,null,null,null,null,null,null,null,null,null,null,"源  泉  徴  収  税  額",null,null,null,null,null,null,null,null,null,null,null,null,null,null,"種　　　別",null,null,null,null,null,null,null,null,null,null,null,"支　払　金　額",null,null,null,null,null,null,null,null,null,null,null,null,"給与所得控除後の金額",null,null,null,null,null,null,null,null,null,null,null,null,"所得控除の額の合計額",null,null,null,null,null,null,null,null,null,null,null,null,"源  泉  徴  収  税  額"]
[null,{"$f":"IF(ライセンス2!$D$8=\"ok\",data2!$R$2,\"ＳＡＭＰＬＥ\")","v":"ＳＡＭＰＬＥ"},null,null,null,null,null,null,null,null,null,null,null,"内",null,null,null,null,null,null,null,null,null,null,null,"円",null,null,null,null,null,null,null,null,null,null,null,null,"円",null,null,null,null,null,null,null,null,null,null,null,null,"円","内",null,null,null,null,null,null,null,null,null,null,null,"円",null,null,{"$f":"IF(ライセンス2!$D$8=\"ok\",data2!$R$2,\"ＳＡＭＰＬＥ\")","v":"ＳＡＭＰＬＥ"},null,null,null,null,null,null,null,null,null,null,null,"内",null,null,null,null,null,null,null,null,null,null,null,"円",null,null,null,null,null,null,null,null,null,null,null,null,"円",null,null,null,null,null,null,null,null,null,null,null,null,"円","内",null,null,null,null,null,null,null,null,null,null,null,"円"]
[null,null,null,null,null,null,null,null,null,null,null,null,null,{"$f":"IF(ライセンス2!$D$8=\"ok\",data5!$D$2,\"ＳＡＭＰＬＥ\")","v":"ＳＡＭＰＬＥ"},null,null,null,null,null,null,null,null,null,null,null,null,{"$f":"IF(data2!$B$2=\"要\",data5!$E$2,\"\")","v":""},null,null,null,null,null,null,null,null,null,null,null,null,{"$f":"IF(data2!$B$2=\"要\",data5!$Q$2,\"\")","v":""},null,null,null,null,null,null,null,null,null,null,null,null,{"$f":"IF(IF(data2!$B$2=\"否\",data5!$U$2,data5!$Y$2)=0,\"0\",IF(data2!$B$2=\"否\",data5!$U$2,data5!$Y$2))","v":"0"},null,null,null,null,null,null,null,null,null,null,null,null,null,null,null,null,null,null,null,null,null,null,null,null,null,null,{"$f":"IF(ライセンス2!$D$8=\"ok\",data5!$D$2,\"ＳＡＭＰＬＥ\")","v":"ＳＡＭＰＬＥ"},null,null,null,null,null,null,null,null,null,null,null,null,{"$f":"IF(data2!$B$2=\"要\",data5!$E$2,\"\")","v":""},null,null,null,null,null,null,null,null,null,null,null,null,{"$f":"IF(data2!$B$2=\"要\",data5!$Q$2,\"\")","v":""},null,null,null,null,null,null,null,null,null,null,null,null,{"$f":"IF(IF(data2!$B$2=\"否\",data5!$U$2,data5!$Y$2)=0,\"0\",IF(data2!$B$2=\"否\",data5!$U$2,data5!$Y$2))","v":"0"}]
[null,"控除対象配偶者",null,null,null,null,null,null,null,null,null,null,null,"配偶者特別              控除の額",null,null,null,null,null,null,null,null,null,"控除対象扶養親族の数",null,null,null,null,null,null,null,null,null,null,null,null,null,null,null,null,null,null,null,null,null,"16歳未満扶養親族の数",null,null,null,"障 害 者 の 数　　　　　　　　（本人を除く）",null,null,null,null,null,null,null,null,null,null,null,"非居住者である　親族の数",null,null,null,null,null,"控除対象配偶者",null,null,null,null,null,null,null,null,null,null,null,"配偶者特別              控除の額",null,null,null,null,null,null,null,null,null,"控除対象扶養親族の数",null,null,null,null,null,null,null,null,null,null,null,null,null,null,null,null,null,null,null,null,null,"16歳未満扶養親族の数",null,null,null,"障 害 者 の 数　　　　　　　　（本人を除く）",null,null,null,null,null,null,null,null,null,null,null,"非居住者である　親族の数"]
[null,"の有無等",null,null,null,null,null,null,null,null,"老人",null,null,null,null,null,null,null,null,null,null,null,null,"（　配　偶　者　を　除　く　）",null,null,null,null,null,null,null,null,null,null,null,null,null,null,null,null,null,null,null,null,null,null,null,null,null,null,null,null,null,null,null,null,null,null,null,null,null,null,null,null,null,null,null,"の有無等",null,null,null,null,null,null,null,null,"老人",null,null,null,null,null,null,null,null,null,null,null,null,"（　配　偶　者　を　除　く　）"]
[null,null,null,null,null,null,null,null,null,null,null,null,null,null,null,null,null,null,null,null,null,null,null,"特　定",null,null,null,null,null,"老　　人",null,null,null,null,null,null,null,null,null,"その他",null,null,null,null,null,null,null,null,null,"特　別",null,null,null,null,null,null,null,"その他",null,null,null,null,null,null,null,null,null,null,null,null,null,null,null,null,null,null,null,null,null,null,null,null,null,null,null,null,null,null,null,"特　定",null,null,null,null,null,"老　　人",null,null,null,null,null,null,null,null,null,"その他",null,null,null,null,null,null,null,null,null,"特　別",null,null,null,null,null,null,null,"その他"]
[null,"有",null,null,null,"従有",null,null,null,null,null,null,null,null,null,null,null,null,null,null,null,null,"円","人",null,null,null,"従人",null,"内",null,null,null,"人",null,null,null,"従人",null,"人",null,null,null,"従人",null,"人",null,null,null,"内",null,null,null,"人",null,null,null,"人",null,null,null,"人",null,null,null,null,null,"有",null,null,null,"従有",null,null,null,null,null,null,null,null,null,null,null,null,null,null,null,null,"円","人",null,null,null,"従人",null,"内",null,null,null,"人",null,null,null,"従人",null,"人",null,null,null,"従人",null,"人",null,null,null,"内",null,null,null,"人",null,null,null,"人",null,null,null,"人"]
[null,{"$f":"IF(AND(data2!$B$2=\"要\",OR(data4!$R$2=\"一般の控除対象配偶者\",data4!$R$2=\"老人控除対象配偶者\")),\"○\",\"\")","v":""},null,null,null,null,null,null,null,{"$f":"IF(AND(data2!$B$2=\"要\",data4!$R$2=\"老人控除対象配偶者\"),\"○\",\"\")","v":""},null,null,null,{"$f":"data5!$K$2","v":0},null,null,null,null,null,null,null,null,null,{"$f":"data4!$AQ$7","v":0},null,null,null,null,null,{"$f":"data4!$AR$7","v":0},null,null,null,{"$f":"data4!$AS$7+data4!$AR$7","v":0},null,null,null,null,null,{"$f":"data4!$AT$7","v":0},null,null,null,null,null,{"$f":"data4!$AI$7","v":0},null,null,null,{"$f":"data4!$BZ$7","v":0},null,null,null,{"$f":"data4!$CA$7+data4!$BZ$7","v":0},null,null,null,{"$f":"data4!$CB$7","v":0},null,null,null,{"$f":"data4!$CP$6","v":0},null,null,null,null,null,{"$f":"IF(AND(data2!$B$2=\"要\",OR(data4!$R$2=\"一般の控除対象配偶者\",data4!$R$2=\"老人控除対象配偶者\")),\"○\",\"\")","v":""},null,null,null,null,null,null,null,{"$f":"IF(AND(data2!$B$2=\"要\",data4!$R$2=\"老人控除対象配偶者\"),\"○\",\"\")","v":""},null,null,null,{"$f":"data5!$K$2","v":0},null,null,null,null,null,null,null,null,null,{"$f":"data4!$AQ$7","v":0},null,null,null,null,null,{"$f":"data4!$AR$7","v":0},null,null,null,{"$f":"data4!$AS$7+data4!$AR$7","v":0},null,null,null,null,null,{"$f":"data4!$AT$7","v":0},null,null,null,null,null,{"$f":"data4!$AI$7","v":0},null,null,null,{"$f":"data4!$BZ$7","v":0},null,null,null,{"$f":"data4!$CA$7+data4!$BZ$7","v":0},null,null,null,{"$f":"data4!$CB$7","v":0},null,null,null,{"$f":"data4!$CP$6","v":0}]
[]
[]
[null,"社会保険料等の金額",null,null,null,null,null,null,null,null,null,null,null,null,null,null,null,"生命保険料の控除額",null,null,null,null,null,null,null,null,null,null,null,null,null,null,null,"地震保険料の控除額",null,null,null,null,null,null,null,null,null,null,null,null,null,null,null,"住宅借入金等特別控除の額",null,null,null,null,null,null,null,null,null,null,null,null,null,null,null,null,null,"社会保険料等の金額",null,null,null,null,null,null,null,null,null,null,null,null,null,null,null,"生命保険料の控除額",null,null,null,null,null,null,null,null,null,null,null,null,null,null,null,"地震保険料の控除額",null,null,null,null,null,null,null,null,null,null,null,null,null,null,null,"住宅借入金等特別控除の額"]
[null,"内",null,null,null,{"$f":"data4!$CW$2+data4!$CX$2","v":0},null,null,null,null,null,null,null,null,null,null,"円",null,null,null,null,null,null,null,null,null,null,null,null,null,null,null,"円",null,null,null,null,null,null,null,null,null,null,null,null,null,null,null,"円",null,null,null,null,null,null,null,null,null,null,null,null,null,null,null,"円",null,null,"内",null,null,null,{"$f":"data4!$CW$2+data4!$CX$2","v":0},null,null,null,null,null,null,null,null,null,null,"円",null,null,null,null,null,null,null,null,null,null,null,null,null,null,null,"円",null,null,null,null,null,null,null,null,null,null,null,null,null,null,null,"円",null,null,null,null,null,null,null,null,null,null,null,null,null,null,null,"円"]
[null,{"$f":"data5!$F$2+data5!$G$2+data5!$H$2","v":0},null,null,null,null,null,null,null,null,null,null,null,null,null,null,null,{"$f":"data5!$I$2","v":0},null,null,null,null,null,null,null,null,null,null,null,null,null,null,null,{"$f":"data5!$J$2","v":0},null,null,null,null,null,null,null,null,null,null,null,null,null,null,null,{"$f":"MIN(data5!$V$2,data5!$W$2)","v":0},null,null,null,null,null,null,null,null,null,null,null,null,null,null,null,null,null,{"$f":"data5!$F$2+data5!$G$2+data5!$H$2","v":0},null,null,null,null,null,null,null,null,null,null,null,null,null,null,null,{"$f":"data5!$I$2","v":0},null,null,null,null,null,null,null,null,null,null,null,null,null,null,null,{"$f":"data5!$J$2","v":0},null,null,null,null,null,null,null,null,null,null,null,null,null,null,null,{"$f":"MIN(data5!$V$2,data5!$W$2)","v":0}]
[]
[null,"(摘要）",null,null,null,null,{"$f":"IF(data4!$AK$2=\"\",\"\",\"(1)\")","v":""},null,{"$f":"data4!$AK$2","v":0},null,null,null,null,null,null,null,{"$f":"IF(data4!$AL$2=\"\",\"\",\"(2)\")","v":""},null,{"$f":"data4!$AL$2","v":0},null,null,null,null,null,null,null,null,null,null,null,null,null,null,null,null,null,null,null,null,null,null,null,null,null,null,null,null,null,null,null,null,null,null,null,null,null,null,null,null,null,null,null,null,null,null,null,null,"(摘要）",null,null,null,null,{"$f":"IF(data4!$AK$2=\"\",\"\",\"(1)\")","v":""},null,{"$f":"data4!$AK$2","v":0},null,null,null,null,null,null,null,{"$f":"IF(data4!$AL$2=\"\",\"\",\"(2)\")","v":""},null,{"$f":"data4!$AL$2","v":0}]
[null,null,null,null,null,{"$f":"data4!$DR$2","v":0},null,null,null,null,null,null,null,null,null,null,null,null,null,null,null,null,null,null,null,null,null,null,null,null,null,null,null,null,null,null,null,null,null,null,null,null,null,null,null,null,null,null,null,null,null,null,null,null,null,null,null,null,null,null,null,null,null,null,null,null,null,null,null,null,null,{"$f":"data4!$DR$2","v":0}]
[]
[]
[]
[null,"生命保険料の金額の　内訳",null,null,null,"新生命保険料の金額",null,null,null,null,null,null,null,null,null,null,"円","旧生命保険料の金額",null,null,null,null,null,null,null,null,null,null,"円","介護医療保　険料の金額",null,null,null,null,null,null,null,null,null,null,"円","新個人年金         保険料の金額",null,null,null,null,null,null,null,null,null,null,"円","旧個人年金      保険料の金額",null,null,null,null,null,null,null,null,null,null,"円",null,null,"生命保険料の金額の　内訳",null,null,null,"新生命保険料の金額",null,null,null,null,null,null,null,null,null,null,"円","旧生命保険料の金額",null,null,null,null,null,null,null,null,null,null,"円","介護医療保　険料の金額",null,null,null,null,null,null,null,null,null,null,"円","新個人年金         保険料の金額",null,null,null,null,null,null,null,null,null,null,"円","旧個人年金      保険料の金額",null,null,null,null,null,null,null,null,null,null,"円"]
[null,null,null,null,null,null,null,null,null,null,{"$f":"data4!$CY$2","v":0},null,null,null,null,null,null,null,null,null,null,null,{"$f":"data4!$CZ$2","v":0},null,null,null,null,null,null,null,null,null,null,null,{"$f":"data4!$DA$2","v":0},null,null,null,null,null,null,null,null,null,null,null,{"$f":"data4!$DB$2","v":0},null,null,null,null,null,null,null,null,null,null,null,{"$f":"data4!$DC$2","v":0},null,null,null,null,null,null,null,null,null,null,null,null,null,null,null,null,null,{"$f":"data4!$CY$2","v":0},null,null,null,null,null,null,null,null,null,null,null,{"$f":"data4!$CZ$2","v":0},null,null,null,null,null,null,null,null,null,null,null,{"$f":"data4!$DA$2","v":0},null,null,null,null,null,null,null,null,null,null,null,{"$f":"data4!$DB$2","v":0},null,null,null,null,null,null,null,null,null,null,null,{"$f":"data4!$DC$2","v":0}]
[null,"住宅借入金等特別控除の額の内訳",null,null,null,"住宅借入金等　　　　　　特別控除適用数",null,null,null,null,{"$f":"data4!$DF$2","v":0},null,null,null,null,null,null,"居住開始年月日（１回目）",null,null,null,null,"年",null,null,null,null,"月",null,null,null,"日",null,null,null,"住宅借入金等特別　　　控除区分（１回目）",null,null,null,null,null,{"$f":"data4!$DN$2","v":0},null,null,null,null,null,"住宅借入金等　　　　年末残高（１回目）",null,null,null,null,null,"円",null,null,null,null,null,null,null,null,null,null,null,null,null,"住宅借入金等特別控除の額の内訳",null,null,null,"住宅借入金等　　　　　　特別控除適用数",null,null,null,null,{"$f":"data4!$DF$2","v":0},null,null,null,null,null,null,"居住開始年月日（１回目）",null,null,null,null,"年",null,null,null,null,"月",null,null,null,"日",null,null,null,"住宅借入金等特別　　　控除区分（１回目）",null,null,null,null,null,{"$f":"data4!$DN$2","v":0},null,null,null,null,null,"住宅借入金等　　　　年末残高（１回目）",null,null,null,null,null,"円"]
[null,null,null,null,null,null,null,null,null,null,null,null,null,null,null,null,null,null,null,null,null,null,{"$f":"data4!$DH$2","v":0},null,null,null,null,{"$f":"data4!$DJ$2","v":0},null,null,null,{"$f":"data4!$DL$2","v":0},null,null,null,null,null,null,null,null,null,null,null,null,null,null,null,null,null,null,null,null,null,{"$f":"data4!$DP$2","v":0},null,null,null,null,null,null,null,null,null,null,null,null,null,null,null,null,null,null,null,null,null,null,null,null,null,null,null,null,null,null,null,null,null,null,{"$f":"data4!$DH$2","v":0},null,null,null,null,{"$f":"data4!$DJ$2","v":0},null,null,null,{"$f":"data4!$DL$2","v":0},null,null,null,null,null,null,null,null,null,null,null,null,null,null,null,null,null,null,null,null,null,{"$f":"data4!$DP$2","v":0}]
[null,null,null,null,null,"住宅借入金等　　特別控除可能額",null,null,null,null,null,null,null,null,null,null,"円","居住開始年月日（２回目）",null,null,null,null,"年",null,null,null,null,"月",null,null,null,"日",null,null,null,"住宅借入金等特別　　　控除区分（２回目）",null,null,null,null,null,{"$f":"data4!$DO$2","v":0},null,null,null,null,null,"住宅借入金等　　　　年末残高（２回目）",null,null,null,null,null,"円",null,null,null,null,null,null,null,null,null,null,null,null,null,null,null,null,null,"住宅借入金等　　特別控除可能額",null,null,null,null,null,null,null,null,null,null,"円","居住開始年月日（２回目）",null,null,null,null,"年",null,null,null,null,"月",null,null,null,"日",null,null,null,"住宅借入金等特別　　　控除区分（２回目）",null,null,null,null,null,{"$f":"data4!$DO$2","v":0},null,null,null,null,null,"住宅借入金等　　　　年末残高（２回目）",null,null,null,null,null,"円"]
[null,null,null,null,null,null,null,null,null,null,{"$f":"data4!$DG$2","v":0},null,null,null,null,null,null,null,null,null,null,null,{"$f":"data4!$DI$2","v":0},null,null,null,null,{"$f":"data4!$DK$2","v":0},null,null,null,{"$f":"data4!$DM$2","v":0},null,null,null,null,null,null,null,null,null,null,null,null,null,null,null,null,null,null,null,null,null,{"$f":"data4!$DQ$2","v":0},null,null,null,null,null,null,null,null,null,null,null,null,null,null,null,null,null,null,null,null,null,null,{"$f":"data4!$DG$2","v":0},null,null,null,null,null,null,null,null,null,null,null,{"$f":"data4!$DI$2","v":0},null,null,null,null,{"$f":"data4!$DK$2","v":0},null,null,null,{"$f":"data4!$DM$2","v":0},null,null,null,null,null,null,null,null,null,null,null,null,null,null,null,null,null,null,null,null,null,{"$f":"data4!$DQ$2","v":0}]
[null,"控除対象配偶者",null,null,"（フリガナ）",null,null,null,null,{"$f":"data4!$P$2","v":0},null,null,null,null,null,null,null,null,null,null,null,null,null,null,"区分",null,{"$f":"data4!$S$2","v":0},null,null,"配偶者の　　　　　合計所得",null,null,null,null,null,"円",null,null,null,null,null,"国民年金保険　　　　　　料等の金額",null,null,null,null,null,"円",null,null,null,null,null,"旧長期損害　　　　保険料の金額",null,null,null,null,null,"円",null,null,null,null,null,null,null,"控除対象配偶者",null,null,"（フリガナ）",null,null,null,null,{"$f":"data4!$P$2","v":0},null,null,null,null,null,null,null,null,null,null,null,null,null,null,"区分",null,{"$f":"data4!$S$2","v":0},null,null,"配偶者の　　　　　合計所得",null,null,null,null,null,"円",null,null,null,null,null,"国民年金保険　　　　　　料等の金額",null,null,null,null,null,"円",null,null,null,null,null,"旧長期損害　　　　保険料の金額",null,null,null,null,null,"円"]
[null,null,null,null,"氏名",null,null,null,null,{"$f":"data4!$Q$2","v":0},null,null,null,null,null,null,null,null,null,null,null,null,null,null,null,null,null,null,null,null,null,null,null,null,null,{"$f":"data4!$N$2","v":0},null,null,null,null,null,null,null,null,null,null,null,{"$f":"data4!$CV$2","v":0},null,null,null,null,null,null,null,null,null,null,null,{"$f":"data4!$DE$2","v":0},null,null,null,null,null,null,null,null,null,null,"氏名",null,null,null,null,{"$f":"data4!$Q$2","v":0},null,null,null,null,null,null,null,null,null,null,null,null,null,null,null,null,null,null,null,null,null,null,null,null,null,{"$f":"data4!$N$2","v":0},null,null,null,null,null,null,null,null,null,null,null,{"$f":"data4!$CV$2","v":0},null,null,null,null,null,null,null,null,null,null,null,{"$f":"data4!$DE$2","v":0}]
[null,null,null,null,"個人番号",null,null,null,null,{"$f":"DBCS(data4!$T$2)","v":""},null,null,null,null,null,null,{"$f":"DBCS(data4!$U$2)","v":""},null,null,null,null,null,{"$f":"DBCS(data4!$V$2)","v":""}]
[null,"控除対象扶養親族",null,1,"（フリガナ）",null,null,null,null,{"$f":"data4!$W$2","v":0},null,null,null,null,null,null,null,null,null,null,null,null,null,null,"区分",null,{"$f":"data4!$CK$2","v":0},null,null,"16歳未満の扶養親族",null,1,"（フリガナ）",null,null,null,null,{"$f":"data4!$AC$2","v":0},null,null,null,null,null,null,null,null,null,null,null,null,null,null,"区分",null,{"$f":"data4!$CQ$2","v":0},null,null,"（備考）",null,null,null,null,null,null,null,null,null,"控除対象扶養親族",null,1,"（フリガナ）",null,null,null,null,{"$f":"data4!$W$2","v":0},null,null,null,null,null,null,null,null,null,null,null,null,null,null,"区分",null,{"$f":"data4!$CK$2","v":0},null,null,"16歳未満の扶養親族",null,1,"（フリガナ）",null,null,null,null,{"$f":"data4!$AC$2","v":0},null,null,null,null,null,null,null,null,null,null,null,null,null,null,"区分",null,{"$f":"data4!$CQ$2","v":0}]
[null,null,null,null,"氏名",null,null,null,null,{"$f":"data4!$AG$2","v":0},null,null,null,null,null,null,null,null,null,null,null,null,null,null,null,null,null,null,null,null,null,null,"氏名",null,null,null,null,{"$f":"data4!$AM$2","v":0},null,null,null,null,null,null,null,null,null,null,null,null,null,null,null,null,null,null,null,{"$f":"IF(data4!$BA$2=0,\"\",\"（1）\")","v":""},null,null,null,null,null,null,null,null,null,null,null,null,"氏名",null,null,null,null,{"$f":"data4!$AG$2","v":0},null,null,null,null,null,null,null,null,null,null,null,null,null,null,null,null,null,null,null,null,null,null,"氏名",null,null,null,null,{"$f":"data4!$AM$2","v":0}]
[null,null,null,null,"個人番号",null,null,null,null,{"$f":"DBCS(data4!$AW$2)","v":""},null,null,null,null,null,null,{"$f":"DBCS(data4!$BG$2)","v":""},null,null,null,null,null,{"$f":"DBCS(data4!$BQ$2)","v":""},null,null,null,null,null,null,null,null,null,"個人番号",null,null,null,null,null,null,null,null,null,null,null,null,null,null,null,null,null,null,null,null,null,null,null,null,null,{"$f":"IF(data4!$BA$2=\"\",\"\",data4!$BA$2)","v":""},null,{"$f":"IF(data4!$BK$2=\"\",\"\",data4!$BK$2)","v":""},null,{"$f":"IF(data4!$BU$2=\"\",\"\",data4!$BU$2)","v":""}]
[null,null,null,2,"（フリガナ）",null,null,null,null,{"$f":"data4!$X$2","v":0},null,null,null,null,null,null,null,null,null,null,null,null,null,null,"区分",null,{"$f":"data4!$CL$2","v":0},null,null,null,null,2,"（フリガナ）",null,null,null,null,{"$f":"data4!$AD$2","v":0},null,null,null,null,null,null,null,null,null,null,null,null,null,null,"区分",null,{"$f":"data4!$CR$2","v":0},null,null,{"$f":"IF(data4!$BB$2=0,\"\",\"（2）\")","v":""},null,null,null,null,null,null,null,null,null,null,null,2,"（フリガナ）",null,null,null,null,{"$f":"data4!$X$2","v":0},null,null,null,null,null,null,null,null,null,null,null,null,null,null,"区分",null,{"$f":"data4!$CL$2","v":0},null,null,null,null,2,"（フリガナ）",null,null,null,null,{"$f":"data4!$AD$2","v":0},null,null,null,null,null,null,null,null,null,null,null,null,null,null,"区分",null,{"$f":"data4!$CR$2","v":0}]
[null,null,null,null,"氏名",null,null,null,null,{"$f":"data4!$AH$2","v":0},null,null,null,null,null,null,null,null,null,null,null,null,null,null,null,null,null,null,null,null,null,null,"氏名",null,null,null,null,{"$f":"data4!$AN$2","v":0},null,null,null,null,null,null,null,null,null,null,null,null,null,null,null,null,null,null,null,null,{"$f":"IF(data4!$BB$2=\"\",\"\",data4!$BB$2)","v":""},null,{"$f":"IF(data4!$BL$2=\"\",\"\",data4!$BL$2)","v":""},null,{"$f":"IF(data4!$BV$2=\"\",\"\",data4!$BV$2)","v":""},null,null,null,null,null,null,null,"氏名",null,null,null,null,{"$f":"data4!$AH$2","v":0},null,null,null,null,null,null,null,null,null,null,null,null,null,null,null,null,null,null,null,null,null,null,"氏名",null,null,null,null,{"$f":"data4!$AN$2","v":0}]
[null,null,null,null,"個人番号",null,null,null,null,{"$f":"DBCS(data4!$AX$2)","v":""},null,null,null,null,null,null,{"$f":"DBCS(data4!$BH$2)","v":""},null,null,null,null,null,{"$f":"DBCS(data4!$BR$2)","v":""},null,null,null,null,null,null,null,null,null,"個人番号"]
[null,null,null,3,"（フリガナ）",null,null,null,null,{"$f":"data4!$Y$2","v":0},null,null,null,null,null,null,null,null,null,null,null,null,null,null,"区分",null,{"$f":"data4!$CM$2","v":0},null,null,null,null,3,"（フリガナ）",null,null,null,null,{"$f":"data4!$AE$2","v":0},null,null,null,null,null,null,null,null,null,null,null,null,null,null,"区分",null,{"$f":"data4!$CS$2","v":0},null,null,null,null,null,null,null,null,null,null,null,null,null,null,3,"（フリガナ）",null,null,null,null,{"$f":"data4!$Y$2","v":0},null,null,null,null,null,null,null,null,null,null,null,null,null,null,"区分",null,{"$f":"data4!$CM$2","v":0},null,null,null,null,3,"（フリガナ）",null,null,null,null,{"$f":"data4!$AE$2","v":0},null,null,null,null,null,null,null,null,null,null,null,null,null,null,"区分",null,{"$f":"data4!$CS$2","v":0}]
[null,null,null,null,"氏名",null,null,null,null,{"$f":"data4!$AI$2","v":0},null,null,null,null,null,null,null,null,null,null,null,null,null,null,null,null,null,null,null,null,null,null,"氏名",null,null,null,null,{"$f":"data4!$AO$2","v":0},null,null,null,null,null,null,null,null,null,null,null,null,null,null,null,null,null,null,null,null,null,null,null,null,null,null,null,null,null,null,null,null,"氏名",null,null,null,null,{"$f":"data4!$AI$2","v":0},null,null,null,null,null,null,null,null,null,null,null,null,null,null,null,null,null,null,null,null,null,null,"氏名",null,null,null,null,{"$f":"data4!$AO$2","v":0}]
[null,null,null,null,"個人番号",null,null,null,null,{"$f":"DBCS(data4!$AY$2)","v":""},null,null,null,null,null,null,{"$f":"DBCS(data4!$BI$2)","v":""},null,null,null,null,null,{"$f":"DBCS(data4!$BS$2)","v":""},null,null,null,null,null,null,null,null,null,"個人番号"]
[null,null,null,4,"（フリガナ）",null,null,null,null,{"$f":"data4!$Z$2","v":0},null,null,null,null,null,null,null,null,null,null,null,null,null,null,"区分",null,{"$f":"data4!$CN$2","v":0},null,null,null,null,4,"（フリガナ）",null,null,null,null,{"$f":"data4!$AF$2","v":0},null,null,null,null,null,null,null,null,null,null,null,null,null,null,"区分",null,{"$f":"data4!$CT$2","v":0},null,null,null,null,null,null,null,null,null,null,null,null,null,null,4,"（フリガナ）",null,null,null,null,{"$f":"data4!$Z$2","v":0},null,null,null,null,null,null,null,null,null,null,null,null,null,null,"区分",null,{"$f":"data4!$CN$2","v":0},null,null,null,null,4,"（フリガナ）",null,null,null,null,{"$f":"data4!$AF$2","v":0},null,null,null,null,null,null,null,null,null,null,null,null,null,null,"区分",null,{"$f":"data4!$CT$2","v":0}]
[null,null,null,null,"氏名",null,null,null,null,{"$f":"data4!$AJ$2","v":0},null,null,null,null,null,null,null,null,null,null,null,null,null,null,null,null,null,null,null,null,null,null,"氏名",null,null,null,null,{"$f":"data4!$AP$2","v":0},null,null,null,null,null,null,null,null,null,null,null,null,null,null,null,null,null,null,null,null,null,null,null,null,null,null,null,null,null,null,null,null,"氏名",null,null,null,null,{"$f":"data4!$AJ$2","v":0},null,null,null,null,null,null,null,null,null,null,null,null,null,null,null,null,null,null,null,null,null,null,"氏名",null,null,null,null,{"$f":"data4!$AP$2","v":0}]
[null,null,null,null,"個人番号",null,null,null,null,{"$f":"DBCS(data4!$AZ$2)","v":""},null,null,null,null,null,null,{"$f":"DBCS(data4!$BJ$2)","v":""},null,null,null,null,null,{"$f":"DBCS(data4!$BT$2)","v":""},null,null,null,null,null,null,null,null,null,"個人番号"]
[null,"未成年者",null,null,"外国人",null,"死亡退職",null,"災害者",null,"乙欄",null,null,"本人が障害者",null,null,null,null,null,"寡　婦",null,null,null,null,null,"寡夫",null,"勤労学生",null,"中途・就退職",null,null,null,null,null,null,null,null,null,null,null,null,null,null,"受 給 者 生 年 月 日",null,null,null,null,null,null,null,null,null,null,null,null,null,null,null,null,null,null,null,null,null,null,"未成年者",null,null,"外国人",null,"死亡退職",null,"災害者",null,"乙欄",null,null,"本人が障害者",null,null,null,null,null,"寡　婦",null,null,null,null,null,"寡夫",null,"勤労学生",null,"中途・就退職",null,null,null,null,null,null,null,null,null,null,null,null,null,null,"受 給 者 生 年 月 日"]
[null,null,null,null,null,null,null,null,null,null,null,null,null,"特別",null,null,"その他",null,null,"一般",null,null,"特別",null,null,null,null,null,null,null,null,null,null,null,null,null,null,null,null,null,null,null,null,null,null,null,null,null,null,null,null,null,null,null,null,null,null,null,null,null,null,null,null,null,null,null,null,null,null,null,null,null,null,null,null,null,null,null,null,"特別",null,null,"その他",null,null,"一般",null,null,"特別"]
[null,null,null,null,null,null,null,null,null,null,null,null,null,null,null,null,null,null,null,null,null,null,null,null,null,null,null,null,null,"就職",null,null,"退職",null,null,"年",null,null,"月",null,null,"日",null,null,"明",null,null,"大",null,null,"昭",null,null,"平",null,null,"年",null,null,"月",null,null,"日",null,null,null,null,null,null,null,null,null,null,null,null,null,null,null,null,null,null,null,null,null,null,null,null,null,null,null,null,null,null,null,null,"就職",null,null,"退職",null,null,"年",null,null,"月",null,null,"日",null,null,"明",null,null,"大",null,null,"昭",null,null,"平",null,null,"年",null,null,"月",null,null,"日"]
[]
["（税務署提出用）",{"$f":"data4!$B$2","v":0},null,null,{"$f":"data4!$C$2","v":0},null,{"$f":"data4!$D$2","v":0},null,{"$f":"data4!$E$2","v":0},null,{"$f":"data4!$F$2","v":0},null,null,{"$f":"data4!$G$2","v":0},null,null,{"$f":"data4!$H$2","v":0},null,null,{"$f":"data4!$I$2","v":0},null,null,{"$f":"data4!$J$2","v":0},null,null,{"$f":"data4!$K$2","v":0},null,{"$f":"data4!$L$2","v":0},null,{"$f":"data2!$AD$2","v":0},null,null,null,null,null,{"$f":"data2!$S$2","v":0},null,null,{"$f":"data2!$T$2","v":0},null,null,{"$f":"data2!$U$2","v":0},null,null,{"$f":"data2!$Y$2","v":0},null,null,{"$f":"data2!$Z$2","v":0},null,null,{"$f":"data2!$AA$2","v":0},null,null,{"$f":"data2!$AB$2","v":0},null,null,{"$f":"data2!$O$2","v":0},null,null,{"$f":"data2!$P$2","v":0},null,null,{"$f":"data2!$Q$2","v":0},null,null,null,"（受給者交付用）",{"$f":"data4!$B$2","v":0},null,null,{"$f":"data4!$C$2","v":0},null,{"$f":"data4!$D$2","v":0},null,{"$f":"data4!$E$2","v":0},null,{"$f":"data4!$F$2","v":0},null,null,{"$f":"data4!$G$2","v":0},null,null,{"$f":"data4!$H$2","v":0},null,null,{"$f":"data4!$I$2","v":0},null,null,{"$f":"data4!$J$2","v":0},null,null,{"$f":"data4!$K$2","v":0},null,{"$f":"data4!$L$2","v":0},null,{"$f":"data2!$AD$2","v":0},null,null,null,null,null,{"$f":"data2!$S$2","v":0},null,null,{"$f":"data2!$T$2","v":0},null,null,{"$f":"data2!$U$2","v":0},null,null,{"$f":"data2!$Y$2","v":0},null,null,{"$f":"data2!$Z$2","v":0},null,null,{"$f":"data2!$AA$2","v":0},null,null,{"$f":"data2!$AB$2","v":0},null,null,{"$f":"data2!$O$2","v":0},null,null,{"$f":"data2!$P$2","v":0},null,null,{"$f":"data2!$Q$2","v":0}]
[null,null,null,null,null,null,null,null,null,null,null,null,null,null,null,null,null,null,null,null,null,null,null,null,null,null,null,null,null,null,null,null,{"$f":"data2!$AE$2","v":0},null,null,{"$f":"data2!$V$2","v":0},null,null,{"$f":"data2!$W$2","v":0},null,null,{"$f":"data2!$X$2","v":0},null,null,null,null,null,null,null,null,null,null,null,null,null,null,null,null,null,null,null,null,null,null,null,null,null,null,null,null,null,null,null,null,null,null,null,null,null,null,null,null,null,null,null,null,null,null,null,null,null,null,null,null,null,null,null,null,{"$f":"data2!$AE$2","v":0},null,null,{"$f":"data2!$V$2","v":0},null,null,{"$f":"data2!$W$2","v":0},null,null,{"$f":"data2!$X$2","v":0}]
[null,"支 払 者",null,"個人番号又は　　法人番号",null,null,null,null,null,null,{"$f":"DBCS(data1!$D$2)","v":""},null,{"$f":"DBCS(data1!$E$2)","v":""},null,null,null,null,null,null,null,{"$f":"DBCS(data1!$F$2)","v":""},null,null,null,null,null,null,null,{"$f":"DBCS(data1!$G$2)","v":""},null,null,null,null,null,null,null,"（右詰で記載してください。）",null,null,null,null,null,null,null,null,null,null,null,null,null,null,null,null,null,null,null,null,null,null,null,null,null,null,null,null,null,null,"支 払 者"]
[null,null,null,"住所（居所）　　又は所在地",null,null,null,null,null,null,{"$f":"data1!$A$2","v":""},null,null,null,null,null,null,null,null,null,null,null,null,null,null,null,null,null,null,null,null,null,null,null,null,null,null,null,null,null,null,null,null,null,null,null,null,null,null,null,null,null,null,null,null,null,null,null,null,null,null,null,null,null,null,null,null,null,null,"住所（居所）　　又は所在地",null,null,null,null,null,null,{"$f":"data1!$A$2","v":""}]
[null,null,null,"氏名又は名称",null,null,null,null,null,null,{"$f":"data1!$B$2","v":""},null,null,null,null,null,null,null,null,null,null,null,null,null,null,null,null,null,null,null,null,null,null,null,null,null,null,null,null,null,null,null,null,null,null,null,null,"（電話）",null,null,null,{"$f":"data1!$C$2","v":""},null,null,null,null,null,null,null,null,null,null,null,null,null,null,null,null,null,"氏名又は名称",null,null,null,null,null,null,{"$f":"data1!$B$2","v":""},null,null,null,null,null,null,null,null,null,null,null,null,null,null,null,null,null,null,null,null,null,null,null,null,null,null,null,null,null,null,null,null,null,null,null,null,"（電話）",null,null,null,{"$f":"data1!$C$2","v":""}]
[]
[null,"整 　理　 欄",null,null,null,null,null,null,null,null,null,null,null,null,null,null,null,null,null,null,null,null,null,null,null,null,null,null,null,null,null,null,null,null,null,null,null,null,null,null,null,null,null,null,null,null,null,null,null,null,null,null,null,null,null,null,null,null,null,null,null,null,375]
[]
[]
[null,null,null,null,null,null,null,null,null,null,null,null,null,null,null,null,null,null,null,null,null,null,null,null,null,null,null,null,null,null,null,null,null,null,null,null,null,null,null,null,null,null,null,null,null,null,null,null,null,null,null,null,null,null,null,null,null,null,null,null,null,null,null,null,{"$f":"IF(ライセンス2!$D$8=\"ok\",,\"ＳＡＭＰＬＥ\")","v":"ＳＡＭＰＬＥ"},null,null,null,null,null,null,null,null,null,null,null,null,null,null,null,null,null,null,null,null,null,null,null,null,null,null,null,null,null,null,null,null,null,null,null,null,null,null,null,null,null,null,null,null,null,null,null,null,null,null,null,null,null,null,null,null,null,null,null,null,null,null,null,null,null,{"$f":"IF(ライセンス2!$D$8=\"ok\",,\"ＳＡＭＰＬＥ\")","v":"ＳＡＭＰＬＥ"}]
["㉛","※",null,null,null,null,null,null,null,null,null,null,null,null,null,null,null,null,null,null,null,null,null,null,null,null,null,null,null,null,null,null,null,null,null,null,null,"※種別",null,null,null,null,null,null,null,"※整理番号",null,null,null,null,null,null,null,null,null,null,"※",null,null,null,null,null,null,null,null,null,"㉛","※",null,null,null,null,null,null,null,null,null,null,null,null,null,null,null,null,null,null,null,null,null,null,null,null,null,null,null,null,null,null,null,null,null,null,null,"※種別",null,null,null,null,null,null,null,"※整理番号",null,null,null,null,null,null,null,null,null,null,"※"]
[]
[null,"支   払　を受け　　る者",null,null,null,"住所又は居所",null,{"$f":"data2!$K$2","v":0},null,null,null,null,null,null,null,null,null,null,null,null,null,null,null,null,null,null,null,null,null,null,null,null,null,null,null,null,null,null,"氏　名",null,"（受給者番号）",null,null,null,null,null,null,{"$f":"data2!$H$2","v":0},null,null,null,null,null,null,null,null,null,null,null,null,null,null,null,null,null,null,null,"支   払　を受け　　る者",null,null,null,"住所又は居所",null,{"$f":"data2!$K$2","v":0},null,null,null,null,null,null,null,null,null,null,null,null,null,null,null,null,null,null,null,null,null,null,null,null,null,null,null,null,null,null,"氏　名",null,"（受給者番号）",null,null,null,null,null,null,{"$f":"data2!$H$2","v":0}]
["給与支払報告書（個人別明細書)",null,null,null,null,null,null,null,null,null,null,null,null,null,null,null,null,null,null,null,null,null,null,null,null,null,null,null,null,null,null,null,null,null,null,null,null,null,null,null,"（個人番号）",null,null,null,null,null,null,{"$f":"DBCS(data2!$L$2)","v":""},null,null,null,null,null,{"$f":"DBCS(data2!$M$2)","v":""},null,null,null,null,null,{"$f":"DBCS(data2!$N$2)","v":""},null,null,null,null,null,null,"給与支払報告書（個人別明細書)",null,null,null,null,null,null,null,null,null,null,null,null,null,null,null,null,null,null,null,null,null,null,null,null,null,null,null,null,null,null,null,null,null,null,null,null,null,null,null,"（個人番号）",null,null,null,null,null,null,{"$f":"DBCS(data2!$L$2)","v":""},null,null,null,null,null,{"$f":"DBCS(data2!$M$2)","v":""},null,null,null,null,null,{"$f":"DBCS(data2!$N$2)","v":""}]
[null,null,null,null,null,null,null,null,null,null,null,null,null,null,null,null,null,null,null,null,null,null,null,null,null,null,null,null,null,null,null,null,null,null,null,null,null,null,null,null,"（役職名）",null,null,null,null,null,null,{"$f":"data2!$G$2","v":0},null,null,null,null,null,null,null,null,null,null,null,null,null,null,null,null,null,null,null,null,null,null,null,null,null,null,null,null,null,null,null,null,null,null,null,null,null,null,null,null,null,null,null,null,null,null,null,null,null,null,null,null,null,null,null,null,null,null,"（役職名）",null,null,null,null,null,null,{"$f":"data2!$G$2","v":0}]
[null,null,null,null,null,null,null,null,null,null,null,null,null,null,null,null,null,null,null,null,null,null,null,null,null,null,null,null,null,null,null,null,null,null,null,null,null,null,null,null,"氏名",null,"（フリガナ）",null,null,null,{"$f":"data2!$C$2","v":0},null,null,null,null,null,null,null,null,{"$f":"data2!$D$2","v":0},null,null,null,null,null,null,null,null,null,null,null,null,null,null,null,null,null,null,null,null,null,null,null,null,null,null,null,null,null,null,null,null,null,null,null,null,null,null,null,null,null,null,null,null,null,null,null,null,null,null,"氏名",null,"（フリガナ）",null,null,null,{"$f":"data2!$C$2","v":0},null,null,null,null,null,null,null,null,{"$f":"data2!$D$2","v":0}]
[null,null,null,null,null,null,null,null,null,null,null,null,null,null,null,null,null,null,null,null,null,null,null,null,null,null,null,null,null,null,null,null,null,null,null,null,null,null,null,null,null,null,null,null,null,{"$f":"data2!$E$2","v":0},null,null,null,null,null,null,null,null,null,{"$f":"data2!$F$2","v":0},null,null,null,null,null,null,null,null,null,null,null,null,null,null,null,null,null,null,null,null,null,null,null,null,null,null,null,null,null,null,null,null,null,null,null,null,null,null,null,null,null,null,null,null,null,null,null,null,null,null,null,null,null,null,null,{"$f":"data2!$E$2","v":0},null,null,null,null,null,null,null,null,null,{"$f":"data2!$F$2","v":0}]
[null,"種　　　別",null,null,null,null,null,null,null,null,null,null,null,"支　払　金　額",null,null,null,null,null,null,null,null,null,null,null,null,"給与所得控除後の金額",null,null,null,null,null,null,null,null,null,null,null,null,"所得控除の額の合計額",null,null,null,null,null,null,null,null,null,null,null,null,"源  泉  徴  収  税  額",null,null,null,null,null,null,null,null,null,null,null,null,null,null,"種　　　別",null,null,null,null,null,null,null,null,null,null,null,"支　払　金　額",null,null,null,null,null,null,null,null,null,null,null,null,"給与所得控除後の金額",null,null,null,null,null,null,null,null,null,null,null,null,"所得控除の額の合計額",null,null,null,null,null,null,null,null,null,null,null,null,"源  泉  徴  収  税  額"]
[null,{"$f":"IF(ライセンス2!$D$8=\"ok\",data2!$R$2,\"ＳＡＭＰＬＥ\")","v":"ＳＡＭＰＬＥ"},null,null,null,null,null,null,null,null,null,null,null,"内",null,null,null,null,null,null,null,null,null,null,null,"円",null,null,null,null,null,null,null,null,null,null,null,null,"円",null,null,null,null,null,null,null,null,null,null,null,null,"円","内",null,null,null,null,null,null,null,null,null,null,null,"円",null,null,{"$f":"IF(ライセンス2!$D$8=\"ok\",data2!$R$2,\"ＳＡＭＰＬＥ\")","v":"ＳＡＭＰＬＥ"},null,null,null,null,null,null,null,null,null,null,null,"内",null,null,null,null,null,null,null,null,null,null,null,"円",null,null,null,null,null,null,null,null,null,null,null,null,"円",null,null,null,null,null,null,null,null,null,null,null,null,"円","内",null,null,null,null,null,null,null,null,null,null,null,"円"]
[null,null,null,null,null,null,null,null,null,null,null,null,null,{"$f":"IF(ライセンス2!$D$8=\"ok\",data5!$D$2,\"ＳＡＭＰＬＥ\")","v":"ＳＡＭＰＬＥ"},null,null,null,null,null,null,null,null,null,null,null,null,{"$f":"IF(data2!$B$2=\"要\",data5!$E$2,\"\")","v":""},null,null,null,null,null,null,null,null,null,null,null,null,{"$f":"IF(data2!$B$2=\"要\",data5!$Q$2,\"\")","v":""},null,null,null,null,null,null,null,null,null,null,null,null,{"$f":"IF(IF(data2!$B$2=\"否\",data5!$U$2,data5!$Y$2)=0,\"0\",IF(data2!$B$2=\"否\",data5!$U$2,data5!$Y$2))","v":"0"},null,null,null,null,null,null,null,null,null,null,null,null,null,null,null,null,null,null,null,null,null,null,null,null,null,null,{"$f":"IF(ライセンス2!$D$8=\"ok\",data5!$D$2,\"ＳＡＭＰＬＥ\")","v":"ＳＡＭＰＬＥ"},null,null,null,null,null,null,null,null,null,null,null,null,{"$f":"IF(data2!$B$2=\"要\",data5!$E$2,\"\")","v":""},null,null,null,null,null,null,null,null,null,null,null,null,{"$f":"IF(data2!$B$2=\"要\",data5!$Q$2,\"\")","v":""},null,null,null,null,null,null,null,null,null,null,null,null,{"$f":"IF(IF(data2!$B$2=\"否\",data5!$U$2,data5!$Y$2)=0,\"0\",IF(data2!$B$2=\"否\",data5!$U$2,data5!$Y$2))","v":"0"}]
[null,"控除対象配偶者",null,null,null,null,null,null,null,null,null,null,null,"配偶者特別              控除の額",null,null,null,null,null,null,null,null,null,"控除対象扶養親族の数",null,null,null,null,null,null,null,null,null,null,null,null,null,null,null,null,null,null,null,null,null,"16歳未満扶養親族の数",null,null,null,"障 害 者 の 数　　　　　　　　（本人を除く）",null,null,null,null,null,null,null,null,null,null,null,"非居住者である　親族の数",null,null,null,null,null,"控除対象配偶者",null,null,null,null,null,null,null,null,null,null,null,"配偶者特別              控除の額",null,null,null,null,null,null,null,null,null,"控除対象扶養親族の数",null,null,null,null,null,null,null,null,null,null,null,null,null,null,null,null,null,null,null,null,null,"16歳未満扶養親族の数",null,null,null,"障 害 者 の 数　　　　　　　　（本人を除く）",null,null,null,null,null,null,null,null,null,null,null,"非居住者である　親族の数"]
[null,"の有無等",null,null,null,null,null,null,null,null,"老人",null,null,null,null,null,null,null,null,null,null,null,null,"（　配　偶　者　を　除　く　）",null,null,null,null,null,null,null,null,null,null,null,null,null,null,null,null,null,null,null,null,null,null,null,null,null,null,null,null,null,null,null,null,null,null,null,null,null,null,null,null,null,null,null,"の有無等",null,null,null,null,null,null,null,null,"老人",null,null,null,null,null,null,null,null,null,null,null,null,"（　配　偶　者　を　除　く　）"]
[null,null,null,null,null,null,null,null,null,null,null,null,null,null,null,null,null,null,null,null,null,null,null,"特　定",null,null,null,null,null,"老　　人",null,null,null,null,null,null,null,null,null,"その他",null,null,null,null,null,null,null,null,null,"特　別",null,null,null,null,null,null,null,"その他",null,null,null,null,null,null,null,null,null,null,null,null,null,null,null,null,null,null,null,null,null,null,null,null,null,null,null,null,null,null,null,"特　定",null,null,null,null,null,"老　　人",null,null,null,null,null,null,null,null,null,"その他",null,null,null,null,null,null,null,null,null,"特　別",null,null,null,null,null,null,null,"その他"]
[null,"有",null,null,null,"従有",null,null,null,null,null,null,null,null,null,null,null,null,null,null,null,null,"円","人",null,null,null,"従人",null,"内",null,null,null,"人",null,null,null,"従人",null,"人",null,null,null,"従人",null,"人",null,null,null,"内",null,null,null,"人",null,null,null,"人",null,null,null,"人",null,null,null,null,null,"有",null,null,null,"従有",null,null,null,null,null,null,null,null,null,null,null,null,null,null,null,null,"円","人",null,null,null,"従人",null,"内",null,null,null,"人",null,null,null,"従人",null,"人",null,null,null,"従人",null,"人",null,null,null,"内",null,null,null,"人",null,null,null,"人",null,null,null,"人"]
[null,{"$f":"IF(AND(data2!$B$2=\"要\",OR(data4!$R$2=\"一般の控除対象配偶者\",data4!$R$2=\"老人控除対象配偶者\")),\"○\",\"\")","v":""},null,null,null,null,null,null,null,{"$f":"IF(AND(data2!$B$2=\"要\",data4!$R$2=\"老人控除対象配偶者\"),\"○\",\"\")","v":""},null,null,null,{"$f":"data5!$K$2","v":0},null,null,null,null,null,null,null,null,null,{"$f":"data4!$AQ$7","v":0},null,null,null,null,null,{"$f":"data4!$AR$7","v":0},null,null,null,{"$f":"data4!$AS$7+data4!$AR$7","v":0},null,null,null,null,null,{"$f":"data4!$AT$7","v":0},null,null,null,null,null,{"$f":"data4!$AI$7","v":0},null,null,null,{"$f":"data4!$BZ$7","v":0},null,null,null,{"$f":"data4!$CA$7+data4!$BZ$7","v":0},null,null,null,{"$f":"data4!$CB$7","v":0},null,null,null,{"$f":"data4!$CP$6","v":0},null,null,null,null,null,{"$f":"IF(AND(data2!$B$2=\"要\",OR(data4!$R$2=\"一般の控除対象配偶者\",data4!$R$2=\"老人控除対象配偶者\")),\"○\",\"\")","v":""},null,null,null,null,null,null,null,{"$f":"IF(AND(data2!$B$2=\"要\",data4!$R$2=\"老人控除対象配偶者\"),\"○\",\"\")","v":""},null,null,null,{"$f":"data5!$K$2","v":0},null,null,null,null,null,null,null,null,null,{"$f":"data4!$AQ$7","v":0},null,null,null,null,null,{"$f":"data4!$AR$7","v":0},null,null,null,{"$f":"data4!$AS$7+data4!$AR$7","v":0},null,null,null,null,null,{"$f":"data4!$AT$7","v":0},null,null,null,null,null,{"$f":"data4!$AI$7","v":0},null,null,null,{"$f":"data4!$BZ$7","v":0},null,null,null,{"$f":"data4!$CA$7+data4!$BZ$7","v":0},null,null,null,{"$f":"data4!$CB$7","v":0},null,null,null,{"$f":"data4!$CP$6","v":0}]
[]
[]
[null,"社会保険料等の金額",null,null,null,null,null,null,null,null,null,null,null,null,null,null,null,"生命保険料の控除額",null,null,null,null,null,null,null,null,null,null,null,null,null,null,null,"地震保険料の控除額",null,null,null,null,null,null,null,null,null,null,null,null,null,null,null,"住宅借入金等特別控除の額",null,null,null,null,null,null,null,null,null,null,null,null,null,null,null,null,null,"社会保険料等の金額",null,null,null,null,null,null,null,null,null,null,null,null,null,null,null,"生命保険料の控除額",null,null,null,null,null,null,null,null,null,null,null,null,null,null,null,"地震保険料の控除額",null,null,null,null,null,null,null,null,null,null,null,null,null,null,null,"住宅借入金等特別控除の額"]
[null,"内",null,null,null,{"$f":"data4!$CW$2+data4!$CX$2","v":0},null,null,null,null,null,null,null,null,null,null,"円",null,null,null,null,null,null,null,null,null,null,null,null,null,null,null,"円",null,null,null,null,null,null,null,null,null,null,null,null,null,null,null,"円",null,null,null,null,null,null,null,null,null,null,null,null,null,null,null,"円",null,null,"内",null,null,null,{"$f":"data4!$CW$2+data4!$CX$2","v":0},null,null,null,null,null,null,null,null,null,null,"円",null,null,null,null,null,null,null,null,null,null,null,null,null,null,null,"円",null,null,null,null,null,null,null,null,null,null,null,null,null,null,null,"円",null,null,null,null,null,null,null,null,null,null,null,null,null,null,null,"円"]
[null,{"$f":"data5!$F$2+data5!$G$2+data5!$H$2","v":0},null,null,null,null,null,null,null,null,null,null,null,null,null,null,null,{"$f":"data5!$I$2","v":0},null,null,null,null,null,null,null,null,null,null,null,null,null,null,null,{"$f":"data5!$J$2","v":0},null,null,null,null,null,null,null,null,null,null,null,null,null,null,null,{"$f":"MIN(data5!$V$2,data5!$W$2)","v":0},null,null,null,null,null,null,null,null,null,null,null,null,null,null,null,null,null,{"$f":"data5!$F$2+data5!$G$2+data5!$H$2","v":0},null,null,null,null,null,null,null,null,null,null,null,null,null,null,null,{"$f":"data5!$I$2","v":0},null,null,null,null,null,null,null,null,null,null,null,null,null,null,null,{"$f":"data5!$J$2","v":0},null,null,null,null,null,null,null,null,null,null,null,null,null,null,null,{"$f":"MIN(data5!$V$2,data5!$W$2)","v":0}]
[]
[null,"(摘要）",null,null,null,null,{"$f":"IF(data4!$AK$2=\"\",\"\",\"(1)\")","v":""},null,{"$f":"data4!$AK$2","v":0},null,null,null,null,null,null,null,{"$f":"IF(data4!$AL$2=\"\",\"\",\"(2)\")","v":""},null,{"$f":"data4!$AL$2","v":0},null,null,null,null,null,null,null,null,null,null,null,null,null,null,null,null,null,null,null,null,null,null,null,null,null,null,null,null,null,null,null,null,null,null,null,null,null,null,null,null,null,null,null,null,null,null,null,null,"(摘要）",null,null,null,null,{"$f":"IF(data4!$AK$2=\"\",\"\",\"(1)\")","v":""},null,{"$f":"data4!$AK$2","v":0},null,null,null,null,null,null,null,{"$f":"IF(data4!$AL$2=\"\",\"\",\"(2)\")","v":""},null,{"$f":"data4!$AL$2","v":0}]
[null,null,null,null,null,{"$f":"data4!$DR$2","v":0},null,null,null,null,null,null,null,null,null,null,null,null,null,null,null,null,null,null,null,null,null,null,null,null,null,null,null,null,null,null,null,null,null,null,null,null,null,null,null,null,null,null,null,null,null,null,null,null,null,null,null,null,null,null,null,null,null,null,null,null,null,null,null,null,null,{"$f":"data4!$DR$2","v":0}]
[]
[]
[]
[null,"生命保険料の金額の　内訳",null,null,null,"新生命保険料の金額",null,null,null,null,null,null,null,null,null,null,"円","旧生命保険料の金額",null,null,null,null,null,null,null,null,null,null,"円","介護医療保　険料の金額",null,null,null,null,null,null,null,null,null,null,"円","新個人年金         保険料の金額",null,null,null,null,null,null,null,null,null,null,"円","旧個人年金      保険料の金額",null,null,null,null,null,null,null,null,null,null,"円",null,null,"生命保険料の金額の　内訳",null,null,null,"新生命保険料の金額",null,null,null,null,null,null,null,null,null,null,"円","旧生命保険料の金額",null,null,null,null,null,null,null,null,null,null,"円","介護医療保　険料の金額",null,null,null,null,null,null,null,null,null,null,"円","新個人年金         保険料の金額",null,null,null,null,null,null,null,null,null,null,"円","旧個人年金      保険料の金額",null,null,null,null,null,null,null,null,null,null,"円"]
[null,null,null,null,null,null,null,null,null,null,{"$f":"data4!$CY$2","v":0},null,null,null,null,null,null,null,null,null,null,null,{"$f":"data4!$CZ$2","v":0},null,null,null,null,null,null,null,null,null,null,null,{"$f":"data4!$DA$2","v":0},null,null,null,null,null,null,null,null,null,null,null,{"$f":"data4!$DB$2","v":0},null,null,null,null,null,null,null,null,null,null,null,{"$f":"data4!$DC$2","v":0},null,null,null,null,null,null,null,null,null,null,null,null,null,null,null,null,null,{"$f":"data4!$CY$2","v":0},null,null,null,null,null,null,null,null,null,null,null,{"$f":"data4!$CZ$2","v":0},null,null,null,null,null,null,null,null,null,null,null,{"$f":"data4!$DA$2","v":0},null,null,null,null,null,null,null,null,null,null,null,{"$f":"data4!$DB$2","v":0},null,null,null,null,null,null,null,null,null,null,null,{"$f":"data4!$DC$2","v":0}]
[null,"住宅借入金等特別控除の額の内訳",null,null,null,"住宅借入金等　　　　　　特別控除適用数",null,null,null,null,{"$f":"data4!$DF$2","v":0},null,null,null,null,null,null,"居住開始年月日（１回目）",null,null,null,null,"年",null,null,null,null,"月",null,null,null,"日",null,null,null,"住宅借入金等特別　　　控除区分（１回目）",null,null,null,null,null,{"$f":"data4!$DN$2","v":0},null,null,null,null,null,"住宅借入金等　　　　年末残高（１回目）",null,null,null,null,null,"円",null,null,null,null,null,null,null,null,null,null,null,null,null,"住宅借入金等特別控除の額の内訳",null,null,null,"住宅借入金等　　　　　　特別控除適用数",null,null,null,null,{"$f":"data4!$DF$2","v":0},null,null,null,null,null,null,"居住開始年月日（１回目）",null,null,null,null,"年",null,null,null,null,"月",null,null,null,"日",null,null,null,"住宅借入金等特別　　　控除区分（１回目）",null,null,null,null,null,{"$f":"data4!$DN$2","v":0},null,null,null,null,null,"住宅借入金等　　　　年末残高（１回目）",null,null,null,null,null,"円"]
[null,null,null,null,null,null,null,null,null,null,null,null,null,null,null,null,null,null,null,null,null,null,{"$f":"data4!$DH$2","v":0},null,null,null,null,{"$f":"data4!$DJ$2","v":0},null,null,null,{"$f":"data4!$DL$2","v":0},null,null,null,null,null,null,null,null,null,null,null,null,null,null,null,null,null,null,null,null,null,{"$f":"data4!$DP$2","v":0},null,null,null,null,null,null,null,null,null,null,null,null,null,null,null,null,null,null,null,null,null,null,null,null,null,null,null,null,null,null,null,null,null,null,{"$f":"data4!$DH$2","v":0},null,null,null,null,{"$f":"data4!$DJ$2","v":0},null,null,null,{"$f":"data4!$DL$2","v":0},null,null,null,null,null,null,null,null,null,null,null,null,null,null,null,null,null,null,null,null,null,{"$f":"data4!$DP$2","v":0}]
[null,null,null,null,null,"住宅借入金等　　特別控除可能額",null,null,null,null,null,null,null,null,null,null,"円","居住開始年月日（２回目）",null,null,null,null,"年",null,null,null,null,"月",null,null,null,"日",null,null,null,"住宅借入金等特別　　　控除区分（２回目）",null,null,null,null,null,{"$f":"data4!$DO$2","v":0},null,null,null,null,null,"住宅借入金等　　　　年末残高（２回目）",null,null,null,null,null,"円",null,null,null,null,null,null,null,null,null,null,null,null,null,null,null,null,null,"住宅借入金等　　特別控除可能額",null,null,null,null,null,null,null,null,null,null,"円","居住開始年月日（２回目）",null,null,null,null,"年",null,null,null,null,"月",null,null,null,"日",null,null,null,"住宅借入金等特別　　　控除区分（２回目）",null,null,null,null,null,{"$f":"data4!$DO$2","v":0},null,null,null,null,null,"住宅借入金等　　　　年末残高（２回目）",null,null,null,null,null,"円"]
[null,null,null,null,null,null,null,null,null,null,{"$f":"data4!$DG$2","v":0},null,null,null,null,null,null,null,null,null,null,null,{"$f":"data4!$DI$2","v":0},null,null,null,null,{"$f":"data4!$DK$2","v":0},null,null,null,{"$f":"data4!$DM$2","v":0},null,null,null,null,null,null,null,null,null,null,null,null,null,null,null,null,null,null,null,null,null,{"$f":"data4!$DQ$2","v":0},null,null,null,null,null,null,null,null,null,null,null,null,null,null,null,null,null,null,null,null,null,null,{"$f":"data4!$DG$2","v":0},null,null,null,null,null,null,null,null,null,null,null,{"$f":"data4!$DI$2","v":0},null,null,null,null,{"$f":"data4!$DK$2","v":0},null,null,null,{"$f":"data4!$DM$2","v":0},null,null,null,null,null,null,null,null,null,null,null,null,null,null,null,null,null,null,null,null,null,{"$f":"data4!$DQ$2","v":0}]
[null,"控除対象配偶者",null,null,"（フリガナ）",null,null,null,null,{"$f":"data4!$P$2","v":0},null,null,null,null,null,null,null,null,null,null,null,null,null,null,"区分",null,{"$f":"data4!$S$2","v":0},null,null,"配偶者の　　　　　合計所得",null,null,null,null,null,"円",null,null,null,null,null,"国民年金保険　　　　　　料等の金額",null,null,null,null,null,"円",null,null,null,null,null,"旧長期損害　　　　保険料の金額",null,null,null,null,null,"円",null,null,null,null,null,null,null,"控除対象配偶者",null,null,"（フリガナ）",null,null,null,null,{"$f":"data4!$P$2","v":0},null,null,null,null,null,null,null,null,null,null,null,null,null,null,"区分",null,{"$f":"data4!$S$2","v":0},null,null,"配偶者の　　　　　合計所得",null,null,null,null,null,"円",null,null,null,null,null,"国民年金保険　　　　　　料等の金額",null,null,null,null,null,"円",null,null,null,null,null,"旧長期損害　　　　保険料の金額",null,null,null,null,null,"円"]
[null,null,null,null,"氏名",null,null,null,null,{"$f":"data4!$Q$2","v":0},null,null,null,null,null,null,null,null,null,null,null,null,null,null,null,null,null,null,null,null,null,null,null,null,null,{"$f":"data4!$N$2","v":0},null,null,null,null,null,null,null,null,null,null,null,{"$f":"data4!$CV$2","v":0},null,null,null,null,null,null,null,null,null,null,null,{"$f":"data4!$DE$2","v":0},null,null,null,null,null,null,null,null,null,null,"氏名",null,null,null,null,{"$f":"data4!$Q$2","v":0},null,null,null,null,null,null,null,null,null,null,null,null,null,null,null,null,null,null,null,null,null,null,null,null,null,{"$f":"data4!$N$2","v":0},null,null,null,null,null,null,null,null,null,null,null,{"$f":"data4!$CV$2","v":0},null,null,null,null,null,null,null,null,null,null,null,{"$f":"data4!$DE$2","v":0}]
[null,null,null,null,"個人番号",null,null,null,null,{"$f":"DBCS(data4!$T$2)","v":""},null,null,null,null,null,null,{"$f":"DBCS(data4!$U$2)","v":""},null,null,null,null,null,{"$f":"DBCS(data4!$V$2)","v":""},null,null,null,null,null,null,null,null,null,null,null,null,null,null,null,null,null,null,null,null,null,null,null,null,null,null,null,null,null,null,null,null,null,null,null,null,null,null,null,null,null,null,null,null,null,null,null,"個人番号",null,null,null,null,{"$f":"DBCS(data4!$T$2)","v":""},null,null,null,null,null,null,{"$f":"DBCS(data4!$U$2)","v":""},null,null,null,null,null,{"$f":"DBCS(data4!$V$2)","v":""}]
[null,"控除対象扶養親族",null,1,"（フリガナ）",null,null,null,null,{"$f":"data4!$W$2","v":0},null,null,null,null,null,null,null,null,null,null,null,null,null,null,"区分",null,{"$f":"data4!$CK$2","v":0},null,null,"16歳未満の扶養親族",null,1,"（フリガナ）",null,null,null,null,{"$f":"data4!$AC$2","v":0},null,null,null,null,null,null,null,null,null,null,null,null,null,null,"区分",null,{"$f":"data4!$CQ$2","v":0},null,null,"５人目以降の控除対象扶養親族の個人番号",null,null,null,null,null,null,null,null,null,"控除対象扶養親族",null,1,"（フリガナ）",null,null,null,null,{"$f":"data4!$W$2","v":0},null,null,null,null,null,null,null,null,null,null,null,null,null,null,"区分",null,{"$f":"data4!$CK$2","v":0},null,null,"16歳未満の扶養親族",null,1,"（フリガナ）",null,null,null,null,{"$f":"data4!$AC$2","v":0},null,null,null,null,null,null,null,null,null,null,null,null,null,null,"区分",null,{"$f":"data4!$CQ$2","v":0},null,null,"５人目以降の控除対象扶養親族の個人番号"]
[null,null,null,null,"氏名",null,null,null,null,{"$f":"data4!$AG$2","v":0},null,null,null,null,null,null,null,null,null,null,null,null,null,null,null,null,null,null,null,null,null,null,"氏名",null,null,null,null,{"$f":"data4!$AM$2","v":0},null,null,null,null,null,null,null,null,null,null,null,null,null,null,null,null,null,null,null,null,null,null,null,null,null,null,null,null,null,null,null,null,"氏名",null,null,null,null,{"$f":"data4!$AG$2","v":0},null,null,null,null,null,null,null,null,null,null,null,null,null,null,null,null,null,null,null,null,null,null,"氏名",null,null,null,null,{"$f":"data4!$AM$2","v":0}]
[null,null,null,null,"個人番号",null,null,null,null,{"$f":"DBCS(data4!$AW$2)","v":""},null,null,null,null,null,null,{"$f":"DBCS(data4!$BG$2)","v":""},null,null,null,null,null,{"$f":"DBCS(data4!$BQ$2)","v":""},null,null,null,null,null,null,null,null,null,"個人番号",null,null,null,null,{"$f":"DBCS(data4!$BC$2)","v":""},null,null,null,null,null,null,{"$f":"DBCS(data4!$BM$2)","v":""},null,null,null,null,null,{"$f":"DBCS(data4!$BW$2)","v":""},null,null,null,null,null,null,{"$f":"IF(data4!$BA$2=0,\"\",\"（1）\")","v":""},null,null,null,null,null,null,null,null,null,null,null,null,"個人番号",null,null,null,null,{"$f":"DBCS(data4!$AW$2)","v":""},null,null,null,null,null,null,{"$f":"DBCS(data4!$BG$2)","v":""},null,null,null,null,null,{"$f":"DBCS(data4!$BQ$2)","v":""},null,null,null,null,null,null,null,null,null,"個人番号",null,null,null,null,{"$f":"DBCS(data4!$BC$2)","v":""},null,null,null,null,null,null,{"$f":"DBCS(data4!$BM$2)","v":""},null,null,null,null,null,{"$f":"DBCS(data4!$BW$2)","v":""},null,null,null,null,null,null,{"$f":"IF(data4!$BA$2=0,\"\",\"（1）\")","v":""}]
[null,null,null,2,"（フリガナ）",null,null,null,null,{"$f":"data4!$X$2","v":0},null,null,null,null,null,null,null,null,null,null,null,null,null,null,"区分",null,{"$f":"data4!$CL$2","v":0},null,null,null,null,2,"（フリガナ）",null,null,null,null,{"$f":"data4!$AD$2","v":0},null,null,null,null,null,null,null,null,null,null,null,null,null,null,"区分",null,{"$f":"data4!$CR$2","v":0},null,null,null,{"$f":"IF(data4!$BA$2=\"\",\"\",data4!$BA$2)","v":""},null,{"$f":"IF(data4!$BK$2=\"\",\"\",data4!$BK$2)","v":""},null,{"$f":"IF(data4!$BU$2=\"\",\"\",data4!$BU$2)","v":""},null,null,null,null,null,null,2,"（フリガナ）",null,null,null,null,{"$f":"data4!$X$2","v":0},null,null,null,null,null,null,null,null,null,null,null,null,null,null,"区分",null,{"$f":"data4!$CL$2","v":0},null,null,null,null,2,"（フリガナ）",null,null,null,null,{"$f":"data4!$AD$2","v":0},null,null,null,null,null,null,null,null,null,null,null,null,null,null,"区分",null,{"$f":"data4!$CR$2","v":0},null,null,null,{"$f":"IF(data4!$BA$2=\"\",\"\",data4!$BA$2)","v":""},null,{"$f":"IF(data4!$BK$2=\"\",\"\",data4!$BK$2)","v":""},null,{"$f":"IF(data4!$BU$2=\"\",\"\",data4!$BU$2)","v":""}]
[null,null,null,null,"氏名",null,null,null,null,{"$f":"data4!$AH$2","v":0},null,null,null,null,null,null,null,null,null,null,null,null,null,null,null,null,null,null,null,null,null,null,"氏名",null,null,null,null,{"$f":"data4!$AN$2","v":0},null,null,null,null,null,null,null,null,null,null,null,null,null,null,null,null,null,null,null,{"$f":"IF(data4!$BB$2=0,\"\",\"（2）\")","v":""},null,null,null,null,null,null,null,null,null,null,null,null,"氏名",null,null,null,null,{"$f":"data4!$AH$2","v":0},null,null,null,null,null,null,null,null,null,null,null,null,null,null,null,null,null,null,null,null,null,null,"氏名",null,null,null,null,{"$f":"data4!$AN$2","v":0},null,null,null,null,null,null,null,null,null,null,null,null,null,null,null,null,null,null,null,{"$f":"IF(data4!$BB$2=0,\"\",\"（2）\")","v":""}]
[null,null,null,null,"個人番号",null,null,null,null,{"$f":"DBCS(data4!$AX$2)","v":""},null,null,null,null,null,null,{"$f":"DBCS(data4!$BH$2)","v":""},null,null,null,null,null,{"$f":"DBCS(data4!$BR$2)","v":""},null,null,null,null,null,null,null,null,null,"個人番号",null,null,null,null,{"$f":"DBCS(data4!$BD$2)","v":""},null,null,null,null,null,null,{"$f":"DBCS(data4!$BN$2)","v":""},null,null,null,null,null,{"$f":"DBCS(data4!$BX$2)","v":""},null,null,null,null,null,null,null,{"$f":"IF(data4!$BB$2=\"\",\"\",data4!$BB$2)","v":""},null,{"$f":"IF(data4!$BL$2=\"\",\"\",data4!$BL$2)","v":""},null,{"$f":"IF(data4!$BV$2=\"\",\"\",data4!$BV$2)","v":""},null,null,null,null,null,null,null,"個人番号",null,null,null,null,{"$f":"DBCS(data4!$AX$2)","v":""},null,null,null,null,null,null,{"$f":"DBCS(data4!$BH$2)","v":""},null,null,null,null,null,{"$f":"DBCS(data4!$BR$2)","v":""},null,null,null,null,null,null,null,null,null,"個人番号",null,null,null,null,{"$f":"DBCS(data4!$BD$2)","v":""},null,null,null,null,null,null,{"$f":"DBCS(data4!$BN$2)","v":""},null,null,null,null,null,{"$f":"DBCS(data4!$BX$2)","v":""},null,null,null,null,null,null,null,{"$f":"IF(data4!$BB$2=\"\",\"\",data4!$BB$2)","v":""},null,{"$f":"IF(data4!$BL$2=\"\",\"\",data4!$BL$2)","v":""},null,{"$f":"IF(data4!$BV$2=\"\",\"\",data4!$BV$2)","v":""}]
[null,null,null,3,"（フリガナ）",null,null,null,null,{"$f":"data4!$Y$2","v":0},null,null,null,null,null,null,null,null,null,null,null,null,null,null,"区分",null,{"$f":"data4!$CM$2","v":0},null,null,null,null,3,"（フリガナ）",null,null,null,null,{"$f":"data4!$AE$2","v":0},null,null,null,null,null,null,null,null,null,null,null,null,null,null,"区分",null,{"$f":"data4!$CS$2","v":0},null,null,null,null,null,null,null,null,null,null,null,null,null,null,3,"（フリガナ）",null,null,null,null,{"$f":"data4!$Y$2","v":0},null,null,null,null,null,null,null,null,null,null,null,null,null,null,"区分",null,{"$f":"data4!$CM$2","v":0},null,null,null,null,3,"（フリガナ）",null,null,null,null,{"$f":"data4!$AE$2","v":0},null,null,null,null,null,null,null,null,null,null,null,null,null,null,"区分",null,{"$f":"data4!$CS$2","v":0}]
[null,null,null,null,"氏名",null,null,null,null,{"$f":"data4!$AI$2","v":0},null,null,null,null,null,null,null,null,null,null,null,null,null,null,null,null,null,null,null,null,null,null,"氏名",null,null,null,null,{"$f":"data4!$AO$2","v":0},null,null,null,null,null,null,null,null,null,null,null,null,null,null,null,null,null,null,null,"５人目以降の１６歳未満の扶養親族等の個人番号",null,null,null,null,null,null,null,null,null,null,null,null,"氏名",null,null,null,null,{"$f":"data4!$AI$2","v":0},null,null,null,null,null,null,null,null,null,null,null,null,null,null,null,null,null,null,null,null,null,null,"氏名",null,null,null,null,{"$f":"data4!$AO$2","v":0},null,null,null,null,null,null,null,null,null,null,null,null,null,null,null,null,null,null,null,"５人目以降の１６歳未満の扶養親族等の個人番号"]
[null,null,null,null,"個人番号",null,null,null,null,{"$f":"DBCS(data4!$AY$2)","v":""},null,null,null,null,null,null,{"$f":"DBCS(data4!$BI$2)","v":""},null,null,null,null,null,{"$f":"DBCS(data4!$BS$2)","v":""},null,null,null,null,null,null,null,null,null,"個人番号",null,null,null,null,{"$f":"DBCS(data4!$BE$2)","v":""},null,null,null,null,null,null,{"$f":"DBCS(data4!$BO$2)","v":""},null,null,null,null,null,{"$f":"DBCS(data4!$BY$2)","v":""},null,null,null,null,null,null,null,null,null,null,null,null,null,null,null,null,null,null,null,"個人番号",null,null,null,null,{"$f":"DBCS(data4!$AY$2)","v":""},null,null,null,null,null,null,{"$f":"DBCS(data4!$BI$2)","v":""},null,null,null,null,null,{"$f":"DBCS(data4!$BS$2)","v":""},null,null,null,null,null,null,null,null,null,"個人番号",null,null,null,null,{"$f":"DBCS(data4!$BE$2)","v":""},null,null,null,null,null,null,{"$f":"DBCS(data4!$BO$2)","v":""},null,null,null,null,null,{"$f":"DBCS(data4!$BY$2)","v":""}]
[null,null,null,4,"（フリガナ）",null,null,null,null,{"$f":"data4!$Z$2","v":0},null,null,null,null,null,null,null,null,null,null,null,null,null,null,"区分",null,{"$f":"data4!$CN$2","v":0},null,null,null,null,4,"（フリガナ）",null,null,null,null,{"$f":"data4!$AF$2","v":0},null,null,null,null,null,null,null,null,null,null,null,null,null,null,"区分",null,{"$f":"data4!$CT$2","v":0},null,null,null,null,null,null,null,null,null,null,null,null,null,null,4,"（フリガナ）",null,null,null,null,{"$f":"data4!$Z$2","v":0},null,null,null,null,null,null,null,null,null,null,null,null,null,null,"区分",null,{"$f":"data4!$CN$2","v":0},null,null,null,null,4,"（フリガナ）",null,null,null,null,{"$f":"data4!$AF$2","v":0},null,null,null,null,null,null,null,null,null,null,null,null,null,null,"区分",null,{"$f":"data4!$CT$2","v":0}]
[null,null,null,null,"氏名",null,null,null,null,{"$f":"data4!$AJ$2","v":0},null,null,null,null,null,null,null,null,null,null,null,null,null,null,null,null,null,null,null,null,null,null,"氏名",null,null,null,null,{"$f":"data4!$AP$2","v":0},null,null,null,null,null,null,null,null,null,null,null,null,null,null,null,null,null,null,null,null,null,null,null,null,null,null,null,null,null,null,null,null,"氏名",null,null,null,null,{"$f":"data4!$AJ$2","v":0},null,null,null,null,null,null,null,null,null,null,null,null,null,null,null,null,null,null,null,null,null,null,"氏名",null,null,null,null,{"$f":"data4!$AP$2","v":0}]
[null,null,null,null,"個人番号",null,null,null,null,{"$f":"DBCS(data4!$AZ$2)","v":""},null,null,null,null,null,null,{"$f":"DBCS(data4!$BJ$2)","v":""},null,null,null,null,null,{"$f":"DBCS(data4!$BT$2)","v":""},null,null,null,null,null,null,null,null,null,"個人番号",null,null,null,null,{"$f":"DBCS(data4!$BF$2)","v":""},null,null,null,null,null,null,{"$f":"DBCS(data4!$BP$2)","v":""},null,null,null,null,null,{"$f":"DBCS(data4!$BZ$2)","v":""},null,null,null,null,null,null,null,null,null,null,null,null,null,null,null,null,null,null,null,"個人番号",null,null,null,null,{"$f":"DBCS(data4!$AZ$2)","v":""},null,null,null,null,null,null,{"$f":"DBCS(data4!$BJ$2)","v":""},null,null,null,null,null,{"$f":"DBCS(data4!$BT$2)","v":""},null,null,null,null,null,null,null,null,null,"個人番号",null,null,null,null,{"$f":"DBCS(data4!$BF$2)","v":""},null,null,null,null,null,null,{"$f":"DBCS(data4!$BP$2)","v":""},null,null,null,null,null,{"$f":"DBCS(data4!$BZ$2)","v":""}]
[null,"未成年者",null,null,"外国人",null,"死亡退職",null,"災害者",null,"乙欄",null,null,"本人が障害者",null,null,null,null,null,"寡　婦",null,null,null,null,null,"寡夫",null,"勤労学生",null,"中途・就退職",null,null,null,null,null,null,null,null,null,null,null,null,null,null,"受 給 者 生 年 月 日",null,null,null,null,null,null,null,null,null,null,null,null,null,null,null,null,null,null,null,null,null,null,"未成年者",null,null,"外国人",null,"死亡退職",null,"災害者",null,"乙欄",null,null,"本人が障害者",null,null,null,null,null,"寡　婦",null,null,null,null,null,"寡夫",null,"勤労学生",null,"中途・就退職",null,null,null,null,null,null,null,null,null,null,null,null,null,null,"受 給 者 生 年 月 日"]
[null,null,null,null,null,null,null,null,null,null,null,null,null,"特別",null,null,"その他",null,null,"一般",null,null,"特別",null,null,null,null,null,null,null,null,null,null,null,null,null,null,null,null,null,null,null,null,null,null,null,null,null,null,null,null,null,null,null,null,null,null,null,null,null,null,null,null,null,null,null,null,null,null,null,null,null,null,null,null,null,null,null,null,"特別",null,null,"その他",null,null,"一般",null,null,"特別"]
[null,null,null,null,null,null,null,null,null,null,null,null,null,null,null,null,null,null,null,null,null,null,null,null,null,null,null,null,null,"就職",null,null,"退職",null,null,"年",null,null,"月",null,null,"日",null,null,"明",null,null,"大",null,null,"昭",null,null,"平",null,null,"年",null,null,"月",null,null,"日",null,null,null,null,null,null,null,null,null,null,null,null,null,null,null,null,null,null,null,null,null,null,null,null,null,null,null,null,null,null,null,null,"就職",null,null,"退職",null,null,"年",null,null,"月",null,null,"日",null,null,"明",null,null,"大",null,null,"昭",null,null,"平",null,null,"年",null,null,"月",null,null,"日"]
[]
["（市区町村提出用）",{"$f":"data4!$B$2","v":0},null,null,{"$f":"data4!$C$2","v":0},null,{"$f":"data4!$D$2","v":0},null,{"$f":"data4!$E$2","v":0},null,{"$f":"data4!$F$2","v":0},null,null,{"$f":"data4!$G$2","v":0},null,null,{"$f":"data4!$H$2","v":0},null,null,{"$f":"data4!$I$2","v":0},null,null,{"$f":"data4!$J$2","v":0},null,null,{"$f":"data4!$K$2","v":0},null,{"$f":"data4!$L$2","v":0},null,{"$f":"data2!$AD$2","v":0},null,null,null,null,null,{"$f":"data2!$S$2","v":0},null,null,{"$f":"data2!$T$2","v":0},null,null,{"$f":"data2!$U$2","v":0},null,null,{"$f":"data2!$Y$2","v":0},null,null,{"$f":"data2!$Z$2","v":0},null,null,{"$f":"data2!$AA$2","v":0},null,null,{"$f":"data2!$AB$2","v":0},null,null,{"$f":"data2!$O$2","v":0},null,null,{"$f":"data2!$P$2","v":0},null,null,{"$f":"data2!$Q$2","v":0},null,null,null,"（市区町村提出用）",{"$f":"data4!$B$2","v":0},null,null,{"$f":"data4!$C$2","v":0},null,{"$f":"data4!$D$2","v":0},null,{"$f":"data4!$E$2","v":0},null,{"$f":"data4!$F$2","v":0},null,null,{"$f":"data4!$G$2","v":0},null,null,{"$f":"data4!$H$2","v":0},null,null,{"$f":"data4!$I$2","v":0},null,null,{"$f":"data4!$J$2","v":0},null,null,{"$f":"data4!$K$2","v":0},null,{"$f":"data4!$L$2","v":0},null,{"$f":"data2!$AD$2","v":0},null,null,null,null,null,{"$f":"data2!$S$2","v":0},null,null,{"$f":"data2!$T$2","v":0},null,null,{"$f":"data2!$U$2","v":0},null,null,{"$f":"data2!$Y$2","v":0},null,null,{"$f":"data2!$Z$2","v":0},null,null,{"$f":"data2!$AA$2","v":0},null,null,{"$f":"data2!$AB$2","v":0},null,null,{"$f":"data2!$O$2","v":0},null,null,{"$f":"data2!$P$2","v":0},null,null,{"$f":"data2!$Q$2","v":0}]
[null,null,null,null,null,null,null,null,null,null,null,null,null,null,null,null,null,null,null,null,null,null,null,null,null,null,null,null,null,null,null,null,{"$f":"data2!$AE$2","v":0},null,null,{"$f":"data2!$V$2","v":0},null,null,{"$f":"data2!$W$2","v":0},null,null,{"$f":"data2!$X$2","v":0},null,null,null,null,null,null,null,null,null,null,null,null,null,null,null,null,null,null,null,null,null,null,null,null,null,null,null,null,null,null,null,null,null,null,null,null,null,null,null,null,null,null,null,null,null,null,null,null,null,null,null,null,null,null,null,null,{"$f":"data2!$AE$2","v":0},null,null,{"$f":"data2!$V$2","v":0},null,null,{"$f":"data2!$W$2","v":0},null,null,{"$f":"data2!$X$2","v":0}]
[null,"支 払 者",null,"個人番号又は　　法人番号",null,null,null,null,null,null,{"$f":"DBCS(data1!$D$2)","v":""},null,{"$f":"DBCS(data1!$E$2)","v":""},null,null,null,null,null,null,null,{"$f":"DBCS(data1!$F$2)","v":""},null,null,null,null,null,null,null,{"$f":"DBCS(data1!$G$2)","v":""},null,null,null,null,null,null,null,"（右詰で記載してください。）",null,null,null,null,null,null,null,null,null,null,null,null,null,null,null,null,null,null,null,null,null,null,null,null,null,null,null,null,null,null,"支 払 者",null,"個人番号又は　　法人番号",null,null,null,null,null,null,{"$f":"DBCS(data1!$D$2)","v":""},null,{"$f":"DBCS(data1!$E$2)","v":""},null,null,null,null,null,null,null,{"$f":"DBCS(data1!$F$2)","v":""},null,null,null,null,null,null,null,{"$f":"DBCS(data1!$G$2)","v":""},null,null,null,null,null,null,null,"（右詰で記載してください。）"]
[null,null,null,"住所（居所）　　又は所在地",null,null,null,null,null,null,{"$f":"data1!$A$2","v":""},null,null,null,null,null,null,null,null,null,null,null,null,null,null,null,null,null,null,null,null,null,null,null,null,null,null,null,null,null,null,null,null,null,null,null,null,null,null,null,null,null,null,null,null,null,null,null,null,null,null,null,null,null,null,null,null,null,null,"住所（居所）　　又は所在地",null,null,null,null,null,null,{"$f":"data1!$A$2","v":""}]
[null,null,null,"氏名又は名称",null,null,null,null,null,null,{"$f":"data1!$B$2","v":""},null,null,null,null,null,null,null,null,null,null,null,null,null,null,null,null,null,null,null,null,null,null,null,null,null,null,null,null,null,null,null,null,null,null,null,null,"（電話）",null,null,null,{"$f":"data1!$C$2","v":""},null,null,null,null,null,null,null,null,null,null,null,null,null,null,null,null,null,"氏名又は名称",null,null,null,null,null,null,{"$f":"data1!$B$2","v":""},null,null,null,null,null,null,null,null,null,null,null,null,null,null,null,null,null,null,null,null,null,null,null,null,null,null,null,null,null,null,null,null,null,null,null,null,"（電話）",null,null,null,{"$f":"data1!$C$2","v":""}]

{"sheet":"給与所得","index":9,"n_rows":29,"n_cols":12,"rows_kept":29,"cut":false,"hidden":true,"merged":[[23,2,24,4],[23,5,23,10],[23,11,24,11],[24,5,24,10],[28,2,28,6],[28,7,28,11],[25,2,26,4],[25,5,25,10],[25,11,26,11],[26,5,26,10],[19,11,20,11],[20,5,20,6],[20,8,20,10],[21,2,22,4],[21,5,21,10],[21,11,22,11],[22,5,22,10],[15,11,16,11],[16,5,16,6],[16,8,16,10],[17,2,18,4],[17,5,17,6],[17,8,17,10],[17,11,18,11],[18,5,18,6],[18,8,18,10],[14,2,14,4],[14,5,14,6],[14,7,14,10],[15,2,16,4],[15,5,15,6],[15,7,20,7],[15,8,15,10],[19,2,20,4],[19,5,19,6],[19,8,19,10],[12,2,12,4],[12,5,12,6],[12,7,12,10],[13,2,13,4],[13,5,13,6],[13,7,13,10],[10,2,10,4],[10,5,10,6],[10,7,10,10],[11,2,11,4],[11,5,11,6],[11,7,11,10],[9,7,9,10],[3,2,3,4],[3,5,3,6],[4,2,4,4],[4,5,4,6],[5,2,5,4],[5,5,5,6],[8,2,8,4],[8,5,8,11],[1,2,1,4],[1,5,1,6],[2,2,2,4],[2,5,2,6],[9,2,9,4],[9,5,9,6]]}
[]
[null,null,"支払者の氏名・名称",null,null,"収入金額（税込）"]
[null,null,null,null,null,{"$f":"data5!D2","v":0}]
[]
[]
[null,null,"合計",null,null,{"$f":"SUM(F3:G5)","v":0}]
[null,null,null,null,null,null,"[A]"]
[]
[null,null,"[A]の金額",null,null,"給与所得の金額"]
[null,null,"～650,999円",null,null,0,null,0,null,null,null,"円"]
[null,null,"651,000円～1,618,999円",null,null,"[A]－650,000円",null,{"$f":"IF(AND(651000<=F6,F6<=1618999),F6-650000,0)","v":0},null,null,null,"円"]
[null,null,"1,619,000円～1,619,999円",null,null,"969,000円",null,{"$f":"IF(AND(1619000<=F6,F6<=1619999),969000,0)","v":0},null,null,null,"円"]
[null,null,"1,620,000円～1,621,999円",null,null,"970,000円",null,{"$f":"IF(AND(1620000<=F6,F6<=1621999),970000,0)","v":0},null,null,null,"円"]
[null,null,"1,622,000円～1623,999円",null,null,"972,000円",null,{"$f":"IF(AND(1622000<=F6,F6<=1623999),972000,0)","v":0},null,null,null,"円"]
[null,null,"1,624,000円～1,627,999円",null,null,"974,000円",null,{"$f":"IF(AND(1624000<=F6,F6<=1627999),974000,0)","v":0},null,null,null,"円"]
[null,null,"1,628,000円～1,799,999円",null,null,"[A]÷4（千円未満切捨）",null,"[B]","[B]×2.4",null,null,"円"]
[null,null,null,null,null,{"$f":"IF(AND(1628000<=F6,F6<=1799999),ROUNDDOWN(F6/4,-3),0)","v":0},null,null,{"$f":"F17*2.4","v":0}]
[null,null,"1,800,000円～3,599,999円",null,null,"[A]÷4（千円未満切捨）",null,null,"[B]×2.8－180,000円",null,null,"円"]
[null,null,null,null,null,{"$f":"IF(AND(1800000<=F6,F6<=3599999),ROUNDDOWN(F6/4,-3),0)","v":0},null,null,{"$f":"MAX(F19*2.8-180000,0)","v":0}]
[null,null,"3,600,000～6,599,999円",null,null,"[A]÷4（千円未満切捨）",null,null,"[B]×3.2－540,000円",null,null,"円"]
[null,null,null,null,null,{"$f":"IF(AND(3600000<=F6,F6<=6599999),ROUNDDOWN(F6/4,-3),0)","v":0},null,null,{"$f":"MAX(F21*3.2-540000,0)","v":0}]
[null,null,"6,600,000円～9,999,999円",null,null,"[A]×0.9－1,200,000円",null,null,null,null,null,"円"]
[null,null,null,null,null,{"$f":"ROUNDDOWN(IF(AND(6600000<=F6,F6<=9999999),F6*0.9-1200000,0),0)","v":0}]
[null,null,"10,000,000円～11,999,999円",null,null,"[A]－2,200,000円",null,null,null,null,null,"円"]
[null,null,null,null,null,{"$f":"ROUNDDOWN(IF(AND(10000000<=F6,F6<=11999999),F6-2200000,0),0)","v":0}]
[null,null,"12,000,000～",null,null,"[A]－2,200,000円",null,null,null,null,null,"円"]
[null,null,null,null,null,{"$f":"ROUNDDOWN(IF(12000000<=F6,F6-2200000,0),0)","v":0}]
[]
[null,null,"給与所得金額",null,null,null,null,{"$f":"SUM(H10:K15,I17,I19,I21,F23,F25,F27)","v":0}]

{"sheet":"税額","index":10,"n_rows":23,"n_cols":10,"rows_kept":23,"cut":false,"hidden":true,"merged":[[17,3,18,5],[17,6,17,8],[18,6,18,8],[22,3,22,5],[22,6,22,8],[19,3,20,5],[19,6,19,8],[20,6,20,8],[6,9,18,9],[7,3,8,5],[7,6,7,8],[8,6,8,8],[9,3,10,5],[9,6,9,8],[10,6,10,8],[11,3,12,5],[11,6,11,8],[12,6,12,8],[13,3,14,5],[13,6,13,8],[14,6,14,8],[15,3,16,5],[15,6,15,8],[16,6,16,8],[3,3,3,5],[3,6,3,8],[5,3,5,5],[5,6,5,8],[6,3,6,5],[6,6,6,8]]}
["税額の計算"]
[null,null,null,null,"平成27年度から用"]
[]
[null,null,null,"課税される所得金額",null,null,{"$f":"data5!R2","v":0},null,null,"[C]"]
[]
[null,null,null,"[C]の金額",null,null,"課税される所得金額に対する税額"]
[null,null,null,"0円",null,null,0,null,null,"[D]"]
[null,null,null,"1,000円～1,949,000円",null,null,"[C]×0.05"]
[null,null,null,null,null,null,{"$f":"IF(AND(1000<=$G$4,$G$4<=1949000),$G$4*0.05,0)","v":0}]
[null,null,null,"1,950,000円～3,299,000円",null,null,"[C]×0.1-97,500円"]
[null,null,null,null,null,null,{"$f":"IF(AND(1950000<=$G$4,$G$4<=3299000),$G$4*0.1-97500,0)","v":0}]
[null,null,null,"3,300,000円～6,949,000円",null,null,"[C]×0.2-427,500円"]
[null,null,null,null,null,null,{"$f":"IF(AND(3300000<=$G$4,$G$4<=6949000),$G$4*0.2-427500,0)","v":0}]
[null,null,null,"6,950,000円～8,999,000円",null,null,"[C]×0.23-636,000円"]
[null,null,null,null,null,null,{"$f":"IF(AND(6950000<=$G$4,$G$4<=8999000),$G$4*0.23-636000,0)","v":0}]
[null,null,null,"9,000,000円～17,999,000円",null,null,"[C]×0.33-1,536,000円"]
[null,null,null,null,null,null,{"$f":"IF(AND(9000000<=$G$4,$G$4<=17999000),$G$4*0.33-1536000,0)","v":0}]
[null,null,null,"18,000,000円～39,999,000円",null,null,"[C]×0.4-2,796,000円"]
[null,null,null,null,null,null,{"$f":"IF(AND(18000000<=$G$4,$G$4<=39999000),$G$4*0.4-2796000,0)","v":0}]
[null,null,null,"40,000,000円～",null,null,"[C]×0.45-4,796,000円"]
[null,null,null,null,null,null,{"$f":"IF(40000000<=$G$4,$G$4*0.45-4796000,0)","v":0}]
[]
[null,null,null,"課税される所得金額に対する税額",null,null,{"$f":"G7+G9+G11+G13+G15+G17+G19+G21","v":0}]

{"sheet":"保険料控除","index":11,"n_rows":18,"n_cols":11,"rows_kept":18,"cut":false,"hidden":true,"merged":[]}
["一般"]
[null,"新",{"$f":"data4!CY2","v":0},{"$f":"IF(C2<=20000,C2,0)","v":0},{"$f":"IF(AND(C2>=20001,C2<=40000),C2/2+10000,0)","v":0},{"$f":"IF(AND(C2>=40001,C2<=80000),C2/4+20000,0)","v":0},{"$f":"IF(C2>=80001,40000,0)","v":0},{"$f":"SUM(D2:G2)","v":0},null,{"$f":"MIN(H2+H3,40000)","v":0},{"$f":"ROUNDUP(MAX(J2,H3),0)","v":0}]
[null,"旧",{"$f":"data4!CZ2","v":0},{"$f":"IF(C3<=25000,C3,0)","v":0},{"$f":"IF(AND(C3>=25001,C3<=50000),C3/2+12500,0)","v":0},{"$f":"IF(AND(C3>=50001,C3<=100000),C3/4+25000,0)","v":0},{"$f":"IF(C3>=100001,50000,0)","v":0},{"$f":"SUM(D3:G3)","v":0}]
[]
["介護",null,{"$f":"data4!DA2","v":0},{"$f":"IF(C5<=20000,C5,0)","v":0},{"$f":"IF(AND(C5>=20001,C5<=40000),C5/2+10000,0)","v":0},{"$f":"IF(AND(C5>=40001,C5<=80000),C5/4+20000,0)","v":0},{"$f":"IF(C5>=80001,40000,0)","v":0},{"$f":"SUM(D5:G5)","v":0},null,null,{"$f":"ROUNDUP(H5,0)","v":0}]
[]
[]
[]
["個人年金"]
[null,"新",{"$f":"data4!DB2","v":0},{"$f":"IF(C10<=20000,C10,0)","v":0},{"$f":"IF(AND(C10>=20001,C10<=40000),C10/2+10000,0)","v":0},{"$f":"IF(AND(C10>=40001,C10<=80000),C10/4+20000,0)","v":0},{"$f":"IF(C10>=80001,40000,0)","v":0},{"$f":"SUM(D10:G10)","v":0},null,{"$f":"MIN(H10+H11,40000)","v":0},{"$f":"ROUNDUP(MAX(J10,H11),0)","v":0}]
[null,"旧",{"$f":"data4!DC2","v":0},{"$f":"IF(C11<=25000,C11,0)","v":0},{"$f":"IF(AND(C11>=25001,C11<=50000),C11/2+12500,0)","v":0},{"$f":"IF(AND(C11>=50001,C11<=100000),C11/4+25000,0)","v":0},{"$f":"IF(C11>=100001,50000,0)","v":0},{"$f":"SUM(D11:G11)","v":0}]
[]
[]
[]
[]
["地震",null,{"$f":"data4!DD2","v":0},null,null,null,null,{"$f":"ROUNDUP(MIN(C16,50000),0)","v":0}]
[]
["旧長期",null,{"$f":"data4!DE2","v":0},{"$f":"IF(C18<=10000,C18,0)","v":0},{"$f":"MIN(IF(C18>10000,C18/2+5000,0),15000)","v":0},null,null,{"$f":"ROUNDUP(SUM(D18:E18),0)","v":0}]

{"sheet":"ライセンス2","index":12,"n_rows":7,"n_cols":4,"rows_kept":7,"cut":false,"hidden":true,"merged":[]}
[]
[]
[]
[]
[]
[]
[null,null,null,"基本ライセンス"]

{"sheet":"ライセンス","index":13,"n_rows":37,"n_cols":6,"rows_kept":37,"cut":false,"hidden":false,"merged":[[16,3,17,6],[7,2,7,3],[18,3,18,4],[27,1,28,9]]}
[null,null,"ライセンス/印刷"]
[]
[null,null,"ライセンス"]
[null,null,"ライセンスを未購入の場合、源泉徴収簿及び源泉徴収票に「ＳＡＭＰＬＥ」と表示されます。"]
[null,null,"これを消すためには下の黄色いセルにライセンスキーを入力してください。"]
[]
[]
[null,null,"      ライセンスキー     入力欄",null,null,"半角英数で入力してください。"]
[]
[]
[null,null,"ライセンスキー購入ページ"]
[]
[]
[]
[]
[]
[null,null,null,"https://gensen-excel.stores.jp/items/5a71a41df22a5b4183001802"]
[]
[null,null,null,"価格　1,500円（税込）"]
[]
[]
[]
[]
[]
[]
[]
[]
[null,"ライセンス解説ページ　（クリックで開きます）"]
[]
[]
[null,null,null,"・STORES.jpからのダウンロード販売となります。"]
[null,null,null,"・カード決済とコンビニ決済が使えます。"]
[null,null,null,"・ライセンスキーは「SAMPLE」が消えるだけです。保護解除パスワードではありません。"]
[null,null,null,"・購入前に、ご使用のパソコンでこのファイルが正しく動作し、印刷できることを確認してください。"]
[null,null,null,"・いかなる理由があろうと購入代金の返金はしません。"]
[null,null,null,"・ライセンスキーの譲渡、再配布、公開は禁止です。"]
[null,null,null,"・メールアドレスの登録を間違えた、メールシステムの設定で発注確認メールが受信できないといった場合には、ストアのお問い合わせフォームからご連絡ください。"]

{"sheet":"集計","index":14,"n_rows":37,"n_cols":23,"rows_kept":37,"cut":false,"hidden":false,"merged":[[36,22,37,22],[31,3,32,4],[33,13,33,15],[34,13,34,15],[35,13,35,15],[36,16,37,16]]}
[null,"月別集計","（前職分を含みません。賞与は月の入力がないと集計されません。）",null,null,null,null,null,null,null,null,null,null,"各人別集計"]
[]
[null,"納期特例",null,null,null,null,null,null,null,null,null,null,null,"ＩＤ","氏","名","支給総額","前職分税額","源泉徴収税額","超過額","超過額（前職分）","不足額","年税額"]
[null,"給料","人員","支給総額","源泉徴収税額",null,"賞与","人員","支給総額","源泉徴収税額",null,null,null,{"$f":"従業員情報!J4","v":1},{"$f":"従業員情報!K4","v":""},{"$f":"従業員情報!L4","v":""},{"$f":"SUM(data3!AH11:AX11)","v":0},{"$f":"data3!CV11","v":0},{"$f":"SUM(data3!CJ11:CZ11)","v":0},{"$f":"data4!EE11","v":0},{"$f":"MIN(T4,R4)","v":0},{"$f":"data4!EF11","v":0},{"$f":"S4-T4+V4","v":0}]
[null,"1月～6月",{"$f":"SUM(C13:C18)","v":0},{"$f":"SUM(D13:D18)","v":0},{"$f":"SUM(E13:E18)","v":0},null,"1月～6月",{"$f":"SUM(H13:H18)","v":0},{"$f":"SUM(I13:I18)","v":0},{"$f":"SUM(J13:J18)","v":0},null,null,null,{"$f":"従業員情報!J5","v":2},{"$f":"従業員情報!K5","v":""},{"$f":"従業員情報!L5","v":""},{"$f":"SUM(data3!AH12:AX12)","v":0},{"$f":"data3!CV12","v":0},{"$f":"SUM(data3!CJ12:CZ12)","v":0},{"$f":"data4!EE12","v":0},{"$f":"MIN(T5,R5)","v":0},{"$f":"data4!EF12","v":0},{"$f":"S5-T5+V5","v":0}]
[null,"7月～12月",{"$f":"SUM(C19:C24)","v":0},{"$f":"SUM(D19:D24)","v":0},{"$f":"SUM(E19:E24)","v":0},null,"7月～12月",{"$f":"SUM(H19:H24)","v":0},{"$f":"SUM(I19:I24)","v":0},{"$f":"SUM(J19:J24)","v":0},null,null,null,{"$f":"従業員情報!J6","v":3},{"$f":"従業員情報!K6","v":""},{"$f":"従業員情報!L6","v":""},{"$f":"SUM(data3!AH13:AX13)","v":0},{"$f":"data3!CV13","v":0},{"$f":"SUM(data3!CJ13:CZ13)","v":0},{"$f":"data4!EE13","v":0},0,{"$f":"data4!EF13","v":0},0]
[null,"合計",null,{"$f":"SUM(D5:D6)","v":0},{"$f":"SUM(E5:E6)","v":0},null,"合計",null,{"$f":"SUM(I5:I6)","v":0},{"$f":"SUM(J5:J6)","v":0},null,null,null,{"$f":"従業員情報!J7","v":4},{"$f":"従業員情報!K7","v":""},{"$f":"従業員情報!L7","v":""},{"$f":"SUM(data3!AH14:AX14)","v":0},{"$f":"data3!CV14","v":0},{"$f":"SUM(data3!CJ14:CZ14)","v":0},{"$f":"data4!EE14","v":0},0,{"$f":"data4!EF14","v":0},0]
[null,null,null,null,null,null,null,null,null,null,null,null,null,{"$f":"従業員情報!J8","v":5},{"$f":"従業員情報!K8","v":""},{"$f":"従業員情報!L8","v":""},{"$f":"SUM(data3!AH15:AX15)","v":0},{"$f":"data3!CV15","v":0},{"$f":"SUM(data3!CJ15:CZ15)","v":0},{"$f":"data4!EE15","v":0},0,{"$f":"data4!EF15","v":0},0]
[null,null,null,null,null,null,null,null,null,null,null,null,null,{"$f":"従業員情報!J9","v":6},{"$f":"従業員情報!K9","v":""},{"$f":"従業員情報!L9","v":""},{"$f":"SUM(data3!AH16:AX16)","v":0},{"$f":"data3!CV16","v":0},{"$f":"SUM(data3!CJ16:CZ16)","v":0},{"$f":"data4!EE16","v":0},0,{"$f":"data4!EF16","v":0},0]
[null,null,null,null,null,null,null,null,null,null,null,null,null,{"$f":"従業員情報!J10","v":7},{"$f":"従業員情報!K10","v":""},{"$f":"従業員情報!L10","v":""},{"$f":"SUM(data3!AH17:AX17)","v":0},{"$f":"data3!CV17","v":0},{"$f":"SUM(data3!CJ17:CZ17)","v":0},{"$f":"data4!EE17","v":0},0,{"$f":"data4!EF17","v":0},0]
[null,"月別",null,null,null,null,null,null,null,null,null,null,null,{"$f":"従業員情報!J11","v":8},{"$f":"従業員情報!K11","v":""},{"$f":"従業員情報!L11","v":""},{"$f":"SUM(data3!AH18:AX18)","v":0},{"$f":"data3!CV18","v":0},{"$f":"SUM(data3!CJ18:CZ18)","v":0},{"$f":"data4!EE18","v":0},0,{"$f":"data4!EF18","v":0},0]
[null,"給料","人員","支給総額","源泉徴収税額",null,"賞与","人員","支給総額","源泉徴収税額",null,null,null,{"$f":"従業員情報!J12","v":9},{"$f":"従業員情報!K12","v":""},{"$f":"従業員情報!L12","v":""},{"$f":"SUM(data3!AH19:AX19)","v":0},{"$f":"data3!CV19","v":0},{"$f":"SUM(data3!CJ19:CZ19)","v":0},{"$f":"data4!EE19","v":0},0,{"$f":"data4!EF19","v":0},0]
[null,"1月",{"$f":"data3!AH43","v":0},{"$f":"data3!AH42","v":0},{"$f":"data3!CJ42","v":0},null,"1月",{"$f":"data3!R57","v":0},{"$f":"data3!R44","v":0},{"$f":"data3!R70","v":0},null,null,null,{"$f":"従業員情報!J13","v":10},{"$f":"従業員情報!K13","v":""},{"$f":"従業員情報!L13","v":""},{"$f":"SUM(data3!AH20:AX20)","v":0},{"$f":"data3!CV20","v":0},{"$f":"SUM(data3!CJ20:CZ20)","v":0},{"$f":"data4!EE20","v":0},0,{"$f":"data4!EF20","v":0},0]
[null,"2月",{"$f":"data3!AI43","v":0},{"$f":"data3!AI42","v":0},{"$f":"data3!CK42","v":0},null,"2月",{"$f":"data3!R58","v":0},{"$f":"data3!R45","v":0},{"$f":"data3!R71","v":0},null,null,null,{"$f":"従業員情報!J14","v":11},{"$f":"従業員情報!K14","v":""},{"$f":"従業員情報!L14","v":""},{"$f":"SUM(data3!AH21:AX21)","v":0},{"$f":"data3!CV21","v":0},{"$f":"SUM(data3!CJ21:CZ21)","v":0},{"$f":"data4!EE21","v":0},0,{"$f":"data4!EF21","v":0},0]
[null,"3月",{"$f":"data3!AJ43","v":0},{"$f":"data3!AJ42","v":0},{"$f":"data3!CL42","v":0},null,"3月",{"$f":"data3!R59","v":0},{"$f":"data3!R46","v":0},{"$f":"data3!R72","v":0},null,null,null,{"$f":"従業員情報!J15","v":12},{"$f":"従業員情報!K15","v":""},{"$f":"従業員情報!L15","v":""},{"$f":"SUM(data3!AH22:AX22)","v":0},{"$f":"data3!CV22","v":0},{"$f":"SUM(data3!CJ22:CZ22)","v":0},{"$f":"data4!EE22","v":0},0,{"$f":"data4!EF22","v":0},0]
[null,"4月",{"$f":"data3!AK43","v":0},{"$f":"data3!AK42","v":0},{"$f":"data3!CM42","v":0},null,"4月",{"$f":"data3!R60","v":0},{"$f":"data3!R47","v":0},{"$f":"data3!R73","v":0},null,null,null,{"$f":"従業員情報!J16","v":13},{"$f":"従業員情報!K16","v":""},{"$f":"従業員情報!L16","v":""},{"$f":"SUM(data3!AH23:AX23)","v":0},{"$f":"data3!CV23","v":0},{"$f":"SUM(data3!CJ23:CZ23)","v":0},{"$f":"data4!EE23","v":0},0,{"$f":"data4!EF23","v":0},0]
[null,"5月",{"$f":"data3!AL43","v":0},{"$f":"data3!AL42","v":0},{"$f":"data3!CN42","v":0},null,"5月",{"$f":"data3!R61","v":0},{"$f":"data3!R48","v":0},{"$f":"data3!R74","v":0},null,null,null,{"$f":"従業員情報!J17","v":14},{"$f":"従業員情報!K17","v":""},{"$f":"従業員情報!L17","v":""},{"$f":"SUM(data3!AH24:AX24)","v":0},{"$f":"data3!CV24","v":0},{"$f":"SUM(data3!CJ24:CZ24)","v":0},{"$f":"data4!EE24","v":0},0,{"$f":"data4!EF24","v":0},0]
[null,"6月",{"$f":"data3!AM43","v":0},{"$f":"data3!AM42","v":0},{"$f":"data3!CO42","v":0},null,"6月",{"$f":"data3!R62","v":0},{"$f":"data3!R49","v":0},{"$f":"data3!R75","v":0},null,null,null,{"$f":"従業員情報!J18","v":15},{"$f":"従業員情報!K18","v":""},{"$f":"従業員情報!L18","v":""},{"$f":"SUM(data3!AH25:AX25)","v":0},{"$f":"data3!CV25","v":0},{"$f":"SUM(data3!CJ25:CZ25)","v":0},{"$f":"data4!EE25","v":0},0,{"$f":"data4!EF25","v":0},0]
[null,"7月",{"$f":"data3!AN43","v":0},{"$f":"data3!AN42","v":0},{"$f":"data3!CP42","v":0},null,"7月",{"$f":"data3!R63","v":0},{"$f":"data3!R50","v":0},{"$f":"data3!R76","v":0},null,null,null,{"$f":"従業員情報!J19","v":16},{"$f":"従業員情報!K19","v":""},{"$f":"従業員情報!L19","v":""},{"$f":"SUM(data3!AH26:AX26)","v":0},{"$f":"data3!CV26","v":0},{"$f":"SUM(data3!CJ26:CZ26)","v":0},{"$f":"data4!EE26","v":0},0,{"$f":"data4!EF26","v":0},0]
[null,"8月",{"$f":"data3!AO43","v":0},{"$f":"data3!AO42","v":0},{"$f":"data3!CQ42","v":0},null,"8月",{"$f":"data3!R64","v":0},{"$f":"data3!R51","v":0},{"$f":"data3!R77","v":0},null,null,null,{"$f":"従業員情報!J20","v":17},{"$f":"従業員情報!K20","v":""},{"$f":"従業員情報!L20","v":""},{"$f":"SUM(data3!AH27:AX27)","v":0},{"$f":"data3!CV27","v":0},{"$f":"SUM(data3!CJ27:CZ27)","v":0},{"$f":"data4!EE27","v":0},0,{"$f":"data4!EF27","v":0},0]
[null,"9月",{"$f":"data3!AP43","v":0},{"$f":"data3!AP42","v":0},{"$f":"data3!CR42","v":0},null,"9月",{"$f":"data3!R65","v":0},{"$f":"data3!R52","v":0},{"$f":"data3!R78","v":0},null,null,null,{"$f":"従業員情報!J21","v":18},{"$f":"従業員情報!K21","v":""},{"$f":"従業員情報!L21","v":""},{"$f":"SUM(data3!AH28:AX28)","v":0},{"$f":"data3!CV28","v":0},{"$f":"SUM(data3!CJ28:CZ28)","v":0},{"$f":"data4!EE28","v":0},0,{"$f":"data4!EF28","v":0},0]
[null,"10月",{"$f":"data3!AQ43","v":0},{"$f":"data3!AQ42","v":0},{"$f":"data3!CS42","v":0},null,"10月",{"$f":"data3!R66","v":0},{"$f":"data3!R53","v":0},{"$f":"data3!R79","v":0},null,null,null,{"$f":"従業員情報!J22","v":19},{"$f":"従業員情報!K22","v":""},{"$f":"従業員情報!L22","v":""},{"$f":"SUM(data3!AH29:AX29)","v":0},{"$f":"data3!CV29","v":0},{"$f":"SUM(data3!CJ29:CZ29)","v":0},{"$f":"data4!EE29","v":0},0,{"$f":"data4!EF29","v":0},0]
[null,"11月",{"$f":"data3!AR43","v":0},{"$f":"data3!AR42","v":0},{"$f":"data3!CT42","v":0},null,"11月",{"$f":"data3!R67","v":0},{"$f":"data3!R54","v":0},{"$f":"data3!R80","v":0},null,null,null,{"$f":"従業員情報!J23","v":20},{"$f":"従業員情報!K23","v":""},{"$f":"従業員情報!L23","v":""},{"$f":"SUM(data3!AH30:AX30)","v":0},{"$f":"data3!CV30","v":0},{"$f":"SUM(data3!CJ30:CZ30)","v":0},{"$f":"data4!EE30","v":0},0,{"$f":"data4!EF30","v":0},0]
[null,"12月",{"$f":"data3!AS43","v":0},{"$f":"data3!AS42","v":0},{"$f":"data3!CU42","v":0},null,"12月",{"$f":"data3!R68","v":0},{"$f":"data3!R55","v":0},{"$f":"data3!R81","v":0},null,null,null,{"$f":"従業員情報!J24","v":21},{"$f":"従業員情報!K24","v":""},{"$f":"従業員情報!L24","v":""},{"$f":"SUM(data3!AH31:AX31)","v":0},{"$f":"data3!CV31","v":0},{"$f":"SUM(data3!CJ31:CZ31)","v":0},{"$f":"data4!EE31","v":0},0,{"$f":"data4!EF31","v":0},0]
[null,"合計",null,{"$f":"SUM(D13:D24)","v":0},{"$f":"SUM(E13:E24)","v":0},null,"合計",null,{"$f":"SUM(I13:I24)","v":0},{"$f":"SUM(J13:J24)","v":0},null,null,null,{"$f":"従業員情報!J25","v":22},{"$f":"従業員情報!K25","v":""},{"$f":"従業員情報!L25","v":""},{"$f":"SUM(data3!AH32:AX32)","v":0},{"$f":"data3!CV32","v":0},{"$f":"SUM(data3!CJ32:CZ32)","v":0},{"$f":"data4!EE32","v":0},0,{"$f":"data4!EF32","v":0},0]
[null,null,null,null,null,null,null,null,null,null,null,null,null,{"$f":"従業員情報!J26","v":23},{"$f":"従業員情報!K26","v":""},{"$f":"従業員情報!L26","v":""},{"$f":"SUM(data3!AH33:AX33)","v":0},{"$f":"data3!CV33","v":0},{"$f":"SUM(data3!CJ33:CZ33)","v":0},{"$f":"data4!EE33","v":0},0,{"$f":"data4!EF33","v":0},0]
[null,null,null,null,null,null,null,null,null,null,null,null,null,{"$f":"従業員情報!J27","v":24},{"$f":"従業員情報!K27","v":""},{"$f":"従業員情報!L27","v":""},{"$f":"SUM(data3!AH34:AX34)","v":0},{"$f":"data3!CV34","v":0},{"$f":"SUM(data3!CJ34:CZ34)","v":0},{"$f":"data4!EE34","v":0},0,{"$f":"data4!EF34","v":0},0]
[null,null,null,"年末調整",null,null,null,null,null,null,null,null,null,{"$f":"従業員情報!J28","v":25},{"$f":"従業員情報!K28","v":""},{"$f":"従業員情報!L28","v":""},{"$f":"SUM(data3!AH35:AX35)","v":0},{"$f":"data3!CV35","v":0},{"$f":"SUM(data3!CJ35:CZ35)","v":0},{"$f":"data4!EE35","v":0},0,{"$f":"data4!EF35","v":0},0]
[null,null,null,null,null,null,null,null,null,null,null,null,null,{"$f":"従業員情報!J29","v":26},{"$f":"従業員情報!K29","v":""},{"$f":"従業員情報!L29","v":""},{"$f":"SUM(data3!AH36:AX36)","v":0},{"$f":"data3!CV36","v":0},{"$f":"SUM(data3!CJ36:CZ36)","v":0},{"$f":"data4!EE36","v":0},0,{"$f":"data4!EF36","v":0},0]
[null,null,null,"超過額",{"$f":"SUM(data4!$ED$11:$EE$40)","v":0},null,null,null,null,null,null,null,null,{"$f":"従業員情報!J30","v":27},{"$f":"従業員情報!K30","v":""},{"$f":"従業員情報!L30","v":""},{"$f":"SUM(data3!AH37:AX37)","v":0},{"$f":"data3!CV37","v":0},{"$f":"SUM(data3!CJ37:CZ37)","v":0},{"$f":"data4!EE37","v":0},0,{"$f":"data4!EF37","v":0},0]
[null,null,null,"不足額",{"$f":"SUM(data4!$EF$11:$EF$40)","v":0},null,null,null,null,null,null,null,null,{"$f":"従業員情報!J31","v":28},{"$f":"従業員情報!K31","v":""},{"$f":"従業員情報!L31","v":""},{"$f":"SUM(data3!AH38:AX38)","v":0},{"$f":"data3!CV38","v":0},{"$f":"SUM(data3!CJ38:CZ38)","v":0},{"$f":"data4!EE38","v":0},0,{"$f":"data4!EF38","v":0},0]
[null,null,null,"納付書の「年末調整による不足税額、超過税額欄に記載する数字",null,null,null,null,null,null,null,null,null,{"$f":"従業員情報!J32","v":29},{"$f":"従業員情報!K32","v":""},{"$f":"従業員情報!L32","v":""},{"$f":"SUM(data3!AH39:AX39)","v":0},{"$f":"data3!CV39","v":0},{"$f":"SUM(data3!CJ39:CZ39)","v":0},{"$f":"data4!EE39","v":0},0,{"$f":"data4!EF39","v":0},0]
[null,null,null,null,null,null,null,null,null,null,null,null,null,{"$f":"従業員情報!J33","v":30},{"$f":"従業員情報!K33","v":""},{"$f":"従業員情報!L33","v":""},{"$f":"SUM(data3!AH40:AX40)","v":0},{"$f":"data3!CV40","v":0},{"$f":"SUM(data3!CJ40:CZ40)","v":0},{"$f":"data4!EE40","v":0},0,{"$f":"data4!EF40","v":0},0]
[null,null,null,null,null,null,null,null,null,null,null,null,null,"合　計(前職分を含む）",null,null,{"$f":"SUM(Q4:Q33)","v":0},{"$f":"SUM(R4:R33)","v":0},{"$f":"SUM(S4:S33)","v":0},0,0,0,0]
[null,null,null,null,null,null,null,null,null,null,null,null,null,"うち前職分",null,null,{"$f":"SUM(data3!AT11:AT40)","v":0},{"$f":"R34","v":0},{"$f":"SUM(data3!CV11:CV40)","v":0},{"$f":"U34","v":0}]
[null,null,null,null,null,null,null,null,null,null,null,null,null,"合　計(前職分を含まない）",null,null,{"$f":"Q34-Q35","v":0},null,{"$f":"S34-S35","v":0},{"$f":"T34-T35","v":0},null,{"$f":"V34-V35","v":0},{"$f":"S36-T36+V36","v":0}]
[null,null,null,null,null,null,null,null,null,null,null,null,null,null,null,null,"法定調書合計表に記載",null,null,null,null,null,"法定調書合計表に記載"]

{"sheet":"data3","index":15,"n_rows":158,"n_cols":120,"rows_kept":158,"cut":false,"hidden":false,"merged":[[8,50,8,62],[8,17,8,28],[8,13,8,16],[8,29,8,32],[8,33,8,45],[8,46,8,49],[8,104,8,115],[8,116,8,119],[8,63,8,66],[8,67,8,78],[8,79,8,82],[8,83,8,86],[8,87,8,99],[8,100,8,103]]}
["ＩＤ","給月1","給月2","給月3","給月4","給月5","給月6","給月7","給月8","給月9","給月10","給月11","給月12","賞月1","賞月2","賞月3","賞月4","給日1","給日2","給日3","給日4","給日5","給日6","給日7","給日8","給日9","給日10","給日11","給日12","賞日1","賞日2","賞日3","賞日4","給料金額1","給料金額2","給料金額3","給料金額4","給料金額5","給料金額6","給料金額7","給料金額8","給料金額9","給料金額10","給料金額11","給料金額12","前職給料額","賞与金額1","賞与金額2","賞与金額3","賞与金額4","給社保1","給社保2","給社保3","給社保4","給社保5","給社保6","給社保7","給社保8","給社保9","給社保10","給社保11","給社保12","前社保","賞社保1","賞社保2","賞社保3","賞社保4","給扶養1","給扶養2","給扶養3","給扶養4","給扶養5","給扶養6","給扶養7","給扶養8","給扶養9","給扶養10","給扶養11","給扶養12","賞扶1","賞扶2","賞扶3","賞扶4","賞％1","賞％2","賞％3","賞％4","給税1","給税2","給税3","給税4","給税5","給税6","給税7","給税8","給税9","給税10","給税11","給税12","前税","賞税1","賞税2","賞税3","賞税4","給年調過不足1","給年調過不足2","給年調過不足3","給年調過不足4","給年調過不足5","給年調過不足6","給年調過不足7","給年調過不足8","給年調過不足9","給年調過不足10","給年調過不足11","給年調過不足12","賞年調過不足1","賞年調過不足2","賞年調過不足3","賞年調過不足4"]
[1,"1","2","3","4","5","6","7","8","9","10","11","12"]
[]
[null,"給与総支給金額合計",{"$f":"SUM(AH2:AS2)+AT2","v":0},null,"給与社会保険料等の金額合計\n控除額",{"$f":"SUM(AY2:BJ2)+BK2","v":0},null,"社会保険料等控除後の給与等の金額",{"$f":"AH2-AY2","v":0},0,0,0,0,0,0,0,0,0,0,0,{"$f":"SUM(I4:T4)+AT2-BK2","v":0},null,"給与算出税額合計",{"$f":"SUM(CJ2:CU2)+CV2","v":0},null,"給与差引\n徴収税額",{"$f":"CJ2+DA2","v":0},0,0,0,0,0,0,0,0,0,0,0,null,"賞与総支給金額合計",{"$f":"SUM(AU2:AX2)","v":0},null,"賞与社会保険料等の控除額合計",{"$f":"SUM(BL2:BO2)","v":0},null,"賞与社会保険料等控除後の給与等の金額",{"$f":"AU2-BL2","v":0},{"$f":"AV2-BM2","v":0},{"$f":"AW2-BN2","v":0},{"$f":"AX2-BO2","v":0},{"$f":"SUM(AU4:AX4)","v":0},null,"賞与算出税額合計",{"$f":"CW2+CX2+CY2+CZ2","v":0},null,"賞与差引\n徴収税額",{"$f":"CW2+DM2","v":0},{"$f":"CX2+DN2","v":0},{"$f":"CY2+DO2","v":0},{"$f":"CZ2+DP2","v":0}]
[]
[null,"Ｂ11～ＤＰ40までのセルを直接編集できます。編集後は必ず、従業員情報シートの従業員ＩＤ選択で、一旦、別のＩＤを選択してください。それによって選択中の従業員データが更新されます。"]
[null,"またこのシートに入力しただけでは税額の自動計算は行われません。"]
[null,"不正なデータを入力した場合やセルの削除等により、予期せぬエラーを生ずることがあります。また範囲外のデータを変更すると正しく動作しなくなるおそれがあります。このシートの編集は十分注意の上、自己責任で行ってください。"]
[null,null,null,null,null,null,null,null,null,null,null,null,null,"賞与月",null,null,null,"給料日付",null,null,null,null,null,null,null,null,null,null,null,"賞与日付",null,null,null,"給料金額",null,null,null,null,null,null,null,null,null,null,null,null,"賞与金額",null,null,null,"給料社会保険料等の金額",null,null,null,null,null,null,null,null,null,null,null,null,"賞与社会保険料等の金額",null,null,null,"給料扶養親族数",null,null,null,null,null,null,null,null,null,null,null,"賞与扶養親族数",null,null,null,"賞与税率",null,null,null,"給料算出税額",null,null,null,null,null,null,null,null,null,null,null,null,"賞与算出税額",null,null,null,"給料年末調整過不足税額",null,null,null,null,null,null,null,null,null,null,null,"賞与年末調整過不足税額"]
[]
[1,"1","2","3","4","5","6","7","8","9","10","11","12"]
[2,"1","2","3","4","5","6","7","8","9","10","11","12"]
[3,"1","2","3","4","5","6","7","8","9","10","11","12"]
[4,"1","2","3","4","5","6","7","8","9","10","11","12"]
[5,"1","2","3","4","5","6","7","8","9","10","11","12"]
[6,"1","2","3","4","5","6","7","8","9","10","11","12"]
[7,"1","2","3","4","5","6","7","8","9","10","11","12"]
[8,"1","2","3","4","5","6","7","8","9","10","11","12"]
[9,"1","2","3","4","5","6","7","8","9","10","11","12"]
[10,"1","2","3","4","5","6","7","8","9","10","11","12"]
[11,"1","2","3","4","5","6","7","8","9","10","11","12"]
[12,"1","2","3","4","5","6","7","8","9","10","11","12"]
[13,"1","2","3","4","5","6","7","8","9","10","11","12"]
[14,"1","2","3","4","5","6","7","8","9","10","11","12"]
[15,"1","2","3","4","5","6","7","8","9","10","11","12"]
[16,"1","2","3","4","5","6","7","8","9","10","11","12"]
[17,"1","2","3","4","5","6","7","8","9","10","11","12"]
[18,"1","2","3","4","5","6","7","8","9","10","11","12"]
[19,"1","2","3","4","5","6","7","8","9","10","11","12"]
[20,"1","2","3","4","5","6","7","8","9","10","11","12"]
[21,"1","2","3","4","5","6","7","8","9","10","11","12"]
[22,"1","2","3","4","5","6","7","8","9","10","11","12"]
[23,"1","2","3","4","5","6","7","8","9","10","11","12"]
[24,"1","2","3","4","5","6","7","8","9","10","11","12"]
[25,"1","2","3","4","5","6","7","8","9","10","11","12"]
[26,"1","2","3","4","5","6","7","8","9","10","11","12"]
[27,"1","2","3","4","5","6","7","8","9","10","11","12"]
[28,"1","2","3","4","5","6","7","8","9","10","11","12"]
[29,"1","2","3","4","5","6","7","8","9","10","11","12"]
[30,"1","2","3","4","5","6","7","8","9","10","11","12"]
[]
[null,null,null,null,null,null,null,null,null,null,null,null,null,null,null,null,null,null,null,null,null,null,null,null,null,null,null,null,null,null,null,null,null,{"$f":"SUM(AH11:AH41)","v":0},{"$f":"SUM(AI11:AI41)","v":0},0,0,0,0,0,0,0,0,{"$f":"SUM(AR11:AR41)","v":0},{"$f":"SUM(AS11:AS41)","v":0},null,null,null,null,null,null,null,null,null,null,null,null,null,null,null,null,null,null,null,null,null,null,null,null,null,null,null,null,null,null,null,null,null,null,null,null,null,null,null,null,null,"金額",{"$f":"SUM(CJ11:CJ41)","v":0},{"$f":"SUM(CK11:CK41)","v":0},0,0,0,0,0,0,0,0,0,{"$f":"SUM(CU11:CU41)","v":0}]
[null,null,null,null,null,null,null,null,null,null,null,"賞与月別集計",null,null,null,null,null,"計",null,null,null,null,null,null,null,null,null,null,null,null,null,null,"人数",{"$f":"COUNT(AH11:AH41)","v":0},{"$f":"COUNT(AI11:AI41)","v":0},{"$f":"COUNT(AJ11:AJ41)","v":0},0,0,0,0,0,0,0,0,0]
[null,null,null,null,null,null,null,null,null,null,null,"金額","1月",{"$f":"SUMIF($N$11:$N$40,1,$AU$11:$AU$40)","v":0},{"$f":"SUMIF($O$11:$O$40,1,$AV$11:$AV$40)","v":0},{"$f":"SUMIF($P$11:$P$40,1,$AW$11:$AW$40)","v":0},{"$f":"SUMIF($Q$11:$Q$40,1,$AX$11:$AX$40)","v":0},{"$f":"SUM(N44:Q44)","v":0}]
[null,null,null,null,null,null,null,null,null,null,null,null,"2月",{"$f":"SUMIF($N$11:$N$40,2,$AU$11:$AU$40)","v":0},{"$f":"SUMIF($O$11:$O$40,2,$AV$11:$AV$40)","v":0},{"$f":"SUMIF($P$11:$P$40,2,$AW$11:$AW$40)","v":0},{"$f":"SUMIF($Q$11:$Q$40,2,$AX$11:$AX$40)","v":0},{"$f":"SUM(N45:Q45)","v":0}]
[null,null,null,null,null,null,null,null,null,null,null,null,"3月",{"$f":"SUMIF($N$11:$N$40,3,$AU$11:$AU$40)","v":0},{"$f":"SUMIF($O$11:$O$40,3,$AV$11:$AV$40)","v":0},{"$f":"SUMIF($P$11:$P$40,3,$AW$11:$AW$40)","v":0},{"$f":"SUMIF($Q$11:$Q$40,3,$AX$11:$AX$40)","v":0},0]
[null,null,null,null,null,null,null,null,null,null,null,null,"4月",{"$f":"SUMIF($N$11:$N$40,4,$AU$11:$AU$40)","v":0},{"$f":"SUMIF($O$11:$O$40,4,$AV$11:$AV$40)","v":0},{"$f":"SUMIF($P$11:$P$40,4,$AW$11:$AW$40)","v":0},{"$f":"SUMIF($Q$11:$Q$40,4,$AX$11:$AX$40)","v":0},0]
[null,null,null,null,null,null,null,null,null,null,null,null,"5月",{"$f":"SUMIF($N$11:$N$40,5,$AU$11:$AU$40)","v":0},{"$f":"SUMIF($O$11:$O$40,5,$AV$11:$AV$40)","v":0},{"$f":"SUMIF($P$11:$P$40,5,$AW$11:$AW$40)","v":0},{"$f":"SUMIF($Q$11:$Q$40,5,$AX$11:$AX$40)","v":0},0]
[null,null,null,null,null,null,null,null,null,null,null,null,"6月",{"$f":"SUMIF($N$11:$N$40,6,$AU$11:$AU$40)","v":0},{"$f":"SUMIF($O$11:$O$40,6,$AV$11:$AV$40)","v":0},{"$f":"SUMIF($P$11:$P$40,6,$AW$11:$AW$40)","v":0},{"$f":"SUMIF($Q$11:$Q$40,6,$AX$11:$AX$40)","v":0},0]
[null,null,null,null,null,null,null,null,null,null,null,null,"7月",{"$f":"SUMIF($N$11:$N$40,7,$AU$11:$AU$40)","v":0},{"$f":"SUMIF($O$11:$O$40,7,$AV$11:$AV$40)","v":0},{"$f":"SUMIF($P$11:$P$40,7,$AW$11:$AW$40)","v":0},{"$f":"SUMIF($Q$11:$Q$40,7,$AX$11:$AX$40)","v":0},0]
[null,null,null,null,null,null,null,null,null,null,null,null,"8月",{"$f":"SUMIF($N$11:$N$40,8,$AU$11:$AU$40)","v":0},{"$f":"SUMIF($O$11:$O$40,8,$AV$11:$AV$40)","v":0},{"$f":"SUMIF($P$11:$P$40,8,$AW$11:$AW$40)","v":0},{"$f":"SUMIF($Q$11:$Q$40,8,$AX$11:$AX$40)","v":0},0]
[null,null,null,null,null,null,null,null,null,null,null,null,"9月",{"$f":"SUMIF($N$11:$N$40,9,$AU$11:$AU$40)","v":0},{"$f":"SUMIF($O$11:$O$40,9,$AV$11:$AV$40)","v":0},{"$f":"SUMIF($P$11:$P$40,9,$AW$11:$AW$40)","v":0},{"$f":"SUMIF($Q$11:$Q$40,9,$AX$11:$AX$40)","v":0},0]
[null,null,null,null,null,null,null,null,null,null,null,null,"10月",{"$f":"SUMIF($N$11:$N$40,10,$AU$11:$AU$40)","v":0},{"$f":"SUMIF($O$11:$O$40,10,$AV$11:$AV$40)","v":0},{"$f":"SUMIF($P$11:$P$40,10,$AW$11:$AW$40)","v":0},{"$f":"SUMIF($Q$11:$Q$40,10,$AX$11:$AX$40)","v":0},0]
[null,null,null,null,null,null,null,null,null,null,null,null,"11月",{"$f":"SUMIF($N$11:$N$40,11,$AU$11:$AU$40)","v":0},{"$f":"SUMIF($O$11:$O$40,11,$AV$11:$AV$40)","v":0},{"$f":"SUMIF($P$11:$P$40,11,$AW$11:$AW$40)","v":0},{"$f":"SUMIF($Q$11:$Q$40,11,$AX$11:$AX$40)","v":0},0]
[null,null,null,null,null,null,null,null,null,null,null,null,"12月",{"$f":"SUMIF($N$11:$N$40,12,$AU$11:$AU$40)","v":0},{"$f":"SUMIF($O$11:$O$40,12,$AV$11:$AV$40)","v":0},{"$f":"SUMIF($P$11:$P$40,12,$AW$11:$AW$40)","v":0},{"$f":"SUMIF($Q$11:$Q$40,12,$AX$11:$AX$40)","v":0},0]
[]
[null,null,null,null,null,null,null,null,null,null,null,"人員","1月",{"$f":"COUNTIF($N$11:$N$40,1)","v":0},{"$f":"COUNTIF($O$11:$O$40,1)","v":0},{"$f":"COUNTIF($P$11:$P$40,1)","v":0},{"$f":"COUNTIF($Q$11:$Q$40,1)","v":0},0]
[null,null,null,null,null,null,null,null,null,null,null,null,"2月",{"$f":"COUNTIF($N$11:$N$40,2)","v":0},{"$f":"COUNTIF($O$11:$O$40,2)","v":0},{"$f":"COUNTIF($P$11:$P$40,2)","v":0},{"$f":"COUNTIF($Q$11:$Q$40,2)","v":0},0]
[null,null,null,null,null,null,null,null,null,null,null,null,"3月",{"$f":"COUNTIF($N$11:$N$40,3)","v":0},{"$f":"COUNTIF($O$11:$O$40,3)","v":0},{"$f":"COUNTIF($P$11:$P$40,3)","v":0},{"$f":"COUNTIF($Q$11:$Q$40,3)","v":0},0]
[null,null,null,null,null,null,null,null,null,null,null,null,"4月",{"$f":"COUNTIF($N$11:$N$40,4)","v":0},{"$f":"COUNTIF($O$11:$O$40,4)","v":0},{"$f":"COUNTIF($P$11:$P$40,4)","v":0},{"$f":"COUNTIF($Q$11:$Q$40,4)","v":0},0]
[null,null,null,null,null,null,null,null,null,null,null,null,"5月",{"$f":"COUNTIF($N$11:$N$40,5)","v":0},{"$f":"COUNTIF($O$11:$O$40,5)","v":0},{"$f":"COUNTIF($P$11:$P$40,5)","v":0},{"$f":"COUNTIF($Q$11:$Q$40,5)","v":0},0]
[null,null,null,null,null,null,null,null,null,null,null,null,"6月",{"$f":"COUNTIF($N$11:$N$40,6)","v":0},{"$f":"COUNTIF($O$11:$O$40,6)","v":0},{"$f":"COUNTIF($P$11:$P$40,6)","v":0},{"$f":"COUNTIF($Q$11:$Q$40,6)","v":0},0]
[null,null,null,null,null,null,null,null,null,null,null,null,"7月",{"$f":"COUNTIF($N$11:$N$40,7)","v":0},{"$f":"COUNTIF($O$11:$O$40,7)","v":0},{"$f":"COUNTIF($P$11:$P$40,7)","v":0},{"$f":"COUNTIF($Q$11:$Q$40,7)","v":0},0]
[null,null,null,null,null,null,null,null,null,null,null,null,"8月",{"$f":"COUNTIF($N$11:$N$40,8)","v":0},{"$f":"COUNTIF($O$11:$O$40,8)","v":0},{"$f":"COUNTIF($P$11:$P$40,8)","v":0},{"$f":"COUNTIF($Q$11:$Q$40,8)","v":0},0]
[null,null,null,null,null,null,null,null,null,null,null,null,"9月",{"$f":"COUNTIF($N$11:$N$40,9)","v":0},{"$f":"COUNTIF($O$11:$O$40,9)","v":0},{"$f":"COUNTIF($P$11:$P$40,9)","v":0},{"$f":"COUNTIF($Q$11:$Q$40,9)","v":0},0]
[null,null,null,null,null,null,null,null,null,null,null,null,"10月",{"$f":"COUNTIF($N$11:$N$40,10)","v":0},{"$f":"COUNTIF($O$11:$O$40,10)","v":0},{"$f":"COUNTIF($P$11:$P$40,10)","v":0},{"$f":"COUNTIF($Q$11:$Q$40,10)","v":0},0]
[null,null,null,null,null,null,null,null,null,null,null,null,"11月",{"$f":"COUNTIF($N$11:$N$40,11)","v":0},{"$f":"COUNTIF($O$11:$O$40,11)","v":0},{"$f":"COUNTIF($P$11:$P$40,11)","v":0},{"$f":"COUNTIF($Q$11:$Q$40,11)","v":0},0]
[null,null,null,null,null,null,null,null,null,null,null,null,"12月",{"$f":"COUNTIF($N$11:$N$40,12)","v":0},{"$f":"COUNTIF($O$11:$O$40,12)","v":0},{"$f":"COUNTIF($P$11:$P$40,12)","v":0},{"$f":"COUNTIF($Q$11:$Q$40,12)","v":0},0]
[]
[null,null,null,null,null,null,null,null,null,null,null,"税額","1月",{"$f":"SUMIF($N$11:$N$40,1,$CW$11:$CW$40)","v":0},{"$f":"SUMIF($O$11:$O$40,1,$CX$11:$CX$40)","v":0},{"$f":"SUMIF($P$11:$P$40,1,$CY$11:$CY$40)","v":0},{"$f":"SUMIF($Q$11:$Q$40,1,$CZ$11:$CZ$40)","v":0},0]
[null,null,null,null,null,null,null,null,null,null,null,null,"2月",{"$f":"SUMIF($N$11:$N$40,2,$CW$11:$CW$40)","v":0},{"$f":"SUMIF($O$11:$O$40,2,$CX$11:$CX$40)","v":0},{"$f":"SUMIF($P$11:$P$40,2,$CY$11:$CY$40)","v":0},{"$f":"SUMIF($Q$11:$Q$40,2,$CZ$11:$CZ$40)","v":0},0]
[null,null,null,null,null,null,null,null,null,null,null,null,"3月",{"$f":"SUMIF($N$11:$N$40,3,$CW$11:$CW$40)","v":0},{"$f":"SUMIF($O$11:$O$40,3,$CX$11:$CX$40)","v":0},{"$f":"SUMIF($P$11:$P$40,3,$CY$11:$CY$40)","v":0},{"$f":"SUMIF($Q$11:$Q$40,3,$CZ$11:$CZ$40)","v":0},0]
[null,null,null,null,null,null,null,null,null,null,null,null,"4月",{"$f":"SUMIF($N$11:$N$40,4,$CW$11:$CW$40)","v":0},{"$f":"SUMIF($O$11:$O$40,4,$CX$11:$CX$40)","v":0},{"$f":"SUMIF($P$11:$P$40,4,$CY$11:$CY$40)","v":0},{"$f":"SUMIF($Q$11:$Q$40,4,$CZ$11:$CZ$40)","v":0},0]
[null,null,null,null,null,null,null,null,null,null,null,null,"5月",{"$f":"SUMIF($N$11:$N$40,5,$CW$11:$CW$40)","v":0},{"$f":"SUMIF($O$11:$O$40,5,$CX$11:$CX$40)","v":0},{"$f":"SUMIF($P$11:$P$40,5,$CY$11:$CY$40)","v":0},{"$f":"SUMIF($Q$11:$Q$40,5,$CZ$11:$CZ$40)","v":0},0]
[null,null,null,null,null,null,null,null,null,null,null,null,"6月",{"$f":"SUMIF($N$11:$N$40,6,$CW$11:$CW$40)","v":0},{"$f":"SUMIF($O$11:$O$40,6,$CX$11:$CX$40)","v":0},{"$f":"SUMIF($P$11:$P$40,6,$CY$11:$CY$40)","v":0},{"$f":"SUMIF($Q$11:$Q$40,6,$CZ$11:$CZ$40)","v":0},0]
[null,null,null,null,null,null,null,null,null,null,null,null,"7月",{"$f":"SUMIF($N$11:$N$40,7,$CW$11:$CW$40)","v":0},{"$f":"SUMIF($O$11:$O$40,7,$CX$11:$CX$40)","v":0},{"$f":"SUMIF($P$11:$P$40,7,$CY$11:$CY$40)","v":0},{"$f":"SUMIF($Q$11:$Q$40,7,$CZ$11:$CZ$40)","v":0},0]
[null,null,null,null,null,null,null,null,null,null,null,null,"8月",{"$f":"SUMIF($N$11:$N$40,8,$CW$11:$CW$40)","v":0},{"$f":"SUMIF($O$11:$O$40,8,$CX$11:$CX$40)","v":0},{"$f":"SUMIF($P$11:$P$40,8,$CY$11:$CY$40)","v":0},{"$f":"SUMIF($Q$11:$Q$40,8,$CZ$11:$CZ$40)","v":0},0]
[null,null,null,null,null,null,null,null,null,null,null,null,"9月",{"$f":"SUMIF($N$11:$N$40,9,$CW$11:$CW$40)","v":0},{"$f":"SUMIF($O$11:$O$40,9,$CX$11:$CX$40)","v":0},{"$f":"SUMIF($P$11:$P$40,9,$CY$11:$CY$40)","v":0},{"$f":"SUMIF($Q$11:$Q$40,9,$CZ$11:$CZ$40)","v":0},0]
[null,null,null,null,null,null,null,null,null,null,null,null,"10月",{"$f":"SUMIF($N$11:$N$40,10,$CW$11:$CW$40)","v":0},{"$f":"SUMIF($O$11:$O$40,10,$CX$11:$CX$40)","v":0},{"$f":"SUMIF($P$11:$P$40,10,$CY$11:$CY$40)","v":0},{"$f":"SUMIF($Q$11:$Q$40,10,$CZ$11:$CZ$40)","v":0},0]
[null,null,null,null,null,null,null,null,null,null,null,null,"11月",{"$f":"SUMIF($N$11:$N$40,11,$CW$11:$CW$40)","v":0},{"$f":"SUMIF($O$11:$O$40,11,$CX$11:$CX$40)","v":0},{"$f":"SUMIF($P$11:$P$40,11,$CY$11:$CY$40)","v":0},{"$f":"SUMIF($Q$11:$Q$40,11,$CZ$11:$CZ$40)","v":0},0]
[null,null,null,null,null,null,null,null,null,null,null,null,"12月",{"$f":"SUMIF($N$11:$N$40,12,$CW$11:$CW$40)","v":0},{"$f":"SUMIF($O$11:$O$40,12,$CX$11:$CX$40)","v":0},{"$f":"SUMIF($P$11:$P$40,12,$CY$11:$CY$40)","v":0},{"$f":"SUMIF($Q$11:$Q$40,12,$CZ$11:$CZ$40)","v":0},0]
[]
[]
[]
[]
[]
[]
[]
[]
[]
[]
[]
[]
[]
[]
[]
[]
[]
[]
[]
[]
[]
[]
[]
[]
[]
[]
[]
[]
[]
[]
[]
[]
[]
[]
[]
[]
[]
[]
[]
[]
[]
[]
[]
[]
[]
[]
[]
[]
[]
[]
[]
[]
[]
[]
[]
[]
[]
[]
[]
[]
[]
[]
[]
[]
[]
[]
[]
[]
[]
[]
[]
[]
[]
[]
[]
[]
[null,null,null,null,null,null,null,null,null,null,null,null,null,null,null,null,null,null,null,null,null,null,null,null,null,null,null,null,null,null,null,null,null,null,null,null,null,null,null,null,null,null,null,null,null,null,null,null,null,null,null,{"$f":"data3!DP2","v":0}]